Department,Entity, Transaction Date, Expense Type, Expense Area, Supplier Name, Component Code, Amount, Invoice Description
DFID,DFID,11/11/2014,Vehicle Petrol & Oil ,West and Southern Africa ,Vivo Energy Ghana Ltd ,101613-101 ,500.03,
DFID,DFID,26/11/2014,Project delivery costs – supplier services ,West and Southern Africa ,PHILIP COLE ,104038-101 ,"8,280.26",
DFID,DFID,11/11/2014,Hotels - Accommodation only ,West and Southern Africa ,Supplier Name withheld ,101622-103 ,500.74,
DFID,DFID,05/11/2014,Office Supplies ,Middle East  Humanitarian & Security Division ,Foreign & Commonwealth Office ,100303-101 ,501.11,
DFID,DFID,25/11/2014,Project delivery costs – supplier services ,East and Central Africa ,LTS International Ltd. ,201866-106 ,"15,697.09",
DFID,DFID,21/11/2014,Aid Programme - Poverty Reduction Budget Support ,East and Central Africa ,Ministry of Health  Government of Ethiopia Health Sector Development Programme ,202990-101 ,"55,600,000.00",
DFID,DFID,21/11/2014,Aid Programme - Poverty Reduction Budget Support ,East and Central Africa ,Ministry of Health  Government of Ethiopia Health Sector Development Programme ,202990-103 ,"9,400,000.00",
DFID,DFID,20/11/2014,Vehicle Purchase Costs ,West and Southern Africa ,Recipient name withheld ,100215-101 ,"16,100.00",
DFID,DFID,26/11/2014,Project delivery costs – supplier services ,West and Southern Africa ,ADAM SMITH INTERNATIONAL ,201139-101 ,"237,323.91",
DFID,DFID,10/11/2014,Project delivery costs – supplier services ,West and Southern Africa ,Crown Agents Bank ,202183-101 ,"122,686.39",
DFID,DFID,10/11/2014,Aid Programme - Voluntary contributions ,Regional Directorate ,UNDP MULTI-PARTNER TRUST FUND OFFICE (USD) ACCOUNT ,204900-101 ,"20,000,000.00",
DFID,DFID,17/11/2014,Aid Programme - Accountable Grant Payments ,Regional Directorate ,EMERGENCY LIFE SUPPORT FOR CIVILIAN WAR VICTIMS ONG ONLUS ,204890-108 ,"2,451,533.00",
DFID,DFID,07/11/2014,Project delivery costs – supplier services ,Regional Directorate ,International Procurement and Construction Services (IPCS) Ltd ,204890-101 ,"238,171.42",
DFID,DFID,28/11/2014,Project delivery costs – supplier services ,Regional Directorate ,Dawnus International Ltd ,204890-101 ,"696,522.60",
DFID,DFID,28/11/2014,Project delivery costs – supplier services ,Regional Directorate ,Dawnus International Ltd ,204890-101 ,"727,629.04",
DFID,DFID,13/11/2014,Project delivery costs – supplier services ,Regional Directorate ,CL Group Limited ,204876-104 ,"1,173,349.25",
DFID,DFID,13/11/2014,Facilities Management payments ,East and Central Africa ,Joshi Electrical & General Services ,101635-101 ,501.15,
DFID,DFID,07/11/2014,Air fares ,Middle East  Humanitarian & Security Division ,Foreign & Commonwealth Office ,201705-101 ,501.86,
DFID,DFID,03/11/2014,Hardware -Laptop PCs ,Business Solutions Division Level ,Stone Computers Ltd ,200004-125 ,"72,912.00",
DFID,DFID,16/11/2014,Mobile telephones & accessories ,Asia  Caribbean and Overseas Territories ,Grameen Phone ,101603-101 ,501.98,
DFID,DFID,20/11/2014,Air fares ,Growth and Resilience Division ,Corporate Travel Provider ,202373-101 ,502.44,
DFID,DFID,21/11/2014,Research & Development costs ,Research and Evidence Division ,The Economist Intelligence Unit ,204584-102 ,"15,052.80",
DFID,DFID,28/11/2014,Aid Programme - Core contributions ,Middle East  Humanitarian & Security Division ,USAID Washington ,204895-102 ,"3,000,000.00",
DFID,DFID,26/11/2014,Aid Programme - Accountable Grant Payments ,Asia  Caribbean and Overseas Territories ,Infrastructure Development Company Limited (IDCOL) ,202976-107 ,"14,591.00",
DFID,DFID,25/11/2014,Project delivery costs – supplier services ,East and Central Africa ,ADAM SMITH INTERNATIONAL  LTD ,202657-102 ,"34,481.00",
DFID,DFID,25/11/2014,Project delivery costs – supplier services ,East and Central Africa ,ADAM SMITH INTERNATIONAL  LTD ,202657-102 ,"80,455.00",
DFID,DFID,28/11/2014,Fund monies to be managed and dispersed by the supplier ,East and Central Africa ,ADAM SMITH INTERNATIONAL  LTD ,202657-102 ,"580,101.00",
DFID,DFID,25/11/2014,Project delivery costs – supplier services ,East and Central Africa ,ADAM SMITH INTERNATIONAL  LTD ,202657-102 ,"42,551.00",
DFID,DFID,21/11/2014,Aid Programme - Joint programme contribution ,Asia  Caribbean and Overseas Territories ,THE BRITISH RED CROSS SOCIETY ,202433-105 ,"624,979.00",
DFID,DFID,17/11/2014,Project delivery costs – supplier services ,Asia  Caribbean and Overseas Territories ,TURNER & TOWNSEND ,202433-108 ,"63,729.68",
DFID,DFID,21/11/2014,Aid Programme - Joint programme contribution ,Asia  Caribbean and Overseas Territories ,THE BRITISH RED CROSS SOCIETY ,202433-110 ,"800,000.00",
DFID,DFID,28/11/2014,Aid Programme - Partnership Programme Arrangements ,Policy Division ,BILL & MELINDA GATES FOUNDATION (USD) ,201101-104 ,"159,225.53",
DFID,DFID,15/11/2014,Hotels - Accommodation only ,Middle East  Humanitarian & Security Division ,Recipient name withheld ,101619-101 ,503.25,
DFID,DFID,17/11/2014,Project delivery costs – supplier services ,Research and Evidence Division ,PRICEWATERHOUSECOOPERS ,200822-101 ,"98,988.96",
DFID,DFID,19/11/2014,Research & Development costs ,Research and Evidence Division ,Pratham Education Foundation ,204806-102 ,"18,045.00",
DFID,DFID,19/11/2014,Air fares ,Top Management Group ,Corporate Travel Provider ,100232-104 ,504.00,
DFID,DFID,20/11/2014,Other travel costs ,Middle East  Humanitarian & Security Division ,DAVID SMITH. ,203939-103 ,623.65,
DFID,DFID,17/11/2014,Aid Programme - Accountable Grant Payments ,International Relations Division ,IFPRI ,203707-101 ,"206,396.40",
DFID,DFID,24/11/2014,Hotels - Accommodation only ,East and Central Africa ,Recipient name withheld ,101634-101 ,505.26,
DFID,DFID,25/11/2014,Project delivery costs – supplier services ,Middle East  Humanitarian & Security Division ,ADAM SMITH INTERNATIONAL  LTD ,203646-103 ,"65,371.27",
DFID,DFID,25/11/2014,Subscriptions ,Research and Evidence Division ,NATURE PUBLISHING GROUP ,202348-105 ,506.40,
DFID,DFID,18/11/2014,Office Equipment - Purchases ,East and Central Africa ,INSIGHT DIRECT (UK) LTD ,101635-101 ,506.60,
DFID,DFID,05/11/2014,Project delivery costs – supplier services ,Middle East  Humanitarian & Security Division ,Crown Agents Bank ,204061-101 ,"295,579.63",
DFID,DFID,24/11/2014,Project delivery costs – supplier services ,Middle East  Humanitarian & Security Division ,Crown Agents Bank ,204061-101 ,"313,441.61",
DFID,DFID,20/11/2014,Hotels - Accommodation only ,Policy Division ,Recipient name withheld ,202402-107 ,508.62,
DFID,DFID,10/11/2014,Aid Programme - Accountable Grant Payments ,Policy Division ,Center for Global Development ,202820-101 ,"194,000.00",
DFID,DFID,21/11/2014,Aid Programme - Voluntary contributions ,Policy Division ,UNITED NATIONS FOUNDATION ,202941-101 ,"9,000,000.00",
DFID,DFID,18/11/2014,Hotels - Accommodation only ,International Finance Division ,Recipient name withheld ,202432-101 ,509.14,
DFID,DFID,21/11/2014,Hotels - Accommodation only ,Research and Evidence Division ,Recipient name withheld ,100088-101 ,510.00,
DFID,DFID,05/11/2014,Generators & spares ,East and Central Africa ,Foreign & Commonwealth Office ,101616-101 ,510.51,
DFID,DFID,24/11/2014,Hotels - Accommodation only ,East and Central Africa ,Recipient name withheld ,202586-101 ,511.13,
DFID,DFID,27/11/2014,Oil - Other Utilities ,West and Southern Africa ,Chris Gabelle ,101629-101 ,511.40,
DFID,DFID,13/11/2014,Facilities Management payments ,Western Asia Division ,Supplier Name withheld ,101601-110 ,514.31,
DFID,DFID,19/11/2014,Hotels - Accommodation only ,Human Resources ,Corporate Travel Provider ,100268-101 ,514.57,
DFID,DFID,17/11/2014,Telephone Usage & services ,Business Solutions Division Level ,Level 3 ,200002-117 ,516.00,
DFID,DFID,06/11/2014,Hotels - Accommodation only ,West and Southern Africa ,SilverDoor Limited ,101629-101 ,516.00,
DFID,DFID,27/11/2014,Hotels - Accommodation only ,Western Asia Division ,Foreign & Commonwealth Office ,204791-101 ,516.41,
DFID,DFID,19/11/2014,Air fares ,Regional Directorate ,Corporate Travel Provider ,204833-101 ,517.40,
DFID,DFID,27/11/2014,Hotels - Accommodation only ,Western Asia Division ,Foreign & Commonwealth Office ,204791-101 ,517.40,
DFID,DFID,20/11/2014,Air fares ,Western Asia Division ,Corporate Travel Provider ,101601-110 ,517.90,
DFID,DFID,17/11/2014,Air fares ,West and Southern Africa ,Supplier Name withheld ,101622-101 ,518.11,
DFID,DFID,18/11/2014,Hotels - Accommodation only ,Middle East  Humanitarian & Security Division ,Recipient name withheld ,203944-105 ,519.58,
DFID,DFID,13/11/2014,Air fares ,East and Central Africa ,Mission Aviation Fellowship Kenya ,101616-101 ,519.90,
DFID,DFID,07/11/2014,Aid Programme - Trust Funds contributions ,Policy Division ,FOREIGN INVESTMENT ADVISORY SERVICE ,201733-113 ,"175,000.00",
DFID,DFID,12/11/2014,Project delivery costs – supplier services ,West and Southern Africa ,ECORYS UK Ltd. ,104200-104 ,"192,559.15",
DFID,DFID,25/11/2014,Project delivery costs – supplier services ,West and Southern Africa ,Rural Widows Action Centre ,204438-106 ,"12,158.16",
DFID,DFID,26/11/2014,Aid Programme - Other Financial Aid to Government ,Western Asia Division ,Government of Pakistan  Punjab Economic Opportunities Programme- PCU ,113484-102 ,"1,638,000.00",
DFID,DFID,28/11/2014,Project delivery costs – supplier services ,Asia  Caribbean and Overseas Territories ,PRICEWATERHOUSECOOPERS ,203964-101 ,"100,826.48",
DFID,DFID,20/11/2014,Aid Programme - Trust Funds contributions ,Asia  Caribbean and Overseas Territories ,UNOPS ,202149-103 ,"1,400,000.00",
DFID,DFID,24/11/2014,Aid Programme - Trust Funds contributions ,Asia  Caribbean and Overseas Territories ,UNOPS ,202149-102 ,"10,000,000.00",
DFID,DFID,14/11/2014,Aid Programme - Accountable Grant Payments ,Asia  Caribbean and Overseas Territories ,INTERNATIONAL RESCUE COMMITTEE UK ,203400-101 ,"275,795.00",
DFID,DFID,26/11/2014,Aid Programme - Other Financial Aid to Government ,Asia  Caribbean and Overseas Territories ,St Helena Department of Finance ,203955-102 ,"1,333,000.00",
DFID,DFID,26/11/2014,Aid Programme - Other Financial Aid to Government ,Asia  Caribbean and Overseas Territories ,St Helena Department of Finance ,203955-101 ,"4,516,667.00",
DFID,DFID,28/11/2014,Project delivery costs – supplier services ,West and Southern Africa ,ATOS CONSULTING LIMITED ,200452-101 ,"446,014.01",
DFID,DFID,26/11/2014,Project delivery costs – supplier services ,West and Southern Africa ,ADAM SMITH INTERNATIONAL  LTD ,201433-102 ,"2,106,552.15",
DFID,DFID,07/11/2014,Furniture & Fittings ,Asia  Caribbean and Overseas Territories ,Foreign & Commonwealth Office ,101605-101 ,519.98,
DFID,DFID,20/11/2014,Vehicle Repairs & Maintenance ,West and Southern Africa ,TOYOTA MALAWI ,101618-101 ,520.94,
DFID,DFID,25/11/2014,Aid Programme - Accountable Grant Payments ,Middle East  Humanitarian & Security Division ,HANDICAP INTERNATIONAL UK ,202878-102 ,"64,743.00",
DFID,DFID,26/11/2014,Aid Programme - Accountable Grant Payments ,West and Southern Africa ,Hope for Future Generations ,203648-111 ,"79,702.95",
DFID,DFID,21/11/2014,Aid Programme - Other Financial Aid to Government ,West and Southern Africa ,Ministry of Finance  Ghana Health Sector Support Programme ,203648-110 ,"500,000.00",
DFID,DFID,28/11/2014,Aid Programme - Partnership Programme Arrangements ,West and Southern Africa ,BILL & MELINDA GATES FOUNDATION (USD) ,201101-113 ,"996,779.31",
DFID,DFID,03/11/2014,Aid Programme - Accountable Grant Payments ,West and Southern Africa ,Christian Health Association of Ghana (CHAG) ,203536-104 ,"303,968.88",
DFID,DFID,05/11/2014,Aid Programme - Accountable Grant Payments ,West and Southern Africa ,JHU Center for Communication Programs ,203648-103 ,"222,180.07",
DFID,DFID,03/11/2014,Aid Programme - Accountable Grant Payments ,West and Southern Africa ,Hope for Future Generations ,204901-102 ,"1,260,780.32",
DFID,DFID,28/11/2014,Aid Programme - Joint programme contribution ,West and Southern Africa ,UNICEF ,203330-106 ,"106,910.00",
DFID,DFID,06/11/2014,Project delivery costs – supplier services ,International Finance Division ,Crown Relocations SA ,201723-102 ,"2,615.20",
DFID,DFID,24/11/2014,Aid Programme - Accountable Grant Payments ,Research and Evidence Division ,MASSACHUSETTS INSTITUTE OF TECHNOLOGY ,204291-101 ,"113,318.45",
DFID,DFID,07/11/2014,Project delivery costs – supplier services ,East and Central Africa ,Nicholas Read ,202513-103 ,"8,915.00",
DFID,DFID,18/11/2014,Building Plant - Air Conditioners ,East and Central Africa ,Centurion Company Limited ,101634-101 ,520.96,
DFID,DFID,11/11/2014,Hotels - Accommodation only ,West and Southern Africa ,Supplier Name withheld ,101622-103 ,521.04,
DFID,DFID,06/11/2014,Project delivery costs – supplier services ,West and Southern Africa ,Charles Kendall & Partners ,202214-103 ,"45,106.00",
DFID,DFID,06/11/2014,Telephone Usage & services ,Western Asia Division ,Supplier Name withheld ,100011-110 ,521.63,
DFID,DFID,20/11/2014,Air fares ,Middle East  Humanitarian & Security Division ,Corporate Travel Provider ,100146-101 ,522.91,
DFID,DFID,14/11/2014,Hotels - Accommodation only ,East and Central Africa ,BCD Travel (USD) ,202579-106 ,604.95,
DFID,DFID,14/11/2014,Hotels - Accommodation only ,East and Central Africa ,BCD Travel (USD) ,202579-105 ,604.95,
DFID,DFID,05/11/2014,Hotels - Accommodation only ,Asia  Caribbean and Overseas Territories ,Foreign & Commonwealth Office ,101605-101 ,525.30,
DFID,DFID,28/11/2014,Aid Programme - Core contributions ,Middle East  Humanitarian & Security Division ,The Centre for Humanitarian Dialogue ,202602-101 ,"350,000.00",
DFID,DFID,28/11/2014,Project delivery costs – supplier services ,International Finance Division ,PRICEWATERHOUSECOOPERS ,114178-101 ,"80,562.36",
DFID,DFID,25/11/2014,Aid Programme - Accountable Grant Payments ,East and Central Africa ,LIVERPOOL SCHOOL OF TROPICAL MEDICINE ,202549-104 ,"1,873,037.30",
DFID,DFID,11/11/2014,Aid Programme - Accountable Grant Payments ,Policy Division ,IUCN Mesoamerican and the Caribbean ,201724-123 ,"245,941.00",
DFID,DFID,05/11/2014,Hotels - Accommodation only ,Asia  Caribbean and Overseas Territories ,Foreign & Commonwealth Office ,101605-101 ,525.33,
DFID,DFID,10/11/2014,Aid Programme - Accountable Grant Payments ,Policy Division ,Chatham House ,203134-102 ,"24,000.00",
DFID,DFID,26/11/2014,Research & Development costs ,Research and Evidence Division ,Social Finance Limited ,203604-101 ,"144,260.00",
DFID,DFID,20/11/2014,Secure Staff Accommodation ,International Relations Division ,Recipient name withheld ,202319-101 ,"1,807.34",
DFID,DFID,05/11/2014,Training - Course Fees ,International Relations Division ,Alliance Francaise de Bruxeles Europe ,202319-101 ,"1,585.79",
DFID,DFID,17/11/2014,Other travel costs ,International Relations Division ,Recipient name withheld ,202319-101 ,"1,616.39",
DFID,DFID,25/11/2014,Secure Staff Accommodation ,International Relations Division ,Recipient name withheld ,202319-101 ,"1,804.12",
DFID,DFID,25/11/2014,Furniture & Fittings ,International Relations Division ,Recipient name withheld ,202319-101 ,662.34,
DFID,DFID,25/11/2014,Project delivery costs – supplier services ,East and Central Africa ,ATOS CONSULTING LIMITED ,202574-104 ,"54,228.65",
DFID,DFID,10/11/2014,Aid Programme - Accountable Grant Payments ,Asia  Caribbean and Overseas Territories ,Chinadialogue ,202775-104 ,"39,831.00",
DFID,DFID,18/11/2014,Aid Programme - Pooled/Basket funding ,East and Central Africa ,UNDP (USD) ACCOUNT ,202302-101 ,"800,000.00",
DFID,DFID,25/11/2014,Aid Programme - Core contributions ,International Relations Division ,COMMISSION EUROPEAN COMMUNITY - DFID EURO ACCOUNT ,200236-101 ,"34,941,261.82",
DFID,DFID,18/11/2014,Aid Programme - Accountable Grant Payments ,Communications Division ,OPPORTUNITY INTERNATIONAL UK ,202197-101 ,"223,374.00",
DFID,DFID,11/11/2014,Aid Programme - Accountable Grant Payments ,Communications Division ,OPPORTUNITY INTERNATIONAL UK ,203559-104 ,"255,526.00",
DFID,DFID,11/11/2014,Aid Programme - Accountable Grant Payments ,Communications Division ,SEND A COW ,203559-113 ,"41,436.00",
DFID,DFID,25/11/2014,Project delivery costs – supplier services ,Middle East  Humanitarian & Security Division ,BRITISH COUNCIL ,202886-102 ,"1,586,006.49",
DFID,DFID,05/11/2014,Aid Programme - Accountable Grant Payments ,Middle East  Humanitarian & Security Division ,Shell Foundation ,203441-101 ,"65,125.00",
DFID,DFID,05/11/2014,Aid Programme - Accountable Grant Payments ,Middle East  Humanitarian & Security Division ,Shell Foundation ,203441-101 ,"73,402.00",
DFID,DFID,21/11/2014,Air fares ,Regional Directorate ,Recipient name withheld ,204892-101 ,529.55,
DFID,DFID,21/11/2014,Project delivery costs – supplier services ,Regional Directorate ,International Procurement and Construction Services (IPCS) Ltd ,204890-101 ,"314,401.53",
DFID,DFID,20/11/2014,Hotels - Accommodation only ,West and Southern Africa ,Corporate Travel Provider ,100254-103 ,530.01,
DFID,DFID,03/11/2014,Aid Programme - Accountable Grant Payments ,Policy Division ,THE TIDES CENTER ,204178-101 ,"69,636.00",
DFID,DFID,19/11/2014,Air fares ,Western Asia Division ,Corporate Travel Provider ,101601-110 ,531.11,
DFID,DFID,11/11/2014,Hardware - networking equipment ,West and Southern Africa ,Tiwai Memory Masters ,100214-101 ,531.47,
DFID,DFID,25/11/2014,Project delivery costs – supplier services ,Policy Division ,PRICEWATERHOUSECOOPERS ,202372-102 ,"581,929.20",
DFID,DFID,06/11/2014,Aid Programme - Challenge Fund payments ,Western Asia Division ,Supplier Name withheld ,113779-103 ,"1,371,880.92",
DFID,DFID,20/11/2014,Air fares ,Western Asia Division ,Corporate Travel Provider ,101601-110 ,532.04,
DFID,DFID,06/11/2014,Hotels - Accommodation only ,Growth and Resilience Division ,Recipient name withheld ,100276-101 ,532.11,
DFID,DFID,20/11/2014,Air fares ,West and Southern Africa ,Corporate Travel Provider ,101613-101 ,536.35,
DFID,DFID,18/11/2014,Water charges ,Group Operations ,THAMES WATER UTILITIES LTD ,203717-101 ,536.55,
DFID,DFID,03/11/2014,Aid Programme - Voluntary contributions ,Western Asia Division ,THE UN OFFICE on DRUGS AND CRIME ,113331-104 ,"500,000.00",
DFID,DFID,14/11/2014,Hotels - Accommodation only ,East and Central Africa ,BCD Travel (USD) ,101630-101 ,536.79,
DFID,DFID,25/11/2014,Project delivery costs – supplier services ,West and Southern Africa ,ADAM SMITH INTERNATIONAL  LTD ,203719-101 ,"95,019.03",
DFID,DFID,27/11/2014,Project delivery costs – supplier services ,West and Southern Africa ,ADAM SMITH INTERNATIONAL  LTD ,203719-101 ,"99,069.05",
DFID,DFID,20/11/2014,Air fares ,Policy Division ,Corporate Travel Provider ,100277-103 ,537.10,
DFID,DFID,17/11/2014,Project delivery costs – supplier services ,Regional Directorate ,International Procurement and Construction Services (IPCS) Ltd ,204890-101 ,"482,553.60",
DFID,DFID,19/11/2014,Aid Programme - Pooled/Basket funding ,Research and Evidence Division ,BIS ,202749-101 ,"57,745.00",
DFID,DFID,19/11/2014,Aid Programme - Pooled/Basket funding ,Research and Evidence Division ,BIS ,202749-101 ,"10,000.00",
DFID,DFID,20/11/2014,Air fares ,Growth and Resilience Division ,Corporate Travel Provider ,202373-101 ,538.04,
DFID,DFID,05/11/2014,Repairs  Maint  Alter - Property & Constrct. Services ,West and Southern Africa ,Clemto Investments Ltd ,101622-105 ,538.68,
DFID,DFID,18/11/2014,Research & Development costs ,Research and Evidence Division ,UNIVERSITY OF  OXFORD ,200425-101 ,"500,000.00",
DFID,DFID,14/11/2014,Aid Programme - Core contributions ,Research and Evidence Division ,INTERNATIONAL CENTRE FOR DIARRO ,202767-101 ,"1,250,000.00",
DFID,DFID,03/11/2014,Print Services ,Middle East  Humanitarian & Security Division ,MODERN COLOUR SOLUTIONS ,203944-102 ,538.79,
DFID,DFID,28/11/2014,Aid Programme - Core contributions ,Research and Evidence Division ,INTERNATIONAL AIDS VACCINE INITIATIV ,204137-101 ,"500,000.00",
DFID,DFID,06/11/2014,Aid Programme - Core contributions ,Research and Evidence Division ,The Foundation for Innovative Diagnostics (FIND) ,204074-101 ,"1,500,000.00",
DFID,DFID,17/11/2014,Aid Programme - Core contributions ,Research and Evidence Division ,Medicines for Malaria Venture ,204066-101 ,"3,000,000.00",
DFID,DFID,11/11/2014,Research & Development costs ,Research and Evidence Division ,LIVERPOOL SCHOOL OF TROPICAL MEDICINE ,201401-101 ,"286,820.33",
DFID,DFID,04/11/2014,Office Supplies ,Group Operations ,NEOPOST LIMITED ,100106-101 ,540.00,
DFID,DFID,26/11/2014,Other Financial Aid to Government ,Asia  Caribbean and Overseas Territories ,Bangladesh Bank for Promoting Financial Services Poverty Reduction ,107370-102 ,"2,000,000.00",
DFID,DFID,27/11/2014,Project delivery costs – supplier services ,Asia  Caribbean and Overseas Territories ,Harewelle International Limited. ,107402-101 ,"129,136.25",
DFID,DFID,27/11/2014,Trust Funds contributions ,Asia  Caribbean and Overseas Territories ,IBRD HSBC T ,107413-101 ,"2,500,000.00",
DFID,DFID,25/11/2014,Project delivery costs – supplier services ,Asia  Caribbean and Overseas Territories ,BMB MOTT  MACDONALD ,107480-101 ,"185,036.60",
DFID,DFID,18/11/2014,Aid Programme - Accountable Grant Payments ,Asia  Caribbean and Overseas Territories ,Transparency International (Bangladesh) ,203488-101 ,"1,200,000.00",
DFID,DFID,18/11/2014,Aid Programme - Accountable Grant Payments ,Asia  Caribbean and Overseas Territories ,Transparency International (Bangladesh) ,203488-102 ,"800,000.00",
DFID,DFID,18/11/2014,Aid Programme - Accountable Grant Payments ,Asia  Caribbean and Overseas Territories ,Campaign for Popular Education (CAMPE) ,202123-107 ,"265,295.00",
DFID,DFID,27/11/2014,Aid Programme - Accountable Grant Payments ,Asia  Caribbean and Overseas Territories ,BRAC ,201286-103 ,"30,000,000.00",
DFID,DFID,27/11/2014,Aid Programme - Challenge Fund payments ,Asia  Caribbean and Overseas Territories ,Harewelle International Limited. ,107402-106 ,"119,415.00",
DFID,DFID,18/11/2014,Aid Programme - Accountable Grant Payments ,Asia  Caribbean and Overseas Territories ,UCEP - Underpriveliged Childrens Education Programs ,203228-103 ,"24,836.00",
DFID,DFID,18/11/2014,Aid Programme - Accountable Grant Payments ,Asia  Caribbean and Overseas Territories ,UCEP - Underpriveliged Childrens Education Programs ,203228-102 ,"1,175,009.00",
DFID,DFID,25/11/2014,Project delivery costs – supplier services ,Asia  Caribbean and Overseas Territories ,BMB MOTT  MACDONALD ,107480-101 ,"77,741.33",
DFID,DFID,27/11/2014,Aid Programme - Challenge Fund payments ,Asia  Caribbean and Overseas Territories ,Harewelle International Limited. ,107402-102 ,"1,643,816.47",
DFID,DFID,26/11/2014,Aid Programme - Accountable Grant Payments ,Asia  Caribbean and Overseas Territories ,Manusher Jonno Foundation ,202958-101 ,"3,100,000.00",
DFID,DFID,19/11/2014,Aid Programme - Trust Funds contributions ,Asia  Caribbean and Overseas Territories ,IBRD (HSBC)  C/O THE WORLD BANK ,201645-103 ,"9,605,000.00",
DFID,DFID,19/11/2014,Aid Programme - Trust Funds contributions ,Asia  Caribbean and Overseas Territories ,IBRD (HSBC)  C/O THE WORLD BANK ,201645-104 ,"500,000.00",
DFID,DFID,19/11/2014,Project delivery costs – supplier services ,West and Southern Africa ,HLSP LIMITED ,200325-101 ,889.56,
DFID,DFID,12/11/2014,Project delivery costs – supplier services ,West and Southern Africa ,ADAM SMITH INTERNATIONAL  LTD ,202539-106 ,"134,754.04",
DFID,DFID,25/11/2014,Project delivery costs – supplier services ,West and Southern Africa ,ADAM SMITH INTERNATIONAL  LTD ,202539-106 ,"215,027.30",
DFID,DFID,10/11/2014,Aid Programme - Accountable Grant Payments ,West and Southern Africa ,National Business Initiative for Growth  Development and Democracy ,202555-102 ,"429,929.36",
DFID,DFID,10/11/2014,Project delivery costs – supplier services ,West and Southern Africa ,NEPAD (International Partnership for Africa Fisheries) ,203622-112 ,"27,271.00",
DFID,DFID,25/11/2014,Project delivery costs – supplier services ,Policy Division ,Triple Line Crown Agents JV. ,201242-101 ,"39,266.36",
DFID,DFID,06/11/2014,Aid Programme - Challenge Fund payments ,Policy Division ,Triple Line Crown Agents JV. ,201242-101 ,"636,143.18",
DFID,DFID,05/11/2014,Aid Programme - Partnership Programme Arrangements ,Policy Division ,The Asia Foundation (GBP) ,202703-101 ,"611,257.50",
DFID,DFID,18/11/2014,Aid Programme - Partnership Programme Arrangements ,Policy Division ,Conciliation Resources ,202702-101 ,"250,644.75",
DFID,DFID,10/11/2014,Aid Programme - Partnership Programme Arrangements ,Policy Division ,MALARIA CONSORTIUM ,202700-101 ,"667,567.00",
DFID,DFID,10/11/2014,Aid Programme - Accountable Grant Payments ,Western Asia Division ,Supplier Name withheld ,203501-104 ,"2,276,757.00",
DFID,DFID,06/11/2014,Hotels - Accommodation only ,West and Southern Africa ,Capital Hotel ,101618-101 ,540.11,
DFID,DFID,19/11/2014,Air fares ,Asia  Caribbean and Overseas Territories ,Corporate Travel Provider ,101621-101 ,540.26,
DFID,DFID,27/11/2014,Furniture & Fittings ,East and Central Africa ,IPA-International Procurement Agency (BV) ,202717-101,"58,828.73",
DFID,DFID,19/11/2014,Air fares ,Asia  Caribbean and Overseas Territories ,Corporate Travel Provider ,101621-101 ,540.26,
DFID,DFID,20/11/2014,Air fares ,Research and Evidence Division ,Corporate Travel Provider ,203874-102 ,542.08,
DFID,DFID,28/11/2014,Furniture & Fittings ,East and Central Africa ,IPA-International Procurement Agency (BV) ,202717-101,"58,139.26",
DFID,DFID,11/11/2014,Contract Catering Services,Growth and Resilience Division ,MITIE Catering Services Ltd ,100276-101 ,542.70,
DFID,DFID,19/11/2014,Aid Programme - Core contributions ,Research and Evidence Division ,BIS ,200797-101 ,"200,502.47",
DFID,DFID,11/11/2014,Research & Development costs ,Research and Evidence Division ,Government Actuary's Department ,203604-101 ,"9,000.00",
DFID,DFID,19/11/2014,Air fares ,East and Central Africa ,Bon Voyage Travel Centre Ltd(USD) ,101625-102 ,542.82,
DFID,DFID,30/11/2014,Conferences  Seminars & Meeting/Event Resource ,Research and Evidence Division ,Recipient name withheld ,202392-101 ,544.63,
DFID,DFID,19/11/2014,Air fares ,Finance and Corporate Performance Division ,Corporate Travel Provider ,204662-101 ,544.84,
DFID,DFID,06/11/2014,Air fares ,East and Central Africa ,Recipient name withheld ,101628-101 ,546.44,
DFID,DFID,13/11/2014,Telephone Usage & services ,West and Southern Africa ,Scancom Limited ,101613-101 ,547.50,
DFID,DFID,06/11/2014,Air fares ,East and Central Africa ,Simbatravelcare Limited ,101635-101 ,548.85,
DFID,DFID,20/11/2014,Air fares ,Business Solutions Division Level ,Corporate Travel Provider ,200001-101 ,549.10,
DFID,DFID,20/11/2014,Air fares ,Policy Division ,Corporate Travel Provider ,202402-107 ,551.21,
DFID,DFID,20/11/2014,Air fares ,Finance and Corporate Performance Division ,Corporate Travel Provider ,202438-101 ,551.21,
DFID,DFID,19/11/2014,Hotels - Accommodation only ,Asia  Caribbean and Overseas Territories ,Corporate Travel Provider ,202403-101 ,552.66,
DFID,DFID,19/11/2014,Air fares ,West and Southern Africa ,Corporate Travel Provider ,101610-101 ,553.36,
DFID,DFID,28/11/2014,Aid Programme - Other Financial Aid to Government ,Asia  Caribbean and Overseas Territories ,Government of Montserrat - Montserrat Budget Support Grant ,203897-101 ,"2,840,870.00",
DFID,DFID,28/11/2014,Aid Programme - Other Financial Aid to Government ,Asia  Caribbean and Overseas Territories ,Government of Montserrat - Montserrat Budget Support Grant ,203897-105 ,"301,625.00",
DFID,DFID,28/11/2014,Aid Programme - Other Financial Aid to Government ,Asia  Caribbean and Overseas Territories ,Government of Montserrat - Montserrat Budget Support Grant ,203897-102 ,"406,266.00",
DFID,DFID,28/11/2014,Aid Programme - Other Financial Aid to Government ,Asia  Caribbean and Overseas Territories ,Government of Montserrat - Montserrat Budget Support Grant ,203897-103 ,"76,292.70",
DFID,DFID,20/11/2014,Air fares ,Policy Division ,Corporate Travel Provider ,202402-107 ,554.17,
DFID,DFID,19/11/2014,Air fares ,Policy Division ,Corporate Travel Provider ,100191-101 ,556.00,
DFID,DFID,24/11/2014,Hotels - Accommodation only ,Research and Evidence Division ,Recipient name withheld ,100039-116 ,558.52,
DFID,DFID,12/11/2014,Hotels - Accommodation only ,Top Management Group ,Foreign & Commonwealth Office ,100232-105 ,558.73,
DFID,DFID,07/11/2014,Air fares ,Middle East  Humanitarian & Security Division ,Foreign & Commonwealth Office ,100303-101 ,558.96,
DFID,DFID,19/11/2014,Air fares ,Western Asia Division ,Corporate Travel Provider ,101601-110 ,559.90,
DFID,DFID,13/11/2014,Hotels - Accommodation only ,Research and Evidence Division ,Recipient name withheld ,202392-106 ,560.62,
DFID,DFID,21/11/2014,Project delivery costs – supplier services ,Research and Evidence Division ,READING ROOM ,204847-101 ,"19,575.50",
DFID,DFID,04/11/2014,Project delivery costs – supplier services ,Research and Evidence Division ,READING ROOM ,204847-101 ,"19,405.00",
DFID,DFID,04/11/2014,Project delivery costs – supplier services ,Research and Evidence Division ,READING ROOM ,204847-101 ,"19,993.02",
DFID,DFID,17/11/2014,Aid Programme - Accountable Grant Payments ,Policy Division ,INSTITUTE OF DEVELOPMENT STUDIES ,202830-101 ,"832,902.81",
DFID,DFID,28/11/2014,Project delivery costs – supplier services ,Asia  Caribbean and Overseas Territories ,OPTIONS CONSULTANCY SERVICES LIMITED ,201375-103 ,"54,128.00",
DFID,DFID,07/11/2014,Project delivery costs – supplier services ,Asia  Caribbean and Overseas Territories ,OPTIONS CONSULTANCY SERVICES LIMITED ,201375-103 ,"73,041.00",
DFID,DFID,28/11/2014,Project delivery costs – supplier services ,Asia  Caribbean and Overseas Territories ,OPTIONS CONSULTANCY SERVICES LIMITED ,201375-103 ,"11,828.00",
DFID,DFID,28/11/2014,Project delivery costs – supplier services ,Asia  Caribbean and Overseas Territories ,OPTIONS CONSULTANCY SERVICES LIMITED ,201375-103 ,"43,825.00",
DFID,DFID,07/11/2014,Project delivery costs – supplier services ,Asia  Caribbean and Overseas Territories ,OPTIONS CONSULTANCY SERVICES LIMITED ,201375-103 ,"194,776.00",
DFID,DFID,27/11/2014,Aid Programme - Accountable Grant Payments ,Asia  Caribbean and Overseas Territories ,Helvetas Nepal ,201489-101 ,"2,200,000.00",
DFID,DFID,11/11/2014,Aid Programme - Accountable Grant Payments ,Asia  Caribbean and Overseas Territories ,Helvetas Nepal ,201489-101 ,"1,174,764.00",
DFID,DFID,13/11/2014,Aid Programme - Trust Funds contributions ,East and Central Africa ,IBRD (HSBC)  C/O THE WORLD BANK ,203439-101 ,"2,000,000.00",
DFID,DFID,20/11/2014,Hotels - Accommodation only ,East and Central Africa ,Corporate Travel Provider ,101612-101 ,560.89,
DFID,DFID,20/11/2014,Air fares ,Research and Evidence Division ,Corporate Travel Provider ,202333-104 ,561.25,
DFID,DFID,19/11/2014,Furniture & Fittings ,East and Central Africa ,Nakumatt Rwanda,101628-101 ,561.98,
DFID,DFID,12/11/2014,Contract Catering Services ,Asia  Caribbean and Overseas Territories ,Bellagio Limited ,100025-101 ,562.18,
DFID,DFID,19/11/2014,Air fares ,Western Asia Division ,Corporate Travel Provider ,101601-110 ,563.55,
DFID,DFID,19/11/2014,Air fares ,Finance and Corporate Performance Division ,Corporate Travel Provider ,100201-101 ,563.55,
DFID,DFID,13/11/2014,Vehicle Petrol & Oil ,West and Southern Africa ,Lynnwood Motors ,101631-101 ,565.40,
DFID,DFID,04/11/2014,Research & Development costs ,Research and Evidence Division ,Humanitarian Outcomes Limited ,203704-105 ,"292,166.00",
DFID,DFID,25/11/2014,Electricity ,East and Central Africa ,ENERGY UTILITY CORPORATION (eucl) LIMITED ,101628-101 ,565.54,
DFID,DFID,24/11/2014,Hotels - Accommodation only ,East and Central Africa ,Recipient name withheld ,101625-102 ,566.82,
DFID,DFID,11/11/2014,Hotels - Accommodation only ,Western Asia Division ,Recipient name withheld ,101624-101 ,567.00,
DFID,DFID,11/11/2014,Recruitment costs ,Research and Evidence Division ,OFFICE FOR NATIONAL STATISTICS ,100039-114 ,567.60,
DFID,DFID,19/11/2014,Air fares ,Western Asia Division ,Corporate Travel Provider ,101601-110 ,569.02,
DFID,DFID,05/11/2014,Electricity ,Asia  Caribbean and Overseas Territories ,Foreign & Commonwealth Office ,101636-101 ,569.03,
DFID,DFID,20/11/2014,Air fares ,Growth and Resilience Division ,Corporate Travel Provider ,202373-101 ,569.97,
DFID,DFID,20/11/2014,Air fares ,Western Asia Division ,Corporate Travel Provider ,101601-110 ,570.25,
DFID,DFID,20/11/2014,Air fares ,Research and Evidence Division ,Corporate Travel Provider ,203874-102 ,571.28,
DFID,DFID,20/11/2014,Hotels - Accommodation only ,Research and Evidence Division ,Recipient name withheld ,203874-102 ,571.38,
DFID,DFID,20/11/2014,Air fares ,Finance and Corporate Performance Division ,Corporate Travel Provider ,202836-102 ,571.64,
DFID,DFID,10/11/2014,Hotels - Accommodation only ,Middle East  Humanitarian & Security Division ,Recipient name withheld ,204084-101 ,571.87,
DFID,DFID,19/11/2014,Hotels - Accommodation only ,West and Southern Africa ,Corporate Travel Provider ,100096-101 ,573.45,
DFID,DFID,19/11/2014,Air fares ,West and Southern Africa ,Corporate Travel Provider ,101631-101 ,575.46,
DFID,DFID,19/11/2014,Air fares ,West and Southern Africa ,Corporate Travel Provider ,101631-101 ,575.46,
DFID,DFID,19/11/2014,Air fares ,West and Southern Africa ,Corporate Travel Provider ,101631-101 ,575.46,
DFID,DFID,19/11/2014,Hotels - Accommodation only ,Human Resources ,Corporate Travel Provider ,100261-101 ,576.33,
DFID,DFID,21/11/2014,Hotels - Accommodation only ,Research and Evidence Division ,Recipient name withheld ,202392-102 ,576.46,
DFID,DFID,10/11/2014,Hotels - Accommodation only ,Policy Division ,Recipient name withheld ,100274-111 ,580.08,
DFID,DFID,20/11/2014,Recruitment costs ,East and Central Africa ,THE GUARDIAN LTD ,101628-101 ,580.10,
DFID,DFID,19/11/2014,Air fares ,East and Central Africa ,Corporate Travel Provider ,101630-101 ,581.96,
DFID,DFID,20/11/2014,Storage & Distribution costs ,Asia  Caribbean and Overseas Territories ,PICKFORDS LTD ,101615-101 ,582.40,
DFID,DFID,11/11/2014,Hotels - Accommodation only ,West and Southern Africa ,Supplier Name withheld ,202992-101 ,937.87,
DFID,DFID,19/11/2014,Project delivery costs – supplier services ,West and Southern Africa ,Aluko & Oyebode ,104187-103 ,"8,420.63",
DFID,DFID,03/11/2014,Project delivery costs – supplier services ,West and Southern Africa ,PKF Professional Services ,201433-104 ,"21,908.60",
DFID,DFID,04/11/2014,Hotels - Accommodation only ,West and Southern Africa ,Supplier Name withheld ,201433-104 ,"2,941.86",
DFID,DFID,27/11/2014,Project delivery costs – supplier services ,West and Southern Africa ,   THE WORLD BANK ,203001-103 ,"38,000.00",
DFID,DFID,06/11/2014,Project delivery costs – supplier services ,West and Southern Africa ,RE-ACTION ,200546-101 ,"513,528.00",
DFID,DFID,28/11/2014,Aid Programme - Joint programme contribution ,West and Southern Africa , USAID ,204911-101 ,"549,332.00",
DFID,DFID,20/11/2014,Rail Transport ,International Relations Division ,Corporate Travel Provider ,100262-103 ,582.57,
DFID,DFID,19/11/2014,Air fares ,Western Asia Division ,Corporate Travel Provider ,100020-101 ,582.84,
DFID,DFID,19/11/2014,Hotels - Accommodation only ,Research and Evidence Division ,Recipient name withheld ,203874-102 ,583.24,
DFID,DFID,20/11/2014,Air fares ,West and Southern Africa ,Corporate Travel Provider ,101620-101 ,583.90,
DFID,DFID,28/11/2014,Project delivery costs – supplier services ,Western Asia Division ,Supplier Name withheld ,202190-105 ,"62,878.99",
DFID,DFID,26/11/2014,Project delivery costs – supplier services ,Western Asia Division ,Supplier Name withheld ,202112-102 ,"178,592.77",
DFID,DFID,05/11/2014,Aid Programme - Accountable Grant Payments ,Western Asia Division ,Supplier Name withheld ,203748-101 ,"406,842.00",
DFID,DFID,17/11/2014,Mobile telephones & accessories ,West and Southern Africa ,ECONET ,101638-104 ,585.05,
DFID,DFID,24/11/2014,Office Supplies ,West and Southern Africa ,Paperclip Limited ,101613-101 ,585.17,
DFID,DFID,25/11/2014,Project delivery costs – supplier services ,Western Asia Division ,Supplier Name withheld ,203474-104 ,"262,107.00",
DFID,DFID,21/11/2014,Water charges ,Asia  Caribbean and Overseas Territories ,Bal Krishna Dahal ,101621-103 ,586.14,
DFID,DFID,19/11/2014,Storage & Distribution costs ,West and Southern Africa ,PICKFORDS LTD ,101631-101 ,588.48,
DFID,DFID,19/11/2014,Storage & Distribution costs ,East and Central Africa ,PICKFORDS LTD ,101634-101 ,588.48,
DFID,DFID,19/11/2014,Air fares ,Western Asia Division ,Corporate Travel Provider ,101601-110 ,589.02,
DFID,DFID,24/11/2014,Contract & Agency Staff ,Group Operations ,Michael Page Int. Recruitment Ltd ,100270-106 ,589.90,
DFID,DFID,18/11/2014,Contract & Agency Staff ,Group Operations ,Michael Page Int. Recruitment Ltd ,100270-106 ,589.90,
DFID,DFID,10/11/2014,Contract & Agency Staff ,Group Operations ,Michael Page Int. Recruitment Ltd ,100270-106 ,589.90,
DFID,DFID,18/11/2014,Subscriptions ,Communications Division ,THE PRESS ASSOCIATION ,100197-101 ,589.93,
DFID,DFID,07/11/2014,Aid Programme - Accountable Grant Payments ,Asia  Caribbean and Overseas Territories ,Manusher Jonno Foundation ,202972-106 ,"128,718.00",
DFID,DFID,11/11/2014,Aid Programme - Accountable Grant Payments ,East and Central Africa ,Aga Khan Foundation (Tanzania) ,200716-101 ,"406,446.00",
DFID,DFID,25/11/2014,Project delivery costs – supplier services ,East and Central Africa ,HEALTH PARTNERS INTERNATIONAL ,200250-115 ,"374,041.08",
DFID,DFID,11/11/2014,Aid Programme - Joint programme contribution ,East and Central Africa ,UNICEF ,204005-102 ,"1,376,966.00",
DFID,DFID,12/11/2014,Project delivery costs – supplier services ,Asia  Caribbean and Overseas Territories ,Deloitte Touche Tohmatsu India Private Limited ,203224-101 ,"177,173.80",
DFID,DFID,11/11/2014,Project delivery costs – supplier services ,Asia  Caribbean and Overseas Territories ,Deloitte Touche Tohmatsu India Private Limited ,203224-101 ,"15,784.34",
DFID,DFID,24/11/2014,Aid Programme - Trust Funds contributions ,International Finance Division ,IBRD (HSBC)  C/O THE WORLD BANK ,202935-101 ,"6,500,000.00",
DFID,DFID,11/11/2014,Project delivery costs – supplier services ,International Finance Division ,PRICEWATERHOUSECOOPERS ,202939-101 ,"429,621.00",
DFID,DFID,04/11/2014,Project delivery costs – supplier services ,International Finance Division ,PRICEWATERHOUSECOOPERS ,202939-106 ,"70,252.67",
DFID,DFID,20/11/2014,Project delivery costs – supplier services ,International Finance Division ,PRICEWATERHOUSECOOPERS ,202939-110 ,"46,942.10",
DFID,DFID,19/11/2014,Project delivery costs – supplier services ,Asia  Caribbean and Overseas Territories ,DELOITTE TOUCHE TOHAMATSU INDIA PRIVATE LTD (DTTIPL) ,200599-101 ,"9,301.00",
DFID,DFID,07/11/2014,Project delivery costs – supplier services ,Asia  Caribbean and Overseas Territories ,ERNST &  YOUNG PRIVATE LTD ,200599-101 ,"46,205.50",
DFID,DFID,07/11/2014,Project delivery costs – supplier services ,Asia  Caribbean and Overseas Territories ,ERNST &  YOUNG PRIVATE LTD ,200599-101 ,"17,817.80",
DFID,DFID,25/11/2014,Project delivery costs – supplier services ,Asia  Caribbean and Overseas Territories ,ERNST &  YOUNG PRIVATE LTD ,200599-101 ,"23,016.80",
DFID,DFID,18/11/2014,Project delivery costs – supplier services ,Asia  Caribbean and Overseas Territories ,ERNST &  YOUNG PRIVATE LTD ,200599-101 ,"5,277.00",
DFID,DFID,25/11/2014,Project delivery costs – supplier services ,Asia  Caribbean and Overseas Territories ,ERNST &  YOUNG PRIVATE LTD ,200599-101 ,"23,016.80",
DFID,DFID,07/11/2014,Project delivery costs – supplier services ,Asia  Caribbean and Overseas Territories ,ERNST &  YOUNG PRIVATE LTD ,200599-101 ,"80,787.00",
DFID,DFID,25/11/2014,Project delivery costs – supplier services ,Asia  Caribbean and Overseas Territories ,ERNST &  YOUNG PRIVATE LTD ,200599-101 ,"23,016.80",
DFID,DFID,11/11/2014,Legal costs ,Asia  Caribbean and Overseas Territories ,Amarchand & Mangaldas & Suresh A Shroff & Co. ,202869-101 ,"1,454.66",
DFID,DFID,19/11/2014,Legal costs ,Asia  Caribbean and Overseas Territories ,Amarchand & Mangaldas & Suresh A Shroff & Co. ,202869-101 ,"2,312.92",
DFID,DFID,26/11/2014,Project delivery costs – supplier services ,Asia  Caribbean and Overseas Territories ,KANCHAN MATHUR ,114177-101 ,"1,634.51",
DFID,DFID,24/11/2014,Project delivery costs – supplier services ,Asia  Caribbean and Overseas Territories ,DELOITTE TOUCHE TOHAMATSU INDIA PRIVATE LTD (DTTIPL) ,107891-102 ,"44,942.75",
DFID,DFID,25/11/2014,Aid Programme - Other Financial Aid to Government ,Asia  Caribbean and Overseas Territories , The Government of India ,114168-102 ,"8,782.66",
DFID,DFID,24/11/2014,Aid Programme - Core contributions ,Asia  Caribbean and Overseas Territories ,INTERNATIONAL DEVELOPMENT RESEARCH CENTRE ,201750-103 ,"99,465.00",
DFID,DFID,10/11/2014,Aid Programme - Accountable Grant Payments ,West and Southern Africa ,TROPICAL HEALTH AND EDUCATION TRUST ,201927-108 ,"45,627.29",
DFID,DFID,19/11/2014,Project delivery costs – supplier services ,West and Southern Africa ,PRICEWATERHOUSECOOPERS ,113961-102 ,"343,660.04",
DFID,DFID,25/11/2014,Hotels - Accommodation only ,Policy Division ,Recipient name withheld ,100274-111 ,589.95,
DFID,DFID,20/11/2014,Air fares ,East and Central Africa ,Corporate Travel Provider ,202594-101 ,590.06,
DFID,DFID,19/11/2014,Hardware - networking equipment ,West and Southern Africa ,IS Internet Solutions Ltd ,100153-101 ,"4,438.39",
DFID,DFID,21/11/2014,Hardware - networking equipment ,West and Southern Africa ,Rockhaven Ltd ,100153-101 ,"4,508.57",
DFID,DFID,25/11/2014,Generators & spares ,West and Southern Africa ,Lilleker Bros (Nigeria) Ltd ,100153-101 ,"1,353.00",
DFID,DFID,19/11/2014,Hardware - networking equipment,West and Southern Africa ,IS Internet Solutions Ltd ,100153-101 ,"7,135.70",
DFID,DFID,26/11/2014,Air fares ,West and Southern Africa ,Supplier Name withheld ,202978-103 ,"1,565.16",
DFID,DFID,27/11/2014,Hotels - Accommodation only ,East and Central Africa ,Recipient name withheld ,101635-101 ,590.70,
DFID,DFID,20/11/2014,Air fares ,Western Asia Division ,Corporate Travel Provider ,101601-110 ,590.74,
DFID,DFID,04/11/2014,Aid Programme - Poverty Reduction Budget Support ,East and Central Africa ,IBRD HSBC T ,202991-102 ,"82,000,000.00",
DFID,DFID,10/11/2014,Project delivery costs – supplier services ,East and Central Africa ,Rugemeleza Albert Kamuhabwa Nshala ,202843-101 ,"17,075.39",
DFID,DFID,21/11/2014,Vehicle Purchase Costs ,East and Central Africa ,RURU Company Ltd ,203596-103 ,890.51,
DFID,DFID,26/11/2014,Hotels - Accommodation only ,Growth and Resilience Division ,Recipient name withheld ,100276-101 ,590.79,
DFID,DFID,20/11/2014,Air fares ,Middle East  Humanitarian & Security Division ,Corporate Travel Provider ,202410-101 ,590.95,
DFID,DFID,21/11/2014,Building Plant - Air Conditioners ,West and Southern Africa ,Electro Cool Sprl ,101610-101 ,591.07,
DFID,DFID,20/11/2014,Air fares ,International Relations Division ,Corporate Travel Provider ,201711-101 ,591.10,
DFID,DFID,25/11/2014,Furniture & Fittings ,East and Central Africa ,RURU Company Ltd ,100231-101 ,"2,123.64",
DFID,DFID,20/11/2014,Air fares ,International Relations Division ,Corporate Travel Provider ,201711-101 ,591.10,
DFID,DFID,19/11/2014,Air fares ,West and Southern Africa ,Corporate Travel Provider ,101610-101 ,596.07,
DFID,DFID,12/11/2014,Hotels - Accommodation only ,Growth and Resilience Division ,Recipient name withheld ,202373-101 ,598.40,
DFID,DFID,05/11/2014,Hotels - Accommodation only ,Policy Division ,Recipient name withheld ,202419-103 ,599.50,
DFID,DFID,17/11/2014,Electricity ,West and Southern Africa ,Abuja Electricity Distribution Company ,101622-105 ,599.59,
DFID,DFID,06/11/2014,Other Admin Costs ,International Relations Division ,Supplier Name Withheld ,100240-101 ,600.00,
DFID,DFID,18/11/2014,Vehicle Petrol & Oil ,Asia  Caribbean and Overseas Territories ,Sikder Filling and Serivce Station ,100025-101 ,600.30,
DFID,DFID,03/11/2014,Hotels - Accommodation only ,East and Central Africa ,Recipient name withheld ,101628-101 ,601.49,
DFID,DFID,13/11/2014,Contract & Agency Staff ,Finance and Corporate Performance Division ,Hays Specialist Recruitment Ltd ,100201-101 ,603.07,
DFID,DFID,13/11/2014,Repairs  Maint  Alter - Property & Constrct. Services ,West and Southern Africa ,AKSEL IMMO ,101610-101 ,603.14,
DFID,DFID,20/11/2014,Air fares ,Middle East  Humanitarian & Security Division ,Corporate Travel Provider ,101619-101 ,603.26,
DFID,DFID,25/11/2014,Water charges ,West and Southern Africa ,Lilongwe Water Board ,101618-101 ,603.67,
DFID,DFID,15/11/2014,Hotels - Accommodation only ,Middle East  Humanitarian & Security Division ,Recipient name withheld ,101619-101 ,603.90,
DFID,DFID,19/11/2014,Air fares ,West and Southern Africa ,Corporate Travel Provider ,101613-101 ,604.48,
DFID,DFID,20/11/2014,Air fares ,Internal Audit ,Corporate Travel Provider ,100121-101 ,605.72,
DFID,DFID,10/11/2014,Building Plant - Air Conditioners ,West and Southern Africa ,Drake & Gorham ( Z) Ltd ,101637-101 ,606.26,
DFID,DFID,11/11/2014,Water charges ,Asia  Caribbean and Overseas Territories ,Bal Krishna Dahal ,101621-103 ,606.78,
DFID,DFID,12/11/2014,Hotels - Accommodation only ,Asia  Caribbean and Overseas Territories ,Recipient name withheld ,201739-101 ,607.53,
DFID,DFID,28/11/2014,Aid Programme - Core contributions ,International Finance Division ,SG HAMBROS BANK & TRUST LTD (USD) ,203232-102 ,"30,000,000.00",
DFID,DFID,05/11/2014,Aid Programme - Core contributions ,Research and Evidence Division ,INTERNATIONAL DEVELOPMENT RESEARCH CENTRE ,203737-101 ,"913,092.00",
DFID,DFID,11/11/2014,Aid Programme - Accountable Grant Payments ,Research and Evidence Division ,Forschungsinstitut zur Zukunft der Arbeit GmbH ,202568-101 ,"619,738.00",
DFID,DFID,10/11/2014,Aid Programme - Accountable Grant Payments ,Policy Division ,BOND ,203953-101 ,"252,000.00",
DFID,DFID,19/11/2014,Air fares ,Growth and Resilience Division ,Corporate Travel Provider ,100276-101 ,607.60,
DFID,DFID,13/11/2014,Hotels - Accommodation only ,East and Central Africa ,Fairview Hotel ,101630-101 ,607.61,
DFID,DFID,28/11/2014,Project delivery costs – supplier services ,West and Southern Africa ,ADAM SMITH INTERNATIONAL  LTD ,104190-102 ,"814,191.22",
DFID,DFID,28/11/2014,Project delivery costs – supplier services ,West and Southern Africa ,PRICEWATERHOUSECOOPERS ,104190-108 ,"124,369.93",
DFID,DFID,12/11/2014,Project delivery costs – supplier services ,Middle East  Humanitarian & Security Division ,WILSON  BRYDON & KENNEDY ,203940-101 ,"8,100.00",
DFID,DFID,12/11/2014,Project delivery costs – supplier services ,Middle East  Humanitarian & Security Division ,PEDH Consulting Limited ,203940-101 ,"9,075.00",
DFID,DFID,11/11/2014,CPD Conferences ,Asia  Caribbean and Overseas Territories ,Foreign & Commonwealth Office ,101604-101 ,608.16,
DFID,DFID,05/11/2014,Hotels - Accommodation only ,East and Central Africa ,Foreign & Commonwealth Office ,101630-101 ,608.25,
DFID,DFID,25/11/2014,Office Supplies ,Asia  Caribbean and Overseas Territories ,Lotus Stationery & Computers ,100025-101 ,608.41,
DFID,DFID,27/11/2014,Hotels - Accommodation only ,Policy Division ,Recipient name withheld ,202419-105 ,610.59,
DFID,DFID,24/11/2014,Legal costs ,International Finance Division ,Marriott Davies Yapp LLP ,100111-101 ,611.00,
DFID,DFID,21/11/2014,Training - Travel & Subsistence ,West and Southern Africa ,Jeffery Travels ,101610-101 ,611.58,
DFID,DFID,26/11/2014,Project delivery costs – supplier services ,West and Southern Africa ,ADAM SMITH INTERNATIONAL  LTD ,201433-102 ,"234,114.70",
DFID,DFID,27/11/2014,Project delivery costs – supplier services ,West and Southern Africa ,HLSP LIMITED ,200325-101 ,"92,494.44",
DFID,DFID,07/11/2014,Project delivery costs – supplier services ,West and Southern Africa ,HLSP LIMITED ,200325-101 ,"94,617.61",
DFID,DFID,19/11/2014,Project delivery costs – supplier services ,West and Southern Africa ,HLSP LIMITED ,200325-101 ,"120,860.55",
DFID,DFID,27/11/2014,Project delivery costs – supplier services ,West and Southern Africa ,HLSP LIMITED ,200325-101 ,"170,399.39",
DFID,DFID,24/11/2014,Aid Programme - Trust Funds contributions ,Asia  Caribbean and Overseas Territories ,UNDP MULTI-PARTNER TRUST FUND OFFICE (USD) ACCOUNT ,202964-101 ,"500,000.00",
DFID,DFID,12/11/2014,Aid Programme - Core contributions ,Global Funds ,IBRD HSBC T ,200763-101 ,"5,000,000.00",
DFID,DFID,26/11/2014,Project delivery costs – supplier services ,Western Asia Division ,Supplier Name withheld ,201098-102 ,"284,060.58",
DFID,DFID,27/11/2014,Project delivery costs – supplier services ,Western Asia Division ,Supplier Name withheld ,202311-102 ,"405,817.73",
DFID,DFID,26/11/2014,Project delivery costs – supplier services ,Western Asia Division ,Supplier Name withheld ,203309-101 ,"34,940.57",
DFID,DFID,05/11/2014,Travel - Subsistence ,Asia  Caribbean and Overseas Territories ,Foreign & Commonwealth Office ,101605-101 ,611.73,
DFID,DFID,05/11/2014,Hotels - Accommodation only ,West and Southern Africa ,The Golden Tulip Hotel ,101629-101 ,612.30,
DFID,DFID,25/11/2014,Storage & Distribution costs ,West and Southern Africa ,PICKFORDS LTD ,101620-101 ,613.60,
DFID,DFID,19/11/2014,Hotels - Accommodation only ,West and Southern Africa ,Corporate Travel Provider ,101629-101 ,613.60,
DFID,DFID,11/11/2014,Data Network - land lines ,International Relations Division ,Foreign & Commonwealth Office ,201711-101 ,613.79,
DFID,DFID,20/11/2014,Air fares ,Middle East  Humanitarian & Security Division ,Corporate Travel Provider ,203944-107 ,613.91,
DFID,DFID,14/11/2014,Hotels - Accommodation only ,East and Central Africa ,BCD Travel (USD) ,204157-103 ,883.44,
DFID,DFID,14/11/2014,Air fares ,East and Central Africa ,BCD Travel (USD) ,202988-101 ,518.70,
DFID,DFID,10/11/2014,Air fares ,East and Central Africa ,WFP Somalia ,202974-107 ,928.83,
DFID,DFID,14/11/2014,Training - Course Fees ,East and Central Africa ,Recipient name withheld ,200842-109 ,"1,860.00",
DFID,DFID,10/11/2014,Air fares ,East and Central Africa ,WFP Somalia ,202827-106 ,884.80,
DFID,DFID,10/11/2014,Air fares ,East and Central Africa ,WFP Somalia ,203382-112 ,"1,127.26",
DFID,DFID,11/11/2014,Hotels - Accommodation only ,Research and Evidence Division ,Recipient name withheld ,202348-104 ,614.76,
DFID,DFID,20/11/2014,Repairs  Maint  Alter - Removal & waste disposal services ,West and Southern Africa ,Fracham Company ,101622-105 ,616.06,
DFID,DFID,20/11/2014,Air fares ,Middle East  Humanitarian & Security Division ,Corporate Travel Provider ,201701-101 ,617.76,
DFID,DFID,14/11/2014,Air fares ,International Finance Division ,BCD Travel (USD) ,201723-102 ,741.86,
DFID,DFID,19/11/2014,Air fares ,Regional Directorate ,Corporate Travel Provider ,101625-109 ,618.70,
DFID,DFID,20/11/2014,Air fares ,West and Southern Africa ,Corporate Travel Provider ,101631-101 ,619.36,
DFID,DFID,20/11/2014,Hotels - Accommodation only ,West and Southern Africa ,Corporate Travel Provider ,100189-101 ,621.43,
DFID,DFID,19/11/2014,Hotels - Accommodation only ,Human Resources ,Corporate Travel Provider ,100266-101 ,622.66,
DFID,DFID,20/11/2014,Air fares ,Research and Evidence Division ,Corporate Travel Provider ,202392-107 ,623.16,
DFID,DFID,03/11/2014,Air fares ,Middle East  Humanitarian & Security Division ,Recipient name withheld ,202410-101 ,623.66,
DFID,DFID,26/11/2014,Aid Programme - Accountable Grant Payments ,West and Southern Africa ,EGPAF ,202637-105 ,"149,815.84",
DFID,DFID,21/11/2014,Project delivery costs – supplier services ,Asia  Caribbean and Overseas Territories ,Jeewan Kumar Sherchan ,200609-103 ,"1,428.84",
DFID,DFID,11/11/2014,Project delivery costs – supplier services ,Asia  Caribbean and Overseas Territories ,Pradeep Kumar Shrestha ,108538-105 ,"2,443.70",
DFID,DFID,27/11/2014,Project delivery costs – supplier services ,Asia  Caribbean and Overseas Territories ,Ghanshyam Gautam  ,203413-101 ,682.80,
DFID,DFID,12/11/2014,Aid Programme - Joint programme contribution ,Asia  Caribbean and Overseas Territories ,DFID-GIZ Risk Management Office  Kathmandu ,204293-101 ,"60,810.69",
DFID,DFID,18/11/2014,Storage & Distribution costs ,Asia  Caribbean and Overseas Territories ,PICKFORDS LTD ,101603-101 ,625.31,
DFID,DFID,20/11/2014,Air fares ,Western Asia Division ,Corporate Travel Provider ,101624-101 ,625.88,
DFID,DFID,26/11/2014,Subscriptions ,Research and Evidence Division ,National Bureau of Enonomic Research ,202348-105 ,629.44,
DFID,DFID,26/11/2014,Telephone Usage & services ,West and Southern Africa ,Zambia Telecommunications Co Ltd ,101637-101 ,629.68,
DFID,DFID,26/11/2014,Childcare Allowances ,East and Central Africa ,Recipient name withheld ,101625-106 ,630.00,
DFID,DFID,25/11/2014,Aid Programme - Programme Contribution ,East and Central Africa ,BRITISH COUNCIL ,202899-102 ,"1,345,068.00",
DFID,DFID,18/11/2014,Hotels - Accommodation only ,Research and Evidence Division ,Recipient name withheld ,203874-102 ,630.39,
DFID,DFID,20/11/2014,Air fares ,West and Southern Africa ,Supplier Name withheld ,101622-106 ,630.79,
DFID,DFID,25/11/2014,Hotels - Accommodation only ,Research and Evidence Division ,Recipient name withheld ,203874-102 ,634.18,
DFID,DFID,21/11/2014,Project delivery costs – supplier services ,East and Central Africa ,Mlalazi Bakhethisi ,204736-107 ,"14,185.00",
DFID,DFID,03/11/2014,Aid Programme - Voluntary contributions ,East and Central Africa ,UNDP CONTRIBUTIONS ACCOUNT ,204736-105 ,"150,000.00",
DFID,DFID,11/11/2014,Project delivery costs – supplier services ,East and Central Africa ,IPA-International Procurement Agency (BV) ,203542-106 ,"227,193.00",
DFID,DFID,06/11/2014,Hotels - Accommodation only ,East and Central Africa ,Sheraton Hotel ,200349-104 ,756.10,
DFID,DFID,25/11/2014,Aid Programme - Accountable Grant Payments ,East and Central Africa ,CEDO VIP ,202943-101 ,"8,154.35",
DFID,DFID,28/11/2014,Project delivery costs – supplier services ,East and Central Africa ,Byenkya Julius Atwooki ,200787-108 ,"3,133.08",
DFID,DFID,17/11/2014,Air fares ,West and Southern Africa ,Supplier Name withheld ,100152-110 ,634.19,
DFID,DFID,20/11/2014,Air fares ,West and Southern Africa ,Supplier Name withheld ,101622-106 ,634.56,
DFID,DFID,20/11/2014,Project delivery costs – supplier services ,West and Southern Africa ,MINISTRY OF DEFENCE - HQ BRITFOR ,204483-101 ,"11,103.97",
DFID,DFID,07/11/2014,Auditors Assurance Service ,West and Southern Africa ,Ernst & Young ( Ghana) ,201590-103 ,"33,411.77",
DFID,DFID,10/11/2014,Auditors Assurance Service ,West and Southern Africa ,Ernst & Young ( Ghana) ,201590-103 ,"22,274.52",
DFID,DFID,25/11/2014,Project delivery costs – supplier services ,Growth and Resilience Division ,PRICEWATERHOUSECOOPERS ,202648-101 ,"69,648.05",
DFID,DFID,18/11/2014,Project delivery costs – supplier services ,Growth and Resilience Division ,University of Cape Town (UCT) ,202650-102 ,"30,000.00",
DFID,DFID,10/11/2014,Aid Programme - Accountable Grant Payments ,Growth and Resilience Division ,UNOPS ,203830-103 ,"234,333.00",
DFID,DFID,10/11/2014,Air fares ,International Relations Division ,Foreign & Commonwealth Office ,100240-101 ,636.50,
DFID,DFID,18/11/2014,Hotels - Accommodation only ,Group Operations ,Recipient name withheld ,201157-102 ,637.23,
DFID,DFID,20/11/2014,Air fares ,West and Southern Africa ,Corporate Travel Provider ,101613-101 ,637.90,
DFID,DFID,04/11/2014,Hostile Environment Training ,Middle East  Humanitarian & Security Division ,Pilgrims Group ,101619-101 ,638.47,
DFID,DFID,13/11/2014,Hostile Environment Training ,Middle East  Humanitarian & Security Division ,Pilgrims Group ,101619-101 ,638.47,
DFID,DFID,14/11/2014,Hostile Environment Training ,Middle East  Humanitarian & Security Division ,Pilgrims Group ,101619-101 ,638.47,
DFID,DFID,11/11/2014,Hostile Environment Training ,Research and Evidence Division ,Pilgrims Group ,203874-102 ,638.47,
DFID,DFID,07/11/2014,Hostile Environment Training ,East and Central Africa ,Pilgrims Group ,101625-102 ,638.47,
DFID,DFID,11/11/2014,Hostile Environment Training ,Western Asia Division ,Pilgrims Group ,101624-101 ,638.47,
DFID,DFID,27/11/2014,Aid Programme - Other Financial Aid to Government ,East and Central Africa ,RWANDA NATURAL RESOURCES AUTHORITY ,200284-108 ,"1,100,000.00",
DFID,DFID,28/11/2014,Aid Programme - Partnership Programme Arrangements ,Policy Division ,BILL & MELINDA GATES FOUNDATION (USD) ,201101-112 ,"2,819,073.70",
DFID,DFID,05/11/2014,Project delivery costs – supplier services ,Policy Division ,IMPERIAL COLLEGE LONDON ,200706-101 ,"102,320.73",
DFID,DFID,25/11/2014,Project delivery costs – supplier services ,Policy Division ,TROPICAL HEALTH AND EDUCATION TRUST ,202208-101 ,"61,939.25",
DFID,DFID,25/11/2014,Project delivery costs – supplier services ,Policy Division ,TROPICAL HEALTH AND EDUCATION TRUST ,202208-101 ,"328,700.00",
DFID,DFID,10/11/2014,Project delivery costs – supplier services ,Policy Division ,TROPICAL HEALTH AND EDUCATION TRUST ,202208-101 ,"604,656.00",
DFID,DFID,21/11/2014,Aid Programme - Trust Funds contributions ,Asia  Caribbean and Overseas Territories ,IBRD (HSBC)  C/O THE WORLD BANK ,203040-101 ,"1,298,000.00",
DFID,DFID,28/11/2014,Project delivery costs – supplier services ,East and Central Africa ,Crown Agents Bank ,200120-109 ,"898,666.00",
DFID,DFID,26/11/2014,Aid Programme - Humanitarian Material Relief Assistance and Services ,East and Central Africa ,FOOD AND AGRICULTURE ORGANISATION ,203462-106 ,"2,000,000.00",
DFID,DFID,17/11/2014,Aid Programme - Accountable Grant Payments ,East and Central Africa ,HivosGBP ,200120-102 ,"89,169.04",
DFID,DFID,17/11/2014,Aid Programme - Accountable Grant Payments ,East and Central Africa ,EISA ,200892-101 ,"205,256.67",
DFID,DFID,26/11/2014,Hostile Environment Training ,Growth and Resilience Division ,Pilgrims Group ,202373-101 ,638.47,
DFID,DFID,13/11/2014,Hostile Environment Training ,Internal Audit ,Pilgrims Group ,100121-101 ,638.47,
DFID,DFID,25/11/2014,Training - Course Fees ,Research and Evidence Division ,Recipient name withheld ,202392-103 ,638.50,
DFID,DFID,25/11/2014,Hotels - Accommodation only ,East and Central Africa ,FOXTREKS LTD ,101634-101 ,638.72,
DFID,DFID,19/11/2014,Air fares ,Western Asia Division ,Corporate Travel Provider ,101624-101 ,642.20,
DFID,DFID,20/11/2014,Air fares ,Western Asia Division ,Corporate Travel Provider ,101601-110 ,643.30,
DFID,DFID,19/11/2014,Air fares ,Policy Division ,Corporate Travel Provider ,100274-111 ,643.68,
DFID,DFID,20/11/2014,Air fares ,Middle East  Humanitarian & Security Division ,Corporate Travel Provider ,202410-101 ,644.02,
DFID,DFID,05/11/2014,Repairs  Maint  Alter - Property & Constrct. Services ,West and Southern Africa ,Pekolyn Tech. Services ,100152-110 ,645.22,
DFID,DFID,20/11/2014,Air fares ,Middle East  Humanitarian & Security Division ,Corporate Travel Provider ,204055-101 ,649.04,
DFID,DFID,25/11/2014,Vehicle Repairs & Maintenance ,Asia  Caribbean and Overseas Territories ,Millennium Service Center Limited ,100025-101 ,650.19,
DFID,DFID,19/11/2014,Air fares ,Asia  Caribbean and Overseas Territories ,Corporate Travel Provider ,101621-101 ,650.26,
DFID,DFID,19/11/2014,Air fares ,Asia  Caribbean and Overseas Territories ,Corporate Travel Provider ,101621-101 ,650.26,
DFID,DFID,04/11/2014,Air fares ,Research and Evidence Division ,Saimon Overseas Ltd ,203874-101 ,651.85,
DFID,DFID,10/11/2014,Project delivery costs – supplier services ,Western Asia Division ,Supplier Name withheld ,114488-101 ,"418,478.00",
DFID,DFID,05/11/2014,Staff Travel - Air Fares ,West and Southern Africa ,TRELLICOR (PTY) LTD ,100069-101 ,887.02,
DFID,DFID,19/11/2014,Project delivery costs – supplier services ,West and Southern Africa ,PRICEWATERHOUSECOOPERS ,113961-103 ,"88,220.80",
DFID,DFID,25/11/2014,Project delivery costs – supplier services ,West and Southern Africa ,Crown Agents Bank ,201198-101 ,"256,701.00",
DFID,DFID,25/11/2014,Project delivery costs – supplier services ,West and Southern Africa ,ADAM SMITH INTERNATIONAL  LTD ,203161-103 ,"627,639.37",
DFID,DFID,26/11/2014,Aid Programme - Voluntary contributions ,West and Southern Africa ,UNDP MULTI-PARTNER TRUST FUND OFFICE (USD) ACCOUNT ,202909-104 ,"10,000,000.00",
DFID,DFID,17/11/2014,Aid Programme - Voluntary contributions ,West and Southern Africa ,UN HABITAT ,202416-115 ,"1,068,059.00",
DFID,DFID,17/11/2014,Project delivery costs – supplier services ,Asia  Caribbean and Overseas Territories ,TURNER & TOWNSEND ,100114-104 ,"11,385.47",
DFID,DFID,20/11/2014,Project delivery costs – supplier services ,Asia  Caribbean and Overseas Territories ,SIDBI MUMBAI ,114293-102 ,"3,839.73",
DFID,DFID,18/11/2014,Project delivery costs – supplier services ,Asia  Caribbean and Overseas Territories ,SIDBI MUMBAI ,114293-103 ,"28,449.62",
DFID,DFID,20/11/2014,Project delivery costs – supplier services ,Asia  Caribbean and Overseas Territories ,SIDBI MUMBAI ,114293-103 ,"76,569.11",
DFID,DFID,26/11/2014,Project delivery costs – supplier services ,Asia  Caribbean and Overseas Territories ,SIDBI MUMBAI ,114293-103 ,"147,903.72",
DFID,DFID,20/11/2014,Project delivery costs – supplier services ,Asia  Caribbean and Overseas Territories ,SIDBI MUMBAI ,114293-103 ,"31,065.79",
DFID,DFID,20/11/2014,Project delivery costs – supplier services ,Asia  Caribbean and Overseas Territories ,SIDBI MUMBAI ,114293-103 ,"4,350.13",
DFID,DFID,25/11/2014,Aid Programme - Poverty Reduction Budget Support ,Asia  Caribbean and Overseas Territories , The Government of India ,114506-106 ,"20,000,000.00",
DFID,DFID,18/11/2014,Aid Programme - Accountable Grant Payments ,Asia  Caribbean and Overseas Territories ,Population Services Internation (usa) ,202759-101 ,"396,826.29",
DFID,DFID,25/11/2014,Aid Programme - Accountable Grant Payments ,Asia  Caribbean and Overseas Territories ,INTERNATIONAL RESCUE COMMITTEE UK ,203400-102 ,"500,475.00",
DFID,DFID,10/11/2014,Aid Programme - Voluntary contributions ,Asia  Caribbean and Overseas Territories ,UN OCHA ,203400-106 ,"500,000.00",
DFID,DFID,07/11/2014,Aid Programme - Accountable Grant Payments ,Asia  Caribbean and Overseas Territories ,ACTION AID INTERNATIONAL ,203400-104 ,"173,154.00",
DFID,DFID,26/11/2014,Aid Programme - Accountable Grant Payments ,Asia  Caribbean and Overseas Territories ,Shoklo Malaria Research Unit ,203400-108 ,"140,857.98",
DFID,DFID,24/11/2014,Research & Development costs ,Research and Evidence Division ,INSTITUTE OF DEVELOPMENT STUDIES ,202136-101 ,"13,955.00",
DFID,DFID,21/11/2014,Vehicle Petrol & Oil ,Regional Directorate ,British High Commission ,204892-101 ,652.16,
DFID,DFID,19/11/2014,Project delivery costs – supplier services ,Regional Directorate ,CL Group Limited ,204890-101 ,"301,935.13",
DFID,DFID,11/11/2014,Aid Programme - Trust Funds contributions ,Research and Evidence Division ,IBRD HSBC T ,202211-101 ,"3,000,000.00",
DFID,DFID,06/11/2014,Aid Programme - Core contributions ,Research and Evidence Division , Swiss Agency for Development and Cooperation ,202748-101 ,"960,000.00",
DFID,DFID,06/11/2014,Aid Programme - Core contributions ,Research and Evidence Division , Swiss Agency for Development and Cooperation ,202748-101 ,"664,000.00",
DFID,DFID,26/11/2014,Project delivery costs – supplier services ,West and Southern Africa ,EFFECTIVE DEVELOPMENT GROUP (EDG) ,113961-105 ,"97,614.12",
DFID,DFID,28/11/2014,Project delivery costs – supplier services ,Middle East  Humanitarian & Security Division ,Crown Agents Bank ,201828-101 ,"10,922.00",
DFID,DFID,24/11/2014,Project delivery costs – supplier services ,Western Asia Division ,DAVID SUTHERLAND ,114044-101 ,"6,485.35",
DFID,DFID,19/11/2014,Aid Programme - Joint programme contribution ,Western Asia Division ,IBRD (HSBC)  C/O THE WORLD BANK ,204887-101 ,"112,500.00",
DFID,DFID,19/11/2014,Hotels - Accommodation only ,Group Operations ,Corporate Travel Provider ,204284-101 ,655.20,
DFID,DFID,05/11/2014,Project delivery costs – supplier services ,West and Southern Africa ,Charles Kendall & Partners ,202214-103 ,"7,285.24",
DFID,DFID,20/11/2014,Aid Programme - Accountable Grant Payments ,Policy Division ,LIVERPOOL SCHOOL OF TROPICAL MEDICINE ,202945-101 ,"1,277,945.00",
DFID,DFID,18/11/2014,Aid Programme - Accountable Grant Payments ,Policy Division ,UNITED NATIONS FOUNDATION ,204333-102 ,"32,279.67",
DFID,DFID,20/11/2014,UK Staff overseas - Flexi Travel Allowance ,Asia  Caribbean and Overseas Territories ,Corporate Travel Provider ,101604-101 ,655.34,
DFID,DFID,20/11/2014,Air fares ,Research and Evidence Division ,Corporate Travel Provider ,202392-103 ,657.06,
DFID,DFID,20/11/2014,Air fares ,West and Southern Africa ,Supplier Name withheld ,101622-106 ,657.06,
DFID,DFID,19/11/2014,Air fares ,Middle East  Humanitarian & Security Division ,Corporate Travel Provider ,101619-101 ,657.36,
DFID,DFID,07/11/2014,Project delivery costs – supplier services ,West and Southern Africa ,Paul Deverill ,201123-102 ,"15,390.38",
DFID,DFID,10/11/2014,Project delivery costs – supplier services ,Asia  Caribbean and Overseas Territories ,Scope Training & Consulting Private Limited ,203484-101 ,"2,564.02",
DFID,DFID,20/11/2014,Air fares ,Middle East  Humanitarian & Security Division ,Corporate Travel Provider ,201701-101 ,658.98,
DFID,DFID,26/11/2014,Aid Programme - Humanitarian Material Relief Assistance and Services ,Western Asia Division ,Maj Fayyaz Ali ,203967-101 ,801.20,
DFID,DFID,18/11/2014,Aid Programme - Humanitarian Material Relief Assistance and Services ,Western Asia Division ,Glow Consultants (Private) Limited ,203967-101 ,"20,225.00",
DFID,DFID,24/11/2014,Project delivery costs – supplier services ,Asia  Caribbean and Overseas Territories ,ADAM SMITH INTERNATIONAL  LTD ,201367-103 ,"258,506.23",
DFID,DFID,17/11/2014,Aid Programme - Accountable Grant Payments ,Asia  Caribbean and Overseas Territories ,HARVARD UNIVERSITY (OFFICE FOR SPONSERED PROGRAMS) ,201227-135 ,"32,930.55",
DFID,DFID,13/11/2014,Hotels - Accommodation only ,West and Southern Africa ,Supplier Name withheld ,100152-105 ,659.73,
DFID,DFID,10/11/2014,Furniture & Fittings ,West and Southern Africa ,Woodset Upholstery Enterprises ,101637-101 ,660.20,
DFID,DFID,05/11/2014,Air fares ,West and Southern Africa ,Premier Travel ,101638-101 ,660.43,
DFID,DFID,19/11/2014,Hotels - Accommodation only ,East and Central Africa ,Corporate Travel Provider ,101630-101 ,663.03,
DFID,DFID,07/11/2014,Electricity ,Western Asia Division ,Foreign & Commonwealth Office ,101624-101 ,665.85,
DFID,DFID,07/11/2014,Cleaning Costs ,Middle East  Humanitarian & Security Division ,Foreign & Commonwealth Office ,201705-101 ,669.75,
DFID,DFID,20/11/2014,Air fares ,Research and Evidence Division ,Corporate Travel Provider ,100039-108 ,672.09,
DFID,DFID,20/11/2014,Air fares ,West and Southern Africa ,Corporate Travel Provider ,101613-101 ,672.46,
DFID,DFID,11/11/2014,Hotels - Accommodation only ,Research and Evidence Division ,Recipient name withheld ,202392-113 ,674.51,
DFID,DFID,25/11/2014,Aid Programme - Aid and Trade Provision ,Asia  Caribbean and Overseas Territories ,ECGD ACCOUNT ,108236-101 ,"55,168.62",
DFID,DFID,27/11/2014,Aid Programme - Aid and Trade Provision ,Asia  Caribbean and Overseas Territories ,ECGD ACCOUNT ,108238-101 ,"22,716.86",
DFID,DFID,25/11/2014,Aid Programme - Aid and Trade Provision ,Asia  Caribbean and Overseas Territories ,ECGD ACCOUNT ,108242-101 ,"9,224.56",
DFID,DFID,24/11/2014,Project delivery costs – supplier services ,Western Asia Division ,A.F. Ferguson & Co Lahore ,202697-109 ,"7,283.67",
DFID,DFID,03/11/2014,Project delivery costs – supplier services ,Western Asia Division ,Avicenna Consulting (Pvt) Ltd ,202697-109 ,"1,745.05",
DFID,DFID,27/11/2014,Project delivery costs – supplier services ,Western Asia Division ,Supplier Name withheld ,203951-101 ,"71,507.14",
DFID,DFID,03/11/2014,Project delivery costs – supplier services ,Western Asia Division ,Supplier Name withheld ,203951-101 ,"131,149.80",
DFID,DFID,24/11/2014,Aid Programme - Accountable Grant Payments ,East and Central Africa ,MSF SWITZERLAND ,204852-103 ,"1,000,000.00",
DFID,DFID,25/11/2014,Project delivery costs – supplier services ,West and Southern Africa ,LTS International Ltd. ,201196-108 ,"49,243.93",
DFID,DFID,28/11/2014,Project delivery costs – supplier services ,West and Southern Africa ,Ilala Crest Lodge ,203824-101 ,717.85,
DFID,DFID,18/11/2014,Aid Programme - Joint programme contribution ,West and Southern Africa ,UNDP MULTI-PARTNER TRUST FUND OFFICE (USD) ACCOUNT ,204013-101 ,"250,000.00",
DFID,DFID,24/11/2014,Project delivery costs – supplier services ,Western Asia Division ,Sidat Hyder Morshed ,202378-103 ,"7,810.83",
DFID,DFID,06/11/2014,Aid Programme - Accountable Grant Payments ,Regional Directorate ,Riders for Health ,204838-112 ,"30,000.00",
DFID,DFID,13/11/2014,Aid Programme - Accountable Grant Payments ,Regional Directorate ,Sierra Leone War Trust for Children (SLWT) ,204890-109 ,"20,850.00",
DFID,DFID,14/11/2014,Aid Programme - Accountable Grant Payments ,Communications Division ,BRITISH COUNCIL ,203378-101 ,"1,061,314.00",
DFID,DFID,04/11/2014,Aid Programme - Voluntary contributions ,Asia  Caribbean and Overseas Territories ,International Monetary Fund (GBP) ,203919-104 ,"226,560.00",
DFID,DFID,05/11/2014,Aid Programme - Voluntary contributions ,Asia  Caribbean and Overseas Territories ,CARICOM SECRETARIAT ,203353-101 ,"31,877.00",
DFID,DFID,25/11/2014,Aid Programme - Accountable Grant Payments ,West and Southern Africa ,Life & Peace Institute ,202416-117 ,"158,868.00",
DFID,DFID,13/11/2014,Project delivery costs – supplier services ,East and Central Africa ,Oloya Aliker Tebere ,200250-106 ,"1,274.42",
DFID,DFID,05/11/2014,Project delivery costs – supplier services ,East and Central Africa ,Acak Paul Herimos ,200250-106 ,673.03,
DFID,DFID,21/11/2014,Fund monies to be managed and dispersed by the supplier ,East and Central Africa ,IPA-International Procurement Agency (BV) ,202693-104 ,"16,724.67",
DFID,DFID,24/11/2014,Fund monies to be managed and dispersed by the supplier ,East and Central Africa ,IPA-International Procurement Agency (BV) ,202693-104 ,944.86,
DFID,DFID,10/11/2014,Project delivery costs – supplier services ,East and Central Africa ,Office of Governor BOU ,200779-111 ,"10,000.00",
DFID,DFID,24/11/2014,Vehicle Purchase Costs ,East and Central Africa ,Honda Uganda Ltd ,200779-112 ,"47,671.19",
DFID,DFID,03/11/2014,Aid Programme - Accountable Grant Payments ,Asia  Caribbean and Overseas Territories ,MDRI-CESD ,203601-109 ,"61,864.22",
DFID,DFID,28/11/2014,Aid Programme - Accountable Grant Payments ,Asia  Caribbean and Overseas Territories ,Revenue Watch Institute ,203601-111 ,"79,611.58",
DFID,DFID,13/11/2014,Project delivery costs – supplier services ,East and Central Africa ,ADAM SMITH INTERNATIONAL  LTD ,202693-102 ,"13,081.05",
DFID,DFID,11/11/2014,Project delivery costs – supplier services ,Regional Directorate ,F Soufan & Sons ,204876-101 ,"8,848.01",
DFID,DFID,07/11/2014,Project delivery costs – supplier services ,Regional Directorate ,Samsung World ,204876-101 ,848.09,
DFID,DFID,11/11/2014,Project delivery costs – supplier services ,Regional Directorate ,F Soufan & Sons ,204876-101 ,"8,992.76",
DFID,DFID,13/11/2014,Project delivery costs – supplier services ,Regional Directorate ,National Revenue Authority (SLL) ,204876-101 ,638.90,
DFID,DFID,04/11/2014,Project delivery costs – supplier services ,Regional Directorate ,Rapid International SL (Ltd) ,204890-101 ,"1,201.47",
DFID,DFID,07/11/2014,Project delivery costs – supplier services ,Regional Directorate ,Samsung World ,204876-101 ,848.09,
DFID,DFID,26/11/2014,Project delivery costs – supplier services ,Regional Directorate ,Rapid International SL (Ltd) ,204896-101 ,"1,978.89",
DFID,DFID,04/11/2014,Project delivery costs – supplier services ,Regional Directorate ,Bethel Texiles and General Merchandise ,204896-101 ,"3,446.09",
DFID,DFID,21/11/2014,Project delivery costs – supplier services ,Regional Directorate ,Office Solutions ,204896-101 ,"7,595.26",
DFID,DFID,26/11/2014,Project delivery costs – supplier services ,Regional Directorate ,Bethel Texiles and General Merchandise ,204896-101 ,"3,943.08",
DFID,DFID,04/11/2014,Project delivery costs – supplier services ,Regional Directorate ,Hema Trading ,204896-101 ,"34,798.75",
DFID,DFID,21/11/2014,Project delivery costs – supplier services ,Regional Directorate ,F Soufan & Sons ,204896-101 ,"14,776.84",
DFID,DFID,24/11/2014,Aid Programme - Accountable Grant Payments ,Regional Directorate ,Finnah Holding Company Ltd ,204896-101 ,"85,923.72",
DFID,DFID,04/11/2014,Project delivery costs – supplier services ,Regional Directorate ,Rapid International SL (Ltd) ,204896-101 ,"1,342.82",
DFID,DFID,13/11/2014,Project delivery costs – supplier services ,Regional Directorate ,Echo Construction Company ,204896-101 ,"56,611.75",
DFID,DFID,17/11/2014,Project delivery costs – supplier services ,Regional Directorate ,F Soufan & Sons ,204896-101 ,"32,569.36",
DFID,DFID,21/11/2014,Project delivery costs – supplier services ,Regional Directorate ,Raju's Electricals ,204896-101 ,"2,685.63",
DFID,DFID,04/11/2014,Project delivery costs – supplier services ,Regional Directorate ,The Country Lodge Complex ,204890-103 ,"2,813.98",
DFID,DFID,04/11/2014,Project delivery costs – supplier services ,Regional Directorate ,The Country Lodge Complex ,204890-103 ,"2,529.02",
DFID,DFID,04/11/2014,Project delivery costs – supplier services ,Regional Directorate ,The Country Lodge Complex ,204890-103 ,"3,098.94",
DFID,DFID,18/11/2014,Project delivery costs – supplier services ,Regional Directorate ,Fulla Musu Conteh ,204890-109 ,"7,016.89",
DFID,DFID,04/11/2014,Project delivery costs – supplier services ,Regional Directorate ,The Country Lodge Complex ,204876-105 ,"2,137.20",
DFID,DFID,20/11/2014,Project delivery costs – supplier services ,Regional Directorate ,Job Search Dollar ,204890-109 ,"11,138.35",
DFID,DFID,26/11/2014,Project delivery costs – supplier services ,Regional Directorate ,National Stadium Management ,204890-109 ,"25,782.08",
DFID,DFID,13/11/2014,Project delivery costs – supplier services ,Regional Directorate ,Fulla Musu Conteh ,204890-109 ,"7,016.89",
DFID,DFID,26/11/2014,Project delivery costs – supplier services ,Regional Directorate ,Job Search Dollar ,204890-109 ,"8,997.47",
DFID,DFID,13/11/2014,Project delivery costs – supplier services ,Regional Directorate ,Fulla Musu Conteh ,204890-109 ,"10,114.35",
DFID,DFID,13/11/2014,Project delivery costs – supplier services ,Regional Directorate ,Job Search Dollar ,204890-109 ,"8,745.41",
DFID,DFID,05/11/2014,Project delivery costs – supplier services ,Regional Directorate ,Fama Enterprises ,204876-103 ,"9,541.07",
DFID,DFID,13/11/2014,Project delivery costs – supplier services ,Regional Directorate ,Fama Enterprises ,204876-103 ,"7,915.55",
DFID,DFID,13/11/2014,Project delivery costs – supplier services ,Regional Directorate ,Fulla Musu Conteh ,204890-109 ,"7,010.86",
DFID,DFID,06/11/2014,Project delivery costs – supplier services ,Regional Directorate ,Job Search Dollar ,204890-109 ,"10,409.31",
DFID,DFID,21/11/2014,Hotels - Accommodation only ,East and Central Africa ,Golden Jubilee Limited (USD) ,202551-103 ,969.84,
DFID,DFID,07/11/2014,Hostile Environment Training ,Internal Audit ,Pilgrims Group ,100121-101 ,675.13,
DFID,DFID,19/11/2014,Air fares ,Policy Division ,Corporate Travel Provider ,202396-101 ,675.56,
DFID,DFID,26/11/2014,Project delivery costs – supplier services ,West and Southern Africa ,Henry Machina ,201980-102 ,"2,531.34",
DFID,DFID,04/11/2014,Courier & Bag Services ,East and Central Africa ,FCO SERVICES ,100211-101 ,766.96,
DFID,DFID,11/11/2014,Hotels - Accommodation only ,Policy Division ,ASIAN HOTELS (NORTH) LIMITED ,100277-102 ,685.15,
DFID,DFID,20/11/2014,Air fares ,Western Asia Division ,Corporate Travel Provider ,101601-110 ,687.12,
DFID,DFID,13/11/2014,Contract & Agency Staff ,Finance and Corporate Performance Division ,Hays Specialist Recruitment Ltd ,100201-101 ,687.38,
DFID,DFID,20/11/2014,Training - Travel & Subsistence ,East and Central Africa ,Bon Voyage Travel Centre Ltd(USD) ,101634-101 ,687.58,
DFID,DFID,19/11/2014,Air fares ,Asia  Caribbean and Overseas Territories ,Corporate Travel Provider ,101636-101 ,688.28,
DFID,DFID,20/11/2014,Air fares ,East and Central Africa ,Corporate Travel Provider ,202594-101 ,688.52,
DFID,DFID,26/11/2014,Conferences  Seminars & Meeting/Event Resource ,Research and Evidence Division ,Thomas David Waite ,100039-108 ,689.02,
DFID,DFID,20/11/2014,Hotels - Accommodation only ,Middle East  Humanitarian & Security Division ,Corporate Travel Provider ,101619-101 ,689.59,
DFID,DFID,04/11/2014,Professional member subscriptions ,Group Operations ,Reed Elsevier (UK) Ltd T/A LN ,100270-102 ,690.00,
DFID,DFID,20/11/2014,Air fares ,West and Southern Africa ,Corporate Travel Provider ,101631-101 ,690.03,
DFID,DFID,25/11/2014,Hotels - Accommodation only ,Middle East  Humanitarian & Security Division ,Recipient name withheld ,101619-101 ,690.86,
DFID,DFID,19/11/2014,Air fares ,Regional Directorate ,Corporate Travel Provider ,101625-109 ,691.40,
DFID,DFID,20/11/2014,Air fares ,Research and Evidence Division ,Corporate Travel Provider ,202392-107 ,691.66,
DFID,DFID,19/11/2014,Hotels - Accommodation only ,Asia  Caribbean and Overseas Territories ,Corporate Travel Provider ,101615-101 ,691.85,
DFID,DFID,13/11/2014,Hotels - Accommodation only ,Growth and Resilience Division ,Recipient name withheld ,202373-101 ,694.32,
DFID,DFID,20/11/2014,Air fares ,Middle East  Humanitarian & Security Division ,Corporate Travel Provider ,201701-101 ,694.56,
DFID,DFID,11/11/2014,Mobile telephones & accessories ,West and Southern Africa ,Airtel (SL) Ltd ,101629-101 ,695.44,
DFID,DFID,20/11/2014,Air fares ,West and Southern Africa ,Corporate Travel Provider ,101613-101 ,697.16,
DFID,DFID,12/11/2014,Project delivery costs – supplier services ,Asia  Caribbean and Overseas Territories ,Crown Agents Bank ,201645-105 ,"105,235.47",
DFID,DFID,19/11/2014,Air fares ,West and Southern Africa ,Corporate Travel Provider ,101620-101 ,698.00,
DFID,DFID,19/11/2014,Mobile telephones & accessories ,West and Southern Africa ,Airtel (SL) Ltd ,101629-101 ,698.35,
DFID,DFID,11/11/2014,Hotels - Accommodation only ,West and Southern Africa ,Supplier Name withheld ,100152-105 ,698.53,
DFID,DFID,14/11/2014,Hotels - Accommodation only ,International Finance Division ,Recipient name withheld ,100111-101 ,699.88,
DFID,DFID,11/11/2014,Hotels - Accommodation only ,Finance and Corporate Performance Division ,Recipient name withheld ,202438-101 ,699.89,
DFID,DFID,27/11/2014,Air fares ,West and Southern Africa ,Premier Travel ,101638-101 ,701.45,
DFID,DFID,05/11/2014,Vehicle Repairs & Maintenance ,Middle East  Humanitarian & Security Division ,Foreign & Commonwealth Office ,100303-101 ,702.03,
DFID,DFID,20/11/2014,Air fares ,West and Southern Africa ,Corporate Travel Provider ,101610-101 ,702.36,
DFID,DFID,19/11/2014,Air fares ,International Relations Division ,Corporate Travel Provider ,100262-101 ,702.42,
DFID,DFID,20/11/2014,Air fares ,West and Southern Africa ,Corporate Travel Provider ,101618-101 ,702.66,
DFID,DFID,19/11/2014,Air fares ,East and Central Africa ,Corporate Travel Provider ,101628-101 ,704.98,
DFID,DFID,07/11/2014,Air fares ,East and Central Africa ,BCD Travel (USD) ,101630-101 ,706.88,
DFID,DFID,26/11/2014,Aid Programme - Accountable Grant Payments ,East and Central Africa ,AGRA IN AFRICA (NO2) ,203574-107 ,"231,468.00",
DFID,DFID,21/11/2014,Aid Programme - Pooled/Basket funding ,East and Central Africa ,FOREIGN INVESTMENT ADVISORY SERVICE ,203348-105 ,"1,000,000.00",
DFID,DFID,12/11/2014,Project delivery costs – supplier services ,East and Central Africa ,ADAM SMITH INTERNATIONAL  LTD ,202698-106 ,"228,600.24",
DFID,DFID,20/11/2014,Air fares ,Western Asia Division ,Corporate Travel Provider ,101601-110 ,708.90,
DFID,DFID,19/11/2014,Air fares ,West and Southern Africa ,Corporate Travel Provider ,100148-101 ,708.90,
DFID,DFID,10/11/2014,Vehicle Repairs & Maintenance ,West and Southern Africa ,De Bright Auto Link Nig Ltd ,101622-105 ,709.38,
DFID,DFID,12/11/2014,Hotels - Accommodation only ,Finance and Corporate Performance Division ,Recipient name withheld ,202437-101 ,711.10,
DFID,DFID,27/11/2014,Project delivery costs – supplier services ,West and Southern Africa ,BRITISH COUNCIL ,203816-103 ,"300,000.00",
DFID,DFID,06/11/2014,Contract Catering Services ,West and Southern Africa ,LE CERCLE GOURMAND ,203823-106 ,874.55,
DFID,DFID,12/11/2014,Project delivery costs – supplier services ,West and Southern Africa ,Odete da Graca Semiao ,201791-103 ,"3,920.39",
DFID,DFID,20/11/2014,Project delivery costs – supplier services ,Policy Division ,PRICEWATERHOUSECOOPERS ,202604-103 ,"110,696.10",
DFID,DFID,05/11/2014,Project delivery costs – supplier services ,Middle East  Humanitarian & Security Division ,PARTY INGREDIENTS LTD ,203939-103 ,799.92,
DFID,DFID,20/11/2014,Air fares ,Human Resources ,Corporate Travel Provider ,100266-101 ,711.56,
DFID,DFID,06/11/2014,Training - Travel & Subsistence ,East and Central Africa ,Simbatravelcare Limited ,101635-101 ,712.30,
DFID,DFID,26/11/2014,Hotels - Accommodation only ,Policy Division ,Recipient name withheld ,100274-111 ,712.43,
DFID,DFID,24/11/2014,Hotels - Accommodation only ,Regional Directorate ,Recipient name withheld ,204891-101 ,712.81,
DFID,DFID,20/11/2014,Air fares ,Middle East  Humanitarian & Security Division ,Corporate Travel Provider ,201701-101 ,714.56,
DFID,DFID,20/11/2014,Hotels - Accommodation only ,East and Central Africa ,Corporate Travel Provider ,101612-101 ,715.32,
DFID,DFID,12/11/2014,Auditors Remuneration & Expenses - Cash ,West and Southern Africa ,ERNST  & YOUNG Limitada ,103993-102 ,"3,938.20",
DFID,DFID,04/11/2014,Aid Programme - Accountable Grant Payments ,Communications Division ,SolarAid ,203559-107 ,"195,167.00",
DFID,DFID,05/11/2014,Project delivery costs – supplier services ,Communications Division ,INTERN DEVEL EDUC ASSOC OF SCOTLAND ,201469-105 ,"79,315.00",
DFID,DFID,19/11/2014,Hotels - Accommodation only ,Regional Directorate ,Corporate Travel Provider ,204833-101 ,716.55,
DFID,DFID,19/11/2014,Air fares ,East and Central Africa ,Corporate Travel Provider ,101633-101 ,717.65,
DFID,DFID,05/11/2014,Project delivery costs – supplier services ,West and Southern Africa ,Foreign & Commonwealth Office ,101622-106 ,717.79,
DFID,DFID,04/11/2014,Aid Programme - Humanitarian Material Relief Assistance and Services ,Middle East  Humanitarian & Security Division ,UNOPS - support for Access Cell unit ,202400-101 ,"500,000.00",
DFID,DFID,05/11/2014,Project delivery costs – supplier services ,Policy Division ,ECOFYS UK LTD ,203134-101 ,"12,360.00",
DFID,DFID,10/11/2014,Aid Programme - Accountable Grant Payments ,Policy Division ,UNOPS ,203830-102 ,"663,333.00",
DFID,DFID,20/11/2014,Project delivery costs – supplier services ,West and Southern Africa ,Crown Agents Bank ,200469-110 ,"76,853.84",
DFID,DFID,19/11/2014,Hotels - Accommodation only ,West and Southern Africa ,Corporate Travel Provider ,101629-101 ,718.61,
DFID,DFID,18/11/2014,Hotels - Accommodation only ,East and Central Africa ,Recipient name withheld ,101635-101 ,719.40,
DFID,DFID,18/11/2014,Building Plant - Air Conditioners ,East and Central Africa ,Centurion Company Limited ,101634-101 ,721.76,
DFID,DFID,07/11/2014,Contract & Agency Staff ,Group Operations ,Anderson Knight Ltd ,100270-104 ,721.93,
DFID,DFID,09/11/2014,Project delivery costs – supplier services ,Western Asia Division ,Supplier Name withheld ,201098-102 ,"232,326.94",
DFID,DFID,10/11/2014,Contract & Agency Staff ,Group Operations ,Anderson Knight Ltd ,100270-104 ,721.93,
DFID,DFID,27/11/2014,Vehicle Repairs & Maintenance ,Asia  Caribbean and Overseas Territories ,Delta Motor Works Pvt. Ltd ,100150-103 ,723.71,
DFID,DFID,24/11/2014,Hotels - Accommodation only ,East and Central Africa ,GOLF COURSE INVESTMENTS LTD ,100234-101 ,723.76,
DFID,DFID,06/11/2014,Training Providers/Facilitation Services ,International Finance Division ,Osteopaths For Industry Ltd. ,202259-101 ,724.78,
DFID,DFID,19/11/2014,Storage & Distribution costs ,West and Southern Africa ,PICKFORDS LTD ,101629-101 ,725.40,
DFID,DFID,19/11/2014,Air fares ,Policy Division ,Corporate Travel Provider ,202419-106 ,725.83,
DFID,DFID,05/11/2014,Facilities Management payments ,Asia  Caribbean and Overseas Territories ,Foreign & Commonwealth Office ,101605-101 ,726.05,
DFID,DFID,10/11/2014,Air fares ,Asia  Caribbean and Overseas Territories ,Saimon Overseas Ltd ,101603-101 ,726.28,
DFID,DFID,20/11/2014,Air fares ,West and Southern Africa ,Corporate Travel Provider ,101610-101 ,726.38,
DFID,DFID,19/11/2014,Air fares ,West and Southern Africa ,Corporate Travel Provider ,101620-101 ,727.00,
DFID,DFID,28/11/2014,Books & Publications ,East and Central Africa ,Gulf Africa Limited ,100234-101 ,729.72,
DFID,DFID,05/11/2014,Hotels - Accommodation only ,International Finance Division ,Recipient name withheld ,202432-101 ,729.96,
DFID,DFID,14/11/2014,Air fares ,East and Central Africa ,BCD Travel (USD) ,101630-101 ,732.21,
DFID,DFID,06/11/2014,Storage & Distribution costs ,West and Southern Africa ,PICKFORDS LTD ,101620-101 ,734.00,
DFID,DFID,20/11/2014,Air fares ,Asia  Caribbean and Overseas Territories ,Jaya Travels & Tours Ltd ,101621-101 ,734.07,
DFID,DFID,20/11/2014,Air fares ,East and Central Africa ,Corporate Travel Provider ,101635-101 ,735.86,
DFID,DFID,11/11/2014,Hotels - Accommodation only ,West and Southern Africa ,Supplier Name withheld ,101622-105 ,737.34,
DFID,DFID,13/11/2014,Hotels - Accommodation only ,West and Southern Africa ,Supplier Name withheld ,101622-105 ,737.34,
DFID,DFID,20/11/2014,Air fares ,Regional Directorate ,Corporate Travel Provider ,101625-109 ,740.40,
DFID,DFID,20/11/2014,Air fares ,East and Central Africa ,Corporate Travel Provider ,202594-101 ,742.90,
DFID,DFID,11/11/2014,CPD Conferences ,Asia  Caribbean and Overseas Territories ,Foreign & Commonwealth Office ,101604-101 ,746.25,
DFID,DFID,20/11/2014,Training - Travel & Subsistence ,Asia  Caribbean and Overseas Territories ,Jaya Travels & Tours Pvt Ltd. (US$) ,101621-108 ,746.68,
DFID,DFID,25/11/2014,Training - Travel & Subsistence ,East and Central Africa ,SATGURU TOUR AND TRAVEL,101628-101 ,747.89,
DFID,DFID,20/11/2014,Air fares ,International Relations Division ,Corporate Travel Provider ,100262-103 ,748.88,
DFID,DFID,14/11/2014,Training - Course Fees ,West and Southern Africa ,The APM Group Limited ,101618-101 ,750.00,
DFID,DFID,13/11/2014,Government Car Scheme UK ,Top Management Group ,FCO SERVICES ,100232-102 ,753.73,
DFID,DFID,25/11/2014,other information and communication technologies ,Business Solutions Division Level ,NAYATEL (PVT) LTD ,200002-121 ,754.73,
DFID,DFID,20/11/2014,Air fares ,Western Asia Division ,Corporate Travel Provider ,101601-110 ,755.74,
DFID,DFID,19/11/2014,Training - Travel & Subsistence ,East and Central Africa ,Corporate Travel Provider ,100227-101 ,756.82,
DFID,DFID,20/11/2014,Training - Travel & Subsistence ,East and Central Africa ,Bon Voyage Travel Centre Ltd(USD) ,101634-101 ,756.94,
DFID,DFID,19/11/2014,Air fares ,East and Central Africa ,Corporate Travel Provider ,101625-102 ,757.46,
DFID,DFID,19/11/2014,Air fares ,Asia  Caribbean and Overseas Territories ,Corporate Travel Provider ,201739-101 ,758.14,
DFID,DFID,20/11/2014,UK Staff overseas - Flexi Travel Allowance ,Asia  Caribbean and Overseas Territories ,Corporate Travel Provider ,101604-101 ,759.94,
DFID,DFID,20/11/2014,UK Staff overseas - Flexi Travel Allowance ,Asia  Caribbean and Overseas Territories ,Corporate Travel Provider ,101604-101 ,759.94,
DFID,DFID,26/11/2014,Hotels - Accommodation only ,East and Central Africa ,Recipient name withheld ,101625-106 ,762.00,
DFID,DFID,25/11/2014,Repairs  Maint  Alter - Property & Constrct. Services ,West and Southern Africa ,Vasco Jose Mucavele ,101620-101 ,764.16,
DFID,DFID,19/11/2014,Air fares ,East and Central Africa ,Bon Voyage Travel Centre Ltd(USD) ,101625-102 ,767.19,
DFID,DFID,20/11/2014,Air fares ,Policy Division ,Corporate Travel Provider ,100191-101 ,768.88,
DFID,DFID,24/11/2014,Hotels - Accommodation only ,Policy Division ,Recipient name withheld ,100274-111 ,769.36,
DFID,DFID,12/11/2014,Vehicle Repairs & Maintenance ,West and Southern Africa ,Toyota de Mocambique  SARL ,101620-101 ,772.85,
DFID,DFID,20/11/2014,Air fares ,Communications Division ,Corporate Travel Provider ,100197-101 ,773.10,
DFID,DFID,19/11/2014,Air fares ,Regional Directorate ,Corporate Travel Provider ,101625-109 ,773.80,
DFID,DFID,19/11/2014,Hotels - Accommodation only ,Middle East  Humanitarian & Security Division ,Recipient name withheld ,203944-106 ,774.42,
DFID,DFID,19/11/2014,Air fares ,International Finance Division ,Corporate Travel Provider ,100111-101 ,775.70,
DFID,DFID,20/11/2014,Air fares ,East and Central Africa ,Corporate Travel Provider ,101633-101 ,776.15,
DFID,DFID,07/11/2014,Contract Catering Services,Middle East  Humanitarian & Security Division ,Foreign & Commonwealth Office ,201705-101 ,776.49,
DFID,DFID,27/11/2014,Hotels - Accommodation only ,Western Asia Division ,Foreign & Commonwealth Office ,204791-101 ,778.42,
DFID,DFID,06/11/2014,Repairs  Maint  Alter - Cleaning Costs ,East and Central Africa ,Dream Clean Limited ,101635-101 ,780.00,
DFID,DFID,10/11/2014,Project delivery costs – supplier services ,Group Operations ,EVAC+CHAIR INTERNATIONAL LTD ,100106-101 ,780.00,
DFID,DFID,20/11/2014,Air fares ,Middle East  Humanitarian & Security Division ,Corporate Travel Provider ,201701-101 ,781.93,
DFID,DFID,07/11/2014,Hotels - Accommodation only ,Research and Evidence Division ,Recipient name withheld ,203874-102 ,783.34,
DFID,DFID,19/11/2014,Air fares ,East and Central Africa ,Corporate Travel Provider ,101625-104 ,783.70,
DFID,DFID,19/11/2014,Air fares ,Regional Directorate ,Corporate Travel Provider ,101625-109 ,785.54,
DFID,DFID,27/11/2014,Hotels - Accommodation only ,Regional Directorate ,Foreign & Commonwealth Office ,204833-101 ,786.68,
DFID,DFID,06/11/2014,Office Supplies ,West and Southern Africa ,Papeterie Alpha ,100068-101 ,787.12,
DFID,DFID,26/11/2014,Hotels - Accommodation only ,Policy Division ,Recipient name withheld ,100274-111 ,787.33,
DFID,DFID,19/11/2014,Air fares ,West and Southern Africa ,Corporate Travel Provider ,101620-101 ,790.00,
DFID,DFID,13/11/2014,Electricity ,West and Southern Africa ,Electricidade de Mocambique ,101620-101 ,793.82,
DFID,DFID,19/11/2014,Hotels - Accommodation only ,Middle East  Humanitarian & Security Division ,Recipient name withheld ,203944-106 ,794.05,
DFID,DFID,11/11/2014,Hardware - networking equipment ,West and Southern Africa ,Tiwai Memory Masters ,101629-101 ,797.21,
DFID,DFID,07/11/2014,Gas ,Middle East  Humanitarian & Security Division ,Foreign & Commonwealth Office ,201705-101 ,797.51,
DFID,DFID,07/11/2014,Hotels - Accommodation only ,East and Central Africa ,Recipient name withheld ,101634-101 ,798.33,
DFID,DFID,19/11/2014,Air fares ,Top Management Group ,Corporate Travel Provider ,100232-106 ,799.00,
DFID,DFID,19/11/2014,Air fares ,Top Management Group ,Corporate Travel Provider ,100232-106 ,799.00,
DFID,DFID,19/11/2014,Air fares ,East and Central Africa ,Corporate Travel Provider ,202594-101 ,799.03,
DFID,DFID,19/11/2014,Air fares ,West and Southern Africa ,Corporate Travel Provider ,101620-101 ,799.86,
DFID,DFID,13/11/2014,Water charges ,West and Southern Africa ,ETS Abeer ,100068-101 ,806.69,
DFID,DFID,20/11/2014,Air fares ,Top Management Group ,Corporate Travel Provider ,100232-106 ,806.88,
DFID,DFID,20/11/2014,Air fares ,Top Management Group ,Corporate Travel Provider ,100232-106 ,806.88,
DFID,DFID,16/11/2014,Courier & Bag Services ,West and Southern Africa ,FCO SERVICES ,101620-101 ,807.87,
DFID,DFID,19/11/2014,Legal costs ,Business Change and Strategy Division ,TREASURY SOLICITORS CASH ACC ,100225-101 ,810.00,
DFID,DFID,20/11/2014,Air fares ,West and Southern Africa ,Corporate Travel Provider ,101613-101 ,810.20,
DFID,DFID,24/11/2014,Repairs  Maint  Alter - Facilities Management payments ,Group Operations ,MITIE Technical Facilities Management Ltd ,203717-101 ,810.24,
DFID,DFID,20/11/2014,Air fares ,Internal Audit ,Corporate Travel Provider ,100121-101 ,811.75,
DFID,DFID,20/11/2014,Air fares ,Internal Audit ,Corporate Travel Provider ,100121-101 ,811.75,
DFID,DFID,19/11/2014,Air fares ,Policy Division ,Corporate Travel Provider ,100277-102 ,812.54,
DFID,DFID,19/11/2014,Air fares ,Top Management Group ,Corporate Travel Provider ,100232-108 ,812.88,
DFID,DFID,19/11/2014,Air fares ,East and Central Africa ,Corporate Travel Provider ,101625-102 ,814.40,
DFID,DFID,19/11/2014,Hotels - Accommodation only ,Research and Evidence Division ,Recipient name withheld ,202392-107 ,814.55,
DFID,DFID,19/11/2014,Air fares ,West and Southern Africa ,Corporate Travel Provider ,101610-101 ,814.78,
DFID,DFID,14/11/2014,Hotels - Accommodation only ,Regional Directorate ,Recipient name withheld ,101625-109 ,814.80,
DFID,DFID,28/11/2014,Hotels - Accommodation only ,Regional Directorate ,Recipient name withheld ,101625-109 ,814.80,
DFID,DFID,24/11/2014,Training Providers/Facilitation Services ,International Relations Division ,Capita  Business Services ,202617-101 ,821.00,
DFID,DFID,18/11/2014,Building Plant - Air Conditioners ,East and Central Africa ,Centurion Company Limited ,101634-101 ,823.11,
DFID,DFID,19/11/2014,Air fares ,Finance and Corporate Performance Division ,Corporate Travel Provider ,204662-101 ,823.46,
DFID,DFID,19/11/2014,Training - Travel & Subsistence ,East and Central Africa ,Bon Voyage Travel Centre Ltd(USD) ,101634-101 ,826.30,
DFID,DFID,13/11/2014,Electricity ,East and Central Africa ,UMEME Ltd ,101635-101 ,826.37,
DFID,DFID,20/11/2014,Air fares ,Regional Directorate ,Corporate Travel Provider ,101625-109 ,826.88,
DFID,DFID,13/11/2014,Telephone Usage & services ,East and Central Africa ,MTN Uganda Ltd ,101635-101 ,827.01,
DFID,DFID,17/11/2014,Electricity ,West and Southern Africa ,Abuja Electricity Distribution Company ,101622-105 ,836.25,
DFID,DFID,14/11/2014,Hotels - Accommodation only ,Research and Evidence Division ,Recipient name withheld ,202392-107 ,836.86,
DFID,DFID,24/11/2014,Hotels - Accommodation only ,Policy Division ,Recipient name withheld ,100274-111 ,839.32,
DFID,DFID,19/11/2014,Air fares ,Asia  Caribbean and Overseas Territories ,Corporate Travel Provider ,204053-101 ,839.52,
DFID,DFID,04/11/2014,Taxi costs ,Business Solutions Division Level ,d&m taxis ,200001-101 ,840.00,
DFID,DFID,11/11/2014,CPD Conferences ,Asia  Caribbean and Overseas Territories ,Foreign & Commonwealth Office ,101604-101 ,840.22,
DFID,DFID,20/11/2014,Hotels - Accommodation only ,West and Southern Africa ,Corporate Travel Provider ,101618-101 ,841.07,
DFID,DFID,20/11/2014,Hotels - Accommodation only ,West and Southern Africa ,Corporate Travel Provider ,101618-101 ,841.14,
DFID,DFID,20/11/2014,Hotels - Accommodation only ,Asia  Caribbean and Overseas Territories ,Corporate Travel Provider ,101621-108 ,841.14,
DFID,DFID,20/11/2014,Air fares ,Communications Division ,Corporate Travel Provider ,100197-101 ,842.50,
DFID,DFID,20/11/2014,Air fares ,Western Asia Division ,Corporate Travel Provider ,101601-110 ,843.14,
DFID,DFID,05/11/2014,Telephone Usage & services ,West and Southern Africa ,MTN Nigeria Communications Ltd ,101622-107 ,844.88,
DFID,DFID,20/11/2014,Air fares ,Regional Directorate ,Corporate Travel Provider ,101625-109 ,845.56,
DFID,DFID,20/11/2014,Air fares ,West and Southern Africa ,Corporate Travel Provider ,101618-101 ,846.36,
DFID,DFID,19/11/2014,Air fares ,East and Central Africa ,Corporate Travel Provider ,202594-101 ,848.06,
DFID,DFID,06/11/2014,Storage & Distribution costs ,West and Southern Africa ,PICKFORDS LTD ,101620-101 ,848.67,
DFID,DFID,19/11/2014,Cleaning Costs ,East and Central Africa ,IKONDERA Co Ltd,101628-101 ,848.88,
DFID,DFID,20/11/2014,Air fares ,Western Asia Division ,Corporate Travel Provider ,101601-110 ,850.12,
DFID,DFID,19/11/2014,Air fares ,East and Central Africa ,Corporate Travel Provider ,202594-101 ,852.66,
DFID,DFID,25/11/2014,Telephone Usage & services ,Western Asia Division ,Telenor Pakistan ,101624-101 ,854.11,
DFID,DFID,13/11/2014,Hotels - Accommodation only ,Research and Evidence Division ,Recipient name withheld ,202392-102 ,857.64,
DFID,DFID,12/11/2014,FCO shared service charges ,West and Southern Africa ,CHARLES KENDALL & PARTNERS LIMITED (PROCUREMENT) ,101618-101 ,859.74,
DFID,DFID,25/11/2014,Training Providers/Facilitation Services ,East and Central Africa ,BRITISH COUNCIL ,101628-101 ,863.48,
DFID,DFID,20/11/2014,Air fares ,Growth and Resilience Division ,Corporate Travel Provider ,100276-101 ,867.96,
DFID,DFID,19/11/2014,Air fares ,Policy Division ,Corporate Travel Provider ,100277-102 ,869.44,
DFID,DFID,13/11/2014,Hostile Environment Training ,West and Southern Africa ,Jeffery Travels ,101610-101 ,869.72,
DFID,DFID,13/11/2014,Hostile Environment Training ,West and Southern Africa ,Jeffery Travels ,101610-101 ,869.72,
DFID,DFID,03/11/2014,Electricity ,West and Southern Africa ,ESCOM ,101618-101 ,869.93,
DFID,DFID,05/11/2014,Project delivery costs – supplier services ,Asia  Caribbean and Overseas Territories ,Foreign & Commonwealth Office ,202403-101 ,870.78,
DFID,DFID,28/11/2014,Oil - Other Utilities ,East and Central Africa ,Samardzic Bakir ,101634-101 ,874.19,
DFID,DFID,19/11/2014,Air fares ,Western Asia Division ,Corporate Travel Provider ,101601-110 ,875.60,
DFID,DFID,20/11/2014,Air fares ,Regional Directorate ,Corporate Travel Provider ,101625-109 ,875.98,
DFID,DFID,20/11/2014,Air fares ,East and Central Africa ,Corporate Travel Provider ,202594-101 ,876.46,
DFID,DFID,19/11/2014,Air fares ,Top Management Group ,Corporate Travel Provider ,100232-105 ,877.46,
DFID,DFID,07/11/2014,Air fares ,Research and Evidence Division ,BCD Travel (USD) ,202392-101 ,879.37,
DFID,DFID,14/11/2014,Hotels - Accommodation only ,East and Central Africa ,BCD Travel (USD) ,101625-106 ,883.44,
DFID,DFID,14/11/2014,Hotels - Accommodation only ,Research and Evidence Division ,BCD Travel (USD) ,202392-111 ,883.44,
DFID,DFID,14/11/2014,Hotels - Accommodation only ,Research and Evidence Division ,BCD Travel (USD) ,203874-101 ,883.44,
DFID,DFID,27/11/2014,Hotels - Accommodation only ,East and Central Africa ,Recipient name withheld ,101612-101 ,884.00,
DFID,DFID,13/11/2014,Air fares ,West and Southern Africa ,Harvey World Travel Centurion ,101631-101 ,884.37,
DFID,DFID,19/11/2014,Training - Travel & Subsistence ,East and Central Africa ,Bon Voyage Travel Centre Ltd(USD) ,101634-101 ,886.61,
DFID,DFID,21/11/2014,Training - Course Fees ,Finance and Corporate Performance Division ,City of Glasgow College ,100201-101 ,890.00,
DFID,DFID,19/11/2014,Air fares ,West and Southern Africa ,Supplier Name withheld ,101622-106 ,890.76,
DFID,DFID,20/11/2014,Air fares ,Growth and Resilience Division ,Corporate Travel Provider ,100276-101 ,894.94,
DFID,DFID,11/11/2014,Hotels - Accommodation only ,East and Central Africa ,Recipient name withheld ,101625-105 ,896.21,
DFID,DFID,19/11/2014,Telephone Usage & services ,East and Central Africa ,British High Commission(Tsh) ,100230-101 ,897.03,
DFID,DFID,21/11/2014,Air fares ,East and Central Africa ,Recipient name withheld ,101616-101 ,898.11,
DFID,DFID,19/11/2014,Repairs  Maint  Alter - Property & Constrct. Services ,West and Southern Africa ,Gylam Nigeria Limited ,100152-110 ,899.32,
DFID,DFID,18/11/2014,Print Services ,Communications Division ,COPYPRINT UK LTD ,100177-101 ,904.80,
DFID,DFID,13/11/2014,Building Plant - Air Conditioners ,West and Southern Africa ,Electro Cool Sprl ,101610-101 ,911.04,
DFID,DFID,20/11/2014,Air fares ,West and Southern Africa ,Corporate Travel Provider ,101638-101 ,911.23,
DFID,DFID,19/11/2014,Air fares ,International Finance Division ,Corporate Travel Provider ,202259-101 ,912.36,
DFID,DFID,20/11/2014,Air fares ,East and Central Africa ,Corporate Travel Provider ,101633-101 ,912.50,
DFID,DFID,04/11/2014,Courier & Bag Services ,West and Southern Africa ,FCO SERVICES ,101629-101 ,912.58,
DFID,DFID,25/11/2014,Medical/Health Services ,West and Southern Africa ,FLIMAS ,100256-101 ,913.73,
DFID,DFID,19/11/2014,Air fares ,West and Southern Africa ,Mukwa Travel and Tours ,101637-102 ,914.58,
DFID,DFID,19/11/2014,Air fares ,East and Central Africa ,Corporate Travel Provider ,101625-103 ,915.53,
DFID,DFID,27/11/2014,Contract & Agency Staff ,Finance and Corporate Performance Division ,Hays Specialist Recruitment Ltd ,100201-101 ,916.51,
DFID,DFID,24/11/2014,Contract & Agency Staff ,Finance and Corporate Performance Division ,Hays Specialist Recruitment Ltd ,100201-101 ,916.51,
DFID,DFID,19/11/2014,Air fares ,Middle East  Humanitarian & Security Division ,Corporate Travel Provider ,202410-101 ,919.36,
DFID,DFID,19/11/2014,Air fares ,West and Southern Africa ,Mukwa Travel and Tours ,101637-102 ,920.02,
DFID,DFID,19/11/2014,Hotels - Accommodation only ,West and Southern Africa ,Corporate Travel Provider ,101629-101 ,920.40,
DFID,DFID,27/11/2014,Air fares ,International Finance Division ,Foreign & Commonwealth Office ,201723-102 ,804.62,
DFID,DFID,05/11/2014,Project delivery costs – supplier services ,International Finance Division ,Foreign & Commonwealth Office ,201723-102 ,998.17,
DFID,DFID,05/11/2014,Repairs  Maintenance and Alterations – Other Building Costs ,International Finance Division ,Foreign & Commonwealth Office ,201723-102 ,"1,060.56",
DFID,DFID,19/11/2014,Air fares ,International Finance Division ,Corporate Travel Provider ,201723-102 ,918.61,
DFID,DFID,07/11/2014,Project delivery costs – supplier services ,International Finance Division ,Foreign & Commonwealth Office ,201723-102 ,738.42,
DFID,DFID,19/11/2014,Air fares ,International Finance Division ,Corporate Travel Provider ,201723-102 ,635.94,
DFID,DFID,05/11/2014,Secure Staff Accommodation ,East and Central Africa ,Foreign & Commonwealth Office ,200842-109 ,"16,636.17",
DFID,DFID,04/11/2014,Aid Programme - Voluntary contributions ,Research and Evidence Division , OECD ,200300-101 ,"500,000.00",
DFID,DFID,11/11/2014,Hotels - Accommodation only ,West and Southern Africa ,Supplier Name withheld ,101622-105 ,921.82,
DFID,DFID,20/11/2014,Air fares ,Regional Directorate ,Corporate Travel Provider ,101625-109 ,921.88,
DFID,DFID,20/11/2014,Air fares ,Policy Division ,Corporate Travel Provider ,101627-101 ,925.17,
DFID,DFID,20/11/2014,Air fares ,Research and Evidence Division ,Corporate Travel Provider ,202392-103 ,926.71,
DFID,DFID,19/11/2014,Air fares ,Western Asia Division ,Corporate Travel Provider ,101601-110 ,928.50,
DFID,DFID,26/11/2014,Vehicle Repairs & Maintenance ,West and Southern Africa ,DAHALI ENTERPRISE ,101613-101 ,931.45,
DFID,DFID,12/11/2014,Gas ,Group Operations ,CORONA ENERGY ,100106-101 ,932.92,
DFID,DFID,05/11/2014,Furniture & Fittings ,Middle East  Humanitarian & Security Division ,Foreign & Commonwealth Office ,101619-101 ,933.15,
DFID,DFID,19/11/2014,Air fares ,West and Southern Africa ,Corporate Travel Provider ,101618-101 ,937.26,
DFID,DFID,07/11/2014,Air fares ,Middle East  Humanitarian & Security Division ,Foreign & Commonwealth Office ,201828-101 ,539.73,
DFID,DFID,25/11/2014,Aid Programme - Accountable Grant Payments ,Research and Evidence Division ,ASSOCIATION OF COMMONWEALTH UNIVER ,201871-101 ,"311,644.00",
DFID,DFID,11/11/2014,Aid Programme - Core contributions ,West and Southern Africa ,UNICEF ,201874-101 ,"4,104,028.00",
DFID,DFID,27/11/2014,Aid Programme - Accountable Grant Payments ,East and Central Africa ,REFUGEE LAW PROJECT ,200250-103 ,"554,136.00",
DFID,DFID,19/11/2014,Aid Programme - Core contributions ,Research and Evidence Division ,BIS ,202038-101 ,"713,870.54",
DFID,DFID,06/11/2014,Project delivery costs – supplier services ,Asia  Caribbean and Overseas Territories ,OPTIONS CONSULTANCY SERVICES LIMITED ,202871-101 ,"115,860.01",
DFID,DFID,18/11/2014,Project delivery costs – supplier services ,Asia  Caribbean and Overseas Territories ,Ranjan B Verma ,202871-102 ,"1,228.10",
DFID,DFID,27/11/2014,Project delivery costs – supplier services ,Western Asia Division ,ADAM SMITH INTERNATIONAL  LTD ,202328-102 ,"372,354.69",
DFID,DFID,19/11/2014,Electricity ,East and Central Africa ,BRITISH HIGH COMMISSION KLA ,101635-101 ,942.20,
DFID,DFID,05/11/2014,Hotels - Accommodation only ,West and Southern Africa ,Recipient name withheld ,101618-101 ,942.37,
DFID,DFID,20/11/2014,Air fares ,Growth and Resilience Division ,Corporate Travel Provider ,202373-101 ,946.94,
DFID,DFID,06/11/2014,Hotels - Accommodation only ,East and Central Africa ,Elgon Terrace Hotel Limited ,101635-101 ,947.19,
DFID,DFID,19/11/2014,Air fares ,Asia  Caribbean and Overseas Territories ,Saimon Overseas Ltd ,101603-102 ,949.88,
DFID,DFID,19/11/2014,Air fares ,West and Southern Africa ,Corporate Travel Provider ,101629-101 ,953.60,
DFID,DFID,19/11/2014,Air fares ,Middle East  Humanitarian & Security Division ,Corporate Travel Provider ,202410-101 ,953.96,
DFID,DFID,19/11/2014,Air fares ,Policy Division ,Corporate Travel Provider ,202402-107 ,953.96,
DFID,DFID,18/11/2014,Hotels - Accommodation only ,Asia  Caribbean and Overseas Territories ,Recipient name withheld ,201739-101 ,960.00,
DFID,DFID,27/11/2014,Repairs  Maintenance and Alterations – Other Building Costs ,Group Operations ,MITIE Technical Facilities Management Ltd ,100106-101 ,960.20,
DFID,DFID,05/11/2014,Air fares ,East and Central Africa ,Foreign & Commonwealth Office ,101633-101 ,961.65,
DFID,DFID,05/11/2014,Other rentals ,Middle East  Humanitarian & Security Division ,Foreign & Commonwealth Office ,201705-101 ,963.28,
DFID,DFID,19/11/2014,Air fares ,West and Southern Africa ,Corporate Travel Provider ,101618-101 ,965.96,
DFID,DFID,20/11/2014,Air fares ,Communications Division ,Corporate Travel Provider ,100197-101 ,967.98,
DFID,DFID,17/11/2014,Hotels - Accommodation only ,International Relations Division ,Recipient name withheld ,100262-101 ,971.09,
DFID,DFID,28/11/2014,Repairs  Maintenance and Alterations – Other Building Costs ,West and Southern Africa ,Actor Safety Products ,101618-101 ,971.42,
DFID,DFID,19/11/2014,Office Supplies ,West and Southern Africa ,Printech Limited ,101637-101 ,975.36,
DFID,DFID,19/11/2014,Air fares ,Regional Directorate ,Corporate Travel Provider ,101625-109 ,980.18,
DFID,DFID,05/11/2014,Furniture & Fittings ,East and Central Africa ,Foreign & Commonwealth Office ,101612-101 ,980.63,
DFID,DFID,12/11/2014,Furniture & Fittings ,East and Central Africa ,BRICOTECH ,101628-101 ,989.40,
DFID,DFID,20/11/2014,Air fares ,West and Southern Africa ,Corporate Travel Provider ,101629-101 ,992.98,
DFID,DFID,20/11/2014,Air fares ,Asia  Caribbean and Overseas Territories ,Corporate Travel Provider ,101605-101 ,997.10,
DFID,DFID,04/11/2014,Repairs  Maintenance and Alterations – Other Building Costs ,West and Southern Africa ,Actor Safety Products ,101618-101 ,998.04,
DFID,DFID,10/11/2014,Hotels - Accommodation only ,West and Southern Africa ,SilverDoor Limited ,101629-101 ,"1,000.00",
DFID,DFID,24/11/2014,Vehicle Petrol & Oil ,West and Southern Africa ,British High Commission ,100214-101 ,"1,004.52",
DFID,DFID,19/11/2014,Air fares ,Regional Directorate ,Corporate Travel Provider ,101625-109 ,"1,005.38",
DFID,DFID,20/11/2014,Air fares ,East and Central Africa ,Corporate Travel Provider ,100016-107 ,"1,005.46",
DFID,DFID,18/11/2014,Contract & Agency Staff ,Finance and Corporate Performance Division ,Michael Page Int. Recruitment Ltd ,100201-101 ,"1,005.89",
DFID,DFID,07/11/2014,Air fares ,Middle East  Humanitarian & Security Division ,Foreign & Commonwealth Office ,100303-101 ,"1,018.15",
DFID,DFID,20/11/2014,Air fares ,East and Central Africa ,Corporate Travel Provider ,202594-101 ,"1,023.02",
DFID,DFID,12/11/2014,Mobile telephones & accessories ,West and Southern Africa ,MTN (Zambia) Limited ,101637-101 ,"1,023.94",
DFID,DFID,04/11/2014,Hostile Environment Training ,East and Central Africa ,Pilgrims Group ,101625-107 ,"1,027.50",
DFID,DFID,18/11/2014,Research & Development costs ,Research and Evidence Division ,INSTITUTE OF DEVELOPMENT STUDIES ,202042-101 ,"232,872.24",
DFID,DFID,18/11/2014,Research & Development costs ,Research and Evidence Division ,INSTITUTE OF DEVELOPMENT STUDIES ,202042-101 ,"327,350.00",
DFID,DFID,20/11/2014,Project delivery costs – supplier services ,West and Southern Africa ,Crown Agents Bank ,200469-110 ,"33,010.84",
DFID,DFID,06/11/2014,Hostile Environment Training ,East and Central Africa ,Pilgrims Group ,101625-104 ,"1,027.50",
DFID,DFID,21/11/2014,Hostile Environment Training ,Middle East  Humanitarian & Security Division ,Pilgrims Group ,204084-101 ,"1,027.50",
DFID,DFID,12/11/2014,Hostile Environment Training ,Middle East  Humanitarian & Security Division ,Pilgrims Group ,100307-101 ,"1,027.50",
DFID,DFID,28/11/2014,Hostile Environment Training ,Internal Audit ,Pilgrims Group ,100121-101 ,"1,027.50",
DFID,DFID,21/11/2014,Hostile Environment Training ,Regional Directorate ,Pilgrims Group ,204832-101 ,"1,027.50",
DFID,DFID,05/11/2014,Hostile Environment Training ,Western Asia Division ,Supplier Name withheld ,101601-110 ,"1,027.50",
DFID,DFID,03/11/2014,Hostile Environment Training ,Middle East  Humanitarian & Security Division ,Pilgrims Group ,101619-101 ,"1,027.50",
DFID,DFID,04/11/2014,Hostile Environment Training ,International Finance Division ,Pilgrims Group ,202259-101 ,"1,027.50",
DFID,DFID,10/11/2014,Aid Programme - Core contributions ,International Finance Division ,African Development Bank ,202280-104 ,"5,498,274.94",
DFID,DFID,14/11/2014,Project delivery costs – supplier services ,East and Central Africa ,ATOS CONSULTING LIMITED ,202327-101 ,"52,092.46",
DFID,DFID,27/11/2014,Hostile Environment Training ,Communications Division ,Pilgrims Group ,100138-101 ,"1,027.50",
DFID,DFID,26/11/2014,Aid Programme - Humanitarian Material Relief Assistance and Services ,Western Asia Division ,HANDS  ,203967-105 ,"851,815.00",
DFID,DFID,19/11/2014,Hostile Environment Training ,Middle East  Humanitarian & Security Division ,Pilgrims Group ,204084-101 ,"1,027.50",
DFID,DFID,12/11/2014,Training - Course Fees ,Human Resources ,Capita  Business Services ,100269-158 ,"1,033.00",
DFID,DFID,20/11/2014,Air fares ,West and Southern Africa ,Corporate Travel Provider ,101629-101 ,"1,040.18",
DFID,DFID,12/11/2014,Training - Course Fees ,Middle East  Humanitarian & Security Division ,Professionals In Humanitarian Assistance and Protection ,204055-101 ,"1,044.76",
DFID,DFID,28/11/2014,Professional member subscriptions ,Human Resources ,PEOPLE IN AID LTD ,100269-148 ,"1,050.00",
DFID,DFID,11/11/2014,UK Staff overseas - Flexi Travel Allowance ,Asia  Caribbean and Overseas Territories ,Foreign & Commonwealth Office ,101604-101 ,"1,050.38",
DFID,DFID,18/11/2014,Facilities Management payments ,East and Central Africa ,Centurion Company Limited ,101634-101 ,"1,052.41",
DFID,DFID,13/11/2014,Hostile Environment Training ,West and Southern Africa ,Jeffery Travels ,101610-101 ,"1,052.47",
DFID,DFID,11/11/2014,Vehicle Repairs & Maintenance ,Asia  Caribbean and Overseas Territories ,Foreign & Commonwealth Office ,203478-105 ,814.45,
DFID,DFID,05/11/2014,Facilities Management payments ,East and Central Africa ,GOBA BUILDING SOLUTION ,101634-101 ,"1,056.05",
DFID,DFID,18/11/2014,Subscriptions ,Communications Division ,Durrants lTD ,100197-101 ,"1,060.88",
DFID,DFID,19/11/2014,Air fares ,Top Management Group ,Corporate Travel Provider ,100232-108 ,"1,064.00",
DFID,DFID,19/11/2014,Air fares ,Regional Directorate ,Corporate Travel Provider ,101625-109 ,"1,070.38",
DFID,DFID,10/11/2014,Aid Programme - Accountable Grant Payments ,Research and Evidence Division ,UNOPS ,203830-101 ,"705,667.00",
DFID,DFID,25/11/2014,Project delivery costs – supplier services ,West and Southern Africa ,ADAM SMITH INTERNATIONAL  LTD ,203824-103 ,"108,465.87",
DFID,DFID,19/11/2014,Air fares ,Middle East  Humanitarian & Security Division ,Corporate Travel Provider ,203940-101 ,"4,295.96",
DFID,DFID,11/11/2014,Aid Programme - Core contributions ,Middle East  Humanitarian & Security Division ,CPS ,201021-105 ,"19,408.18",
DFID,DFID,20/11/2014,Air fares ,Regional Directorate ,Corporate Travel Provider ,101625-109 ,"1,070.48",
DFID,DFID,25/11/2014,Cleaning Costs ,West and Southern Africa ,Sparklean Services Nig Ltd ,100152-110 ,"1,074.81",
DFID,DFID,20/11/2014,Air fares ,Middle East  Humanitarian & Security Division ,Corporate Travel Provider ,203938-105 ,"3,217.61",
DFID,DFID,20/11/2014,Air fares ,Middle East  Humanitarian & Security Division ,Corporate Travel Provider ,203938-105 ,"3,217.61",
DFID,DFID,10/11/2014,Aid Programme - Trust Funds contributions ,Middle East  Humanitarian & Security Division ,IBRD HSBC T ,204269-101 ,"6,000,000.00",
DFID,DFID,20/11/2014,Air fares ,Communications Division ,Corporate Travel Provider ,201473-101 ,"1,075.16",
DFID,DFID,20/11/2014,Air fares ,East and Central Africa ,Corporate Travel Provider ,100016-107 ,"1,075.26",
DFID,DFID,20/11/2014,Air fares ,West and Southern Africa ,Corporate Travel Provider ,101631-101 ,"1,075.66",
DFID,DFID,20/11/2014,Air fares ,East and Central Africa ,Corporate Travel Provider ,100016-107 ,"1,075.66",
DFID,DFID,20/11/2014,Air fares ,Middle East  Humanitarian & Security Division ,Corporate Travel Provider ,203938-101 ,797.92,
DFID,DFID,17/11/2014,Electricity ,West and Southern Africa ,Abuja Electricity Distribution Company ,101622-105 ,"1,075.81",
DFID,DFID,05/11/2014,Repairs  Maint  Alter - Property & Constrct. Services ,West and Southern Africa ,Pekolyn Tech. Services ,101622-105 ,"1,076.01",
DFID,DFID,18/11/2014,Air fares ,West and Southern Africa ,Supplier Name withheld ,101622-105 ,"1,077.13",
DFID,DFID,20/11/2014,Air fares ,West and Southern Africa ,Corporate Travel Provider ,101618-101 ,"1,077.66",
DFID,DFID,04/11/2014,Generators & spares ,West and Southern Africa ,Nordam Enterprise ,100144-101 ,"1,079.97",
DFID,DFID,18/11/2014,Data Network - land lines ,Business Solutions Division Level ,KUBE NETWORKS LTD ,200002-130 ,"1,080.29",
DFID,DFID,17/11/2014,House rentals ,East and Central Africa ,Tushar & Mitesh Doshi. ,101635-101 ,"1,085.65",
DFID,DFID,19/11/2014,Air fares ,Regional Directorate ,Corporate Travel Provider ,101625-109 ,"1,086.38",
DFID,DFID,13/11/2014,Secure Staff Accommodation ,West and Southern Africa ,Supplier Name withheld ,202909-110 ,"2,744.27",
DFID,DFID,20/11/2014,Air fares ,Asia  Caribbean and Overseas Territories ,Corporate Travel Provider ,101615-101 ,"1,089.00",
DFID,DFID,06/11/2014,UK Staff overseas - Flexi Travel Allowance,Middle East  Humanitarian & Security Division ,Recipient name withheld ,201705-101 ,"1,094.28",
DFID,DFID,05/11/2014,Aid Programme - Humanitarian Material Relief Assistance and Services ,Middle East  Humanitarian & Security Division ,Foreign & Commonwealth Office ,204007-104 ,646.90,
DFID,DFID,24/11/2014,Aid Programme - Voluntary contributions ,International Finance Division ,  OECD ,204424-101 ,"87,373.00",
DFID,DFID,10/11/2014,Hotels - Accommodation only ,International Finance Division ,Recipient name withheld ,100111-101 ,"1,096.39",
DFID,DFID,25/11/2014,Aid Programme - Accountable Grant Payments ,Research and Evidence Division ,WELLCOME TRUST ,204133-101 ,"79,172.99",
DFID,DFID,25/11/2014,Aid Programme - Accountable Grant Payments ,Research and Evidence Division ,WELLCOME TRUST ,204133-101 ,"1,995.82",
DFID,DFID,19/11/2014,Air fares ,East and Central Africa ,Corporate Travel Provider ,202848-102 ,829.13,
DFID,DFID,20/11/2014,Air fares ,Research and Evidence Division ,Corporate Travel Provider ,202334-101 ,"1,097.96",
DFID,DFID,13/11/2014,Hotels - Accommodation only ,West and Southern Africa ,Grand Hotel ,113961-109 ,530.76,
DFID,DFID,07/11/2014,Aid Programme - Accountable Grant Payments ,Policy Division ,WORLD RESOURCES INSTITUTE ,201724-147 ,"6,000.00",
DFID,DFID,07/11/2014,Aid Programme - Accountable Grant Payments ,Policy Division ,WORLD RESOURCES INSTITUTE ,201724-147 ,"532,232.00",
DFID,DFID,04/11/2014,Aid Programme - Voluntary contributions ,East and Central Africa ,UNICEF ,203766-105 ,"4,350,000.00",
DFID,DFID,20/11/2014,Air fares ,Policy Division ,Corporate Travel Provider ,100277-101 ,"1,097.96",
DFID,DFID,07/11/2014,Aid Programme - Core contributions ,Research and Evidence Division ,US Agency for Int'l Dev ,204423-101 ,"650,000.00",
DFID,DFID,28/11/2014,Project delivery costs – supplier services ,Middle East  Humanitarian & Security Division ,ADAM SMITH INTERNATIONAL ,202241-103 ,"26,894.21",
DFID,DFID,18/11/2014,Voluntary contributions ,Finance and Corporate Performance Division , OECD ,204296-102 ,"36,000.00",
DFID,DFID,27/11/2014,Aid Programme - Accountable Grant Payments ,Regional Directorate ,RedR UK ,204890-110 ,"452,795.00",
DFID,DFID,25/11/2014,Computer hardware maintenance ,West and Southern Africa ,Osmat Network Solutions Ventures ,100152-115 ,"1,100.11",
DFID,DFID,26/11/2014,Training - Travel & Subsistence ,Middle East  Humanitarian & Security Division ,International Training Centre of the ILO (ITC-ILO) ,201705-101 ,"1,110.90",
DFID,DFID,28/11/2014,Project delivery costs – supplier services ,East and Central Africa ,ADAM SMITH INTERNATIONAL  LTD ,202974-113 ,"431,509.00",
DFID,DFID,25/11/2014,Hotels - Accommodation only ,East and Central Africa ,Kuriftu Resort and Spa ,203961-106 ,"8,797.87",
DFID,DFID,18/11/2014,Aid Programme - Accountable Grant Payments ,Finance and Corporate Performance Division ,CIVICUS ,204296-110 ,"47,170.00",
DFID,DFID,19/11/2014,Air fares ,Middle East  Humanitarian & Security Division ,Corporate Travel Provider ,203944-109 ,"1,111.96",
DFID,DFID,20/11/2014,Air fares ,Research and Evidence Division ,Corporate Travel Provider ,202392-103 ,"1,112.46",
DFID,DFID,10/11/2014,Project delivery costs – supplier services ,Policy Division ,PRICEWATERHOUSECOOPERS ,114370-104 ,"280,793.22",
DFID,DFID,10/11/2014,Project delivery costs – supplier services ,Policy Division ,PRICEWATERHOUSECOOPERS ,114370-104 ,"98,988.96",
DFID,DFID,28/11/2014,Aid Programme - Partnership Programme Arrangements ,West and Southern Africa ,BILL & MELINDA GATES FOUNDATION (USD) ,201101-114 ,"747,449.96",
DFID,DFID,19/11/2014,Aid Programme - Trust Funds contributions ,Research and Evidence Division ,IBRD HSBC T ,204343-101 ,"1,000,000.00",
DFID,DFID,10/11/2014,Storage & Distribution costs ,West and Southern Africa ,Conote Services Ltd ,101622-105 ,"1,119.08",
DFID,DFID,19/11/2014,Cleaning Costs ,East and Central Africa ,Foreign & Commonwealth Office ,101628-101 ,"1,119.39",
DFID,DFID,20/11/2014,Air fares ,Western Asia Division ,Corporate Travel Provider ,101601-110 ,"1,119.50",
DFID,DFID,07/11/2014,SAIC Salaries - Overtime,Middle East  Humanitarian & Security Division ,Foreign & Commonwealth Office ,201705-101 ,"1,120.37",
DFID,DFID,27/11/2014,Data Network - land lines ,Business Solutions Division Level ,Keltec Ltd ,200002-124 ,"1,125.00",
DFID,DFID,18/11/2014,Hotels - Accommodation only ,Policy Division ,Recipient name withheld ,200659-115 ,"1,127.59",
DFID,DFID,04/11/2014,Mobile telephones & accessories ,West and Southern Africa ,MCell ,101620-101 ,"1,130.01",
DFID,DFID,03/11/2014,Storage & Distribution costs ,West and Southern Africa ,PICKFORDS LTD ,101622-106 ,"1,133.57",
DFID,DFID,19/11/2014,Vehicle Petrol & Oil ,East and Central Africa ,British High Commission(Tsh) ,100230-101 ,"1,136.08",
DFID,DFID,17/11/2014,Repairs  Maint  Alter - Property & Constrct. Services ,West and Southern Africa ,Pekolyn Tech. Services ,101622-105 ,"1,143.34",
DFID,DFID,24/11/2014,Contract & Agency Staff ,Finance and Corporate Performance Division ,Hays Specialist Recruitment Ltd ,100201-101 ,"1,145.64",
DFID,DFID,27/11/2014,Contract & Agency Staff ,Finance and Corporate Performance Division ,Hays Specialist Recruitment Ltd ,100201-101 ,"1,145.64",
DFID,DFID,20/11/2014,Contract & Agency Staff ,Finance and Corporate Performance Division ,Hays Specialist Recruitment Ltd ,100201-101 ,"1,145.64",
DFID,DFID,19/11/2014,Project delivery costs – supplier services ,Asia  Caribbean and Overseas Territories ,Supplier Name withheld ,202833-112 ,"16,350.00",
DFID,DFID,27/11/2014,Project delivery costs – supplier services ,West and Southern Africa ,BRITISH COUNCIL ,203816-102 ,"151,410.05",
DFID,DFID,24/11/2014,Contract & Agency Staff ,Finance and Corporate Performance Division ,Hays Specialist Recruitment Ltd ,100201-101 ,"1,145.64",
DFID,DFID,13/11/2014,Contract & Agency Staff ,Finance and Corporate Performance Division ,Hays Specialist Recruitment Ltd ,100201-101 ,"1,145.64",
DFID,DFID,24/11/2014,Contract & Agency Staff ,Finance and Corporate Performance Division ,Hays Specialist Recruitment Ltd ,100201-101 ,"1,145.64",
DFID,DFID,12/11/2014,Project delivery costs – supplier services ,Middle East  Humanitarian & Security Division ,THE HALO TRUST ,203243-110 ,"102,598.00",
DFID,DFID,05/11/2014,Aid Programme - Accountable Grant Payments ,West and Southern Africa ,PLAN MALAWI- CBM PROJECT ,200469-115 ,"419,358.00",
DFID,DFID,20/11/2014,Aid Programme - Trust Funds contributions ,West and Southern Africa ,IBRD (HSBC)  C/O THE WORLD BANK ,200469-117 ,"1,500,000.00",
DFID,DFID,21/11/2014,Contract & Agency Staff ,Finance and Corporate Performance Division ,Hays Specialist Recruitment Ltd ,100201-101 ,"1,145.64",
DFID,DFID,20/11/2014,Air fares ,East and Central Africa ,Corporate Travel Provider ,204323-106 ,805.21,
DFID,DFID,05/11/2014,Project delivery costs – supplier services ,Asia  Caribbean and Overseas Territories ,LTS International Ltd. ,201724-153 ,"88,228.89",
DFID,DFID,05/11/2014,Project delivery costs – supplier services ,Asia  Caribbean and Overseas Territories ,LTS International Ltd. ,201724-153 ,"48,052.46",
DFID,DFID,13/11/2014,Hotels - Accommodation only ,Asia  Caribbean and Overseas Territories ,Recipient name withheld ,201724-154 ,762.46,
DFID,DFID,25/11/2014,Hotels - Accommodation only ,Asia  Caribbean and Overseas Territories ,Recipient name withheld ,201724-154 ,638.16,
DFID,DFID,20/11/2014,Air fares ,Asia  Caribbean and Overseas Territories ,Corporate Travel Provider ,202775-108 ,555.29,
DFID,DFID,07/11/2014,Contract & Agency Staff ,Finance and Corporate Performance Division ,Hays Specialist Recruitment Ltd ,100201-101 ,"1,145.64",
DFID,DFID,28/11/2014,DFID Purchased Relief Supplies ,West and Southern Africa ,IPA-International Procurement Agency (BV) ,203714-103 ,"3,246.34",
DFID,DFID,10/11/2014,Aid Programme - Trust Funds contributions ,West and Southern Africa ,IBRD-IFFIm ,203628-102 ,"1,000,000.00",
DFID,DFID,04/11/2014,Project delivery costs – supplier services ,West and Southern Africa ,OPTIONS CONSULTANCY SERVICES LIMITED ,202214-103 ,"175,444.00",
DFID,DFID,17/11/2014,Hotels - Accommodation only ,East and Central Africa ,SORAS S.A,101628-101 ,"1,145.96",
DFID,DFID,18/11/2014,Mobile telephones & accessories ,West and Southern Africa ,Airtel (SL) Ltd ,100214-101 ,"1,155.89",
DFID,DFID,19/11/2014,Air fares ,Policy Division ,Corporate Travel Provider ,100274-101 ,"1,157.35",
DFID,DFID,19/11/2014,Air fares ,Regional Directorate ,Corporate Travel Provider ,101625-109 ,"1,157.88",
DFID,DFID,20/11/2014,Air fares ,East and Central Africa ,Corporate Travel Provider ,204049-103 ,680.08,
DFID,DFID,20/11/2014,Air fares ,Regional Directorate ,Corporate Travel Provider ,101625-109 ,"1,157.88",
DFID,DFID,07/11/2014,UK Staff overseas - Flexi Travel Allowance,Middle East  Humanitarian & Security Division ,Recipient name withheld ,201705-101 ,"1,158.48",
DFID,DFID,27/11/2014,Furniture & Fittings ,East and Central Africa ,Bricotech ,101628-101 ,"1,160.30",
DFID,DFID,06/11/2014,Aid Programme - Voluntary contributions ,International Finance Division ,AFRICAN DEVELOPMENT BANK GRP ,203546-104 ,"250,000.00",
DFID,DFID,17/11/2014,Project delivery costs – supplier services ,East and Central Africa ,Dieter Orlowski Development Policy Consultants ,203459-109 ,"14,632.30",
DFID,DFID,25/11/2014,Project delivery costs – supplier services ,Asia  Caribbean and Overseas Territories ,WESTAT India Social Sciences Private Ltd ,202744-101 ,"32,614.00",
DFID,DFID,26/11/2014,Aid Programme - Accountable Grant Payments ,Asia  Caribbean and Overseas Territories ,Infrastructure Development Company Limited (IDCOL) ,202976-107 ,"1,000,000.00",
DFID,DFID,17/11/2014,Computer Consumables ,Asia  Caribbean and Overseas Territories ,SCC Ltd ,100113-101 ,"1,162.50",
DFID,DFID,14/11/2014,Air fares ,Research and Evidence Division ,BCD Travel (USD) ,202392-111 ,"1,162.85",
DFID,DFID,19/11/2014,Electricity ,East and Central Africa ,British High Commission(Tsh) ,101634-101 ,"1,165.30",
DFID,DFID,10/11/2014,Office Equipment - Purchases ,Group Operations ,GP Supplies Limited ,203717-101 ,"1,165.80",
DFID,DFID,17/11/2014,Storage & Distribution costs ,West and Southern Africa ,PICKFORDS LTD ,101613-101 ,"1,166.78",
DFID,DFID,20/11/2014,Air fares ,West and Southern Africa ,Corporate Travel Provider ,101620-101 ,"1,179.16",
DFID,DFID,25/11/2014,Oil - Other Utilities ,Asia  Caribbean and Overseas Territories ,British High Commission (Dhaka) ,100025-101 ,"1,184.60",
DFID,DFID,18/11/2014,Subscriptions ,Communications Division ,Durrants lTD ,100197-101 ,"1,193.39",
DFID,DFID,06/11/2014,Hostile Environment Training ,Research and Evidence Division ,Pilgrims Group ,202392-105 ,"1,193.62",
DFID,DFID,20/11/2014,Air fares ,Western Asia Division ,Corporate Travel Provider ,101601-110 ,"1,198.04",
DFID,DFID,14/11/2014,CPD Conferences ,Research and Evidence Division ,Luciano Luxury Coaches ,202332-103 ,"1,198.99",
DFID,DFID,12/11/2014,CPD Conferences ,Research and Evidence Division ,IMPERIAL COLLEGE ,202332-102 ,"1,200.00",
DFID,DFID,19/11/2014,Air fares ,Regional Directorate ,Corporate Travel Provider ,101625-109 ,"1,203.18",
DFID,DFID,12/11/2014,Gas ,Group Operations ,CORONA ENERGY ,100106-101 ,"1,206.06",
DFID,DFID,13/11/2014,Contract & Agency Staff ,Finance and Corporate Performance Division ,Hays Specialist Recruitment Ltd ,100201-101 ,"1,206.14",
DFID,DFID,14/11/2014,Training - Course Fees ,Internal Audit ,BHBi CONSULTANCY LTD ,100121-101 ,"1,209.00",
DFID,DFID,28/11/2014,Hotels - Accommodation only ,East and Central Africa ,Elizabeth Carriere (Juba) ,202594-101 ,"1,215.00",
DFID,DFID,07/11/2014,Secure Staff Accommodation ,East and Central Africa ,Foreign & Commonwealth Office ,101633-101 ,"1,215.29",
DFID,DFID,03/11/2014,Water charges ,West and Southern Africa ,Lilongwe Water Board ,101618-101 ,"1,215.44",
DFID,DFID,20/11/2014,Air fares ,Policy Division ,Corporate Travel Provider ,202419-102 ,"1,224.96",
DFID,DFID,20/11/2014,Air fares ,Policy Division ,Corporate Travel Provider ,100277-102 ,"1,224.96",
DFID,DFID,19/11/2014,Training - Travel & Subsistence ,Top Management Group ,Corporate Travel Provider ,100232-106 ,"1,228.65",
DFID,DFID,19/11/2014,Air fares ,Communications Division ,Corporate Travel Provider ,100197-101 ,"1,233.90",
DFID,DFID,20/11/2014,Air fares ,West and Southern Africa ,Corporate Travel Provider ,101620-101 ,"1,235.16",
DFID,DFID,12/11/2014,Project delivery costs – supplier services ,Middle East  Humanitarian & Security Division ,THE HALO TRUST ,203243-112 ,"6,966.74",
DFID,DFID,11/11/2014,Project delivery costs – supplier services ,Middle East  Humanitarian & Security Division ,THE HALO TRUST ,203243-112 ,"86,334.80",
DFID,DFID,12/11/2014,Project delivery costs – supplier services ,Middle East  Humanitarian & Security Division ,THE HALO TRUST ,203243-112 ,"9,047.95",
DFID,DFID,11/11/2014,Project delivery costs – supplier services ,Middle East  Humanitarian & Security Division ,THE HALO TRUST ,203243-112 ,"4,765.80",
DFID,DFID,12/11/2014,Project delivery costs – supplier services ,Middle East  Humanitarian & Security Division ,THE HALO TRUST ,203243-112 ,"4,874.31",
DFID,DFID,12/11/2014,Project delivery costs – supplier services ,Middle East  Humanitarian & Security Division ,THE HALO TRUST ,203243-112 ,"19,694.71",
DFID,DFID,12/11/2014,Project delivery costs – supplier services ,Middle East  Humanitarian & Security Division ,THE HALO TRUST ,203243-112 ,"7,502.46",
DFID,DFID,12/11/2014,Project delivery costs – supplier services ,Middle East  Humanitarian & Security Division ,THE HALO TRUST ,203243-112 ,"12,408.62",
DFID,DFID,11/11/2014,Hotels - Accommodation only ,West and Southern Africa ,Supplier Name withheld ,114161-103 ,521.04,
DFID,DFID,04/11/2014,Project delivery costs – supplier services ,Regional Directorate ,Hema Trading ,204896-101 ,"10,403.30",
DFID,DFID,04/11/2014,Project delivery costs – supplier services ,Regional Directorate ,Tabarakal-Laha Enterprises ,204896-101 ,"16,961.90",
DFID,DFID,10/11/2014,Project delivery costs – supplier services ,Policy Division ,PRICEWATERHOUSECOOPERS ,114370-105 ,"21,504.25",
DFID,DFID,10/11/2014,Project delivery costs – supplier services ,Policy Division ,PRICEWATERHOUSECOOPERS ,114370-105 ,"161,531.50",
DFID,DFID,05/11/2014,Project delivery costs – supplier services ,Policy Division ,PWC GEC Client Account ,202372-103 ,"13,101,444.00",
DFID,DFID,12/11/2014,Conferences  Seminars & Meeting/Event Resource ,West and Southern Africa ,Divinking  Ekoma Nig ,104189-106 ,842.16,
DFID,DFID,19/11/2014,Project delivery costs – supplier services ,Policy Division ,Crown Agents Bank ,201724-129 ,"50,089.99",
DFID,DFID,13/11/2014,Aid Programme - Voluntary contributions ,Middle East  Humanitarian & Security Division ,IBRD (HSBC)  C/O THE WORLD BANK ,203451-103 ,"150,000.00",
DFID,DFID,20/11/2014,Aid Programme - Joint programme contribution ,Research and Evidence Division ,Engineering & Physical Sciences Research Council ,203781-104 ,"450,635.09",
DFID,DFID,19/11/2014,Hotels - Accommodation only ,East and Central Africa ,Corporate Travel Provider ,101633-101 ,"1,235.25",
DFID,DFID,11/11/2014,Project delivery costs – supplier services ,Western Asia Division ,Innovative Development Strategies (Pvt) LTd ,204590-101 ,"9,334.32",
DFID,DFID,05/11/2014,Project delivery costs – supplier services ,Middle East  Humanitarian & Security Division ,GUARDIAN NEWS & MEDIA LTD ,203940-107 ,"1,160.00",
DFID,DFID,24/11/2014,Research & Development costs ,Research and Evidence Division ,Tim Leyland ,204823-101 ,"4,102.65",
DFID,DFID,13/11/2014,Project delivery costs – supplier services ,East and Central Africa ,Foreign & Commonwealth Office ,203961-108 ,"7,658.26",
DFID,DFID,11/11/2014,Project delivery costs – supplier services ,Regional Directorate ,International Procurement and Construction Services (IPCS) Ltd ,204890-101 ,"369,753.38",
DFID,DFID,07/11/2014,Project delivery costs – supplier services ,Regional Directorate ,CL Group Limited ,204890-101 ,"205,329.61",
DFID,DFID,11/11/2014,Project delivery costs – supplier services ,Regional Directorate ,CL Group Limited ,204890-101 ,"219,322.38",
DFID,DFID,04/11/2014,Aid Programme - Accountable Grant Payments ,Policy Division ,WELL GROUNDED LTD ,201724-108 ,"3,210.00",
DFID,DFID,04/11/2014,Aid Programme - Accountable Grant Payments ,Policy Division ,WELL GROUNDED LTD ,201724-108 ,"59,025.00",
DFID,DFID,17/11/2014,Aid Programme - Poverty Reduction Budget Support ,East and Central Africa ,Ministry of Finance and Economic Development National WaSH programme ,203766-111 ,"15,000,000.00",
DFID,DFID,24/11/2014,Printer Consumables ,West and Southern Africa ,Docutech Limited ,101613-101 ,"1,237.26",
DFID,DFID,05/11/2014,Furniture & Fittings ,East and Central Africa ,Foreign & Commonwealth Office ,101612-101 ,"1,247.50",
DFID,DFID,17/11/2014,Aid Programme - Poverty Reduction Budget Support ,East and Central Africa ,Ministry of Finance and Economic Development National WaSH programme ,203766-109 ,"5,000,000.00",
DFID,DFID,20/11/2014,Air fares ,East and Central Africa ,Corporate Travel Provider ,202989-105 ,567.26,
DFID,DFID,20/11/2014,Hostile Environment Training ,Trade for Development Division ,Pilgrims Group ,100124-101 ,"1,252.50",
DFID,DFID,20/11/2014,Air fares ,Top Management Group ,Corporate Travel Provider ,100232-103 ,"1,255.81",
DFID,DFID,17/11/2014,Project delivery costs – supplier services ,West and Southern Africa ,OPTIONS CONSULTANCY SERVICES LIMITED ,202462-102 ,"2,101.67",
DFID,DFID,26/11/2014,Contract & Agency Staff ,Finance and Corporate Performance Division ,Michael Page Int. Recruitment Ltd ,100201-101 ,"1,257.36",
DFID,DFID,11/11/2014,Contract & Agency Staff ,Finance and Corporate Performance Division ,Michael Page Int. Recruitment Ltd ,100201-101 ,"1,257.36",
DFID,DFID,10/11/2014,Project delivery costs – supplier services ,Western Asia Division ,Foreign & Commonwealth Office ,114450-101 ,"4,617.66",
DFID,DFID,27/11/2014,Project delivery costs – supplier services ,Western Asia Division ,Foreign & Commonwealth Office ,114450-101 ,"15,137.78",
DFID,DFID,28/11/2014,Aid Programme - Other Financial Aid to Government ,West and Southern Africa ,Anti-Corruption Commission Republic of Zambia ,201107-102 ,"124,192.00",
DFID,DFID,03/11/2014,Contract & Agency Staff ,Finance and Corporate Performance Division ,Michael Page Int. Recruitment Ltd ,100201-101 ,"1,257.36",
DFID,DFID,19/11/2014,Air fares ,Policy Division ,Corporate Travel Provider ,100274-111 ,"1,263.86",
DFID,DFID,20/11/2014,Air fares ,Regional Directorate ,Travel Places Ltd ,204892-101 ,"1,274.22",
DFID,DFID,20/11/2014,Storage & Distribution costs ,West and Southern Africa ,PICKFORDS LTD ,101631-101 ,"1,275.00",
DFID,DFID,28/11/2014,Hostile Environment Training ,West and Southern Africa ,Pilgrims Group ,101610-101 ,"1,276.94",
DFID,DFID,12/11/2014,Building Plant - Air Conditioners ,West and Southern Africa ,Frigorificos Polo Norte Mocambique  Lda ,101620-101 ,"1,278.53",
DFID,DFID,04/11/2014,Telephone Usage & services ,Business Solutions Division Level ,BT BACS PAYMENTS ,200002-130 ,"1,287.48",
DFID,DFID,20/11/2014,Air fares ,Regional Directorate ,Corporate Travel Provider ,101625-109 ,"1,294.98",
DFID,DFID,20/11/2014,Air fares ,East and Central Africa ,Corporate Travel Provider ,202594-101 ,"1,296.20",
DFID,DFID,20/11/2014,Air fares ,Regional Directorate ,Corporate Travel Provider ,101625-109 ,"1,314.88",
DFID,DFID,17/11/2014,Office Supplies ,West and Southern Africa ,Papirus Plus Lda ,101620-101 ,"1,318.74",
DFID,DFID,19/11/2014,Storage & Distribution costs ,West and Southern Africa ,PICKFORDS LTD ,101629-101 ,"1,320.60",
DFID,DFID,27/11/2014,Vehicle Repairs & Maintenance ,Asia  Caribbean and Overseas Territories ,Delta Motor Works Pvt. Ltd ,101621-103 ,"1,344.04",
DFID,DFID,12/11/2014,Electricity ,East and Central Africa ,Foreign & Commonwealth Office ,100212-101 ,"1,349.19",
DFID,DFID,13/11/2014,Conferences  Seminars & Meeting/Event Resource ,East and Central Africa ,Recipient name withheld ,100016-107 ,"1,351.00",
DFID,DFID,20/11/2014,FCO shared service charges ,West and Southern Africa ,Royal Motors LLW ,101618-101 ,"1,372.12",
DFID,DFID,04/11/2014,Aid Programme - Voluntary contributions ,Research and Evidence Division ,IBRD HSBC T ,202630-101 ,"248,000.00",
DFID,DFID,25/11/2014,Aid Programme - Trust Funds contributions ,Middle East  Humanitarian & Security Division ,IBRD HSBC T ,202564-101 ,"2,000,000.00",
DFID,DFID,06/11/2014,Project delivery costs – supplier services ,East and Central Africa ,KPMG EAST AFRICA LTD ,201866-109 ,"80,511.36",
DFID,DFID,07/11/2014,Repairs  Maint  Alter - Property & Constrct. Services ,East and Central Africa ,Zhonghao Overseas Construction Eng. Co. Ltd ,202717-101 ,"3,715.14",
DFID,DFID,07/11/2014,Repairs  Maint  Alter - Property & Constrct. Services ,East and Central Africa ,Zhonghao Overseas Construction Eng. Co. Ltd ,202717-101 ,"3,715.13",
DFID,DFID,25/11/2014,Project delivery costs – supplier services ,East and Central Africa ,ADAM SMITH INTERNATIONAL  LTD ,200221-107 ,"10,151.40",
DFID,DFID,20/11/2014,Air fares ,Asia  Caribbean and Overseas Territories ,Corporate Travel Provider ,100033-101 ,"1,374.00",
DFID,DFID,20/11/2014,Air fares ,International Relations Division ,Corporate Travel Provider ,201711-104 ,"1,374.48",
DFID,DFID,28/11/2014,Contract & Agency Staff ,Finance and Corporate Performance Division ,HUDSON GLOBAL RESOURCES LTD ,100201-101 ,"1,375.02",
DFID,DFID,04/11/2014,Air fares ,East and Central Africa ,Saimon Overseas Ltd ,100234-101 ,"1,377.92",
DFID,DFID,20/11/2014,Air fares ,Communications Division ,Corporate Travel Provider ,100197-101 ,"1,382.40",
DFID,DFID,19/11/2014,Aid Programme - Core contributions ,East and Central Africa ,Assoc for Development of Education in Africa ,202606-101 ,"321,560.00",
DFID,DFID,19/11/2014,Project delivery costs – supplier services ,Growth and Resilience Division ,UN HABITAT ,202650-101 ,"14,000.00",
DFID,DFID,20/11/2014,Air fares ,East and Central Africa ,Corporate Travel Provider ,101625-103 ,"1,384.28",
DFID,DFID,07/11/2014,Travel - Subsistence ,Middle East  Humanitarian & Security Division ,Foreign & Commonwealth Office ,202887-101 ,501.87,
DFID,DFID,28/11/2014,Aid Programme - Accountable Grant Payments ,East and Central Africa ,AGRA in AFRICA ,202848-101 ,"417,630.00",
DFID,DFID,19/11/2014,Air fares ,East and Central Africa ,Corporate Travel Provider ,202984-101 ,737.96,
DFID,DFID,03/11/2014,Project delivery costs – supplier services ,East and Central Africa ,Gramafilm ,202913-101 ,"15,000.00",
DFID,DFID,20/11/2014,Project delivery costs – supplier services ,East and Central Africa ,Sam Sternin ,202913-101 ,"2,223.22",
DFID,DFID,06/11/2014,Project delivery costs – supplier services ,East and Central Africa ,Lestrade Consultancy Ltd ,202913-101 ,"4,875.00",
DFID,DFID,03/11/2014,Project delivery costs – supplier services ,East and Central Africa ,Jennifer Catino Consulting ,202913-101 ,"20,553.90",
DFID,DFID,05/11/2014,Office Equipment - Maintenance ,Asia  Caribbean and Overseas Territories ,Foreign & Commonwealth Office ,101636-101 ,"1,386.66",
DFID,DFID,06/11/2014,Project delivery costs – supplier services ,East and Central Africa ,Isobel Birch ,202619-106 ,"3,200.00",
DFID,DFID,04/11/2014,Project delivery costs – supplier services ,Asia  Caribbean and Overseas Territories ,PRICEWATERHOUSECOOPERS ,203281-101 ,"396,433.37",
DFID,DFID,07/11/2014,Project delivery costs – supplier services ,Asia  Caribbean and Overseas Territories ,Foreign & Commonwealth Office ,203012-102 ,"9,249.81",
DFID,DFID,26/11/2014,Project delivery costs – supplier services ,East and Central Africa ,KPMG EAST AFRICA LTD ,200498-105 ,"15,637.54",
DFID,DFID,19/11/2014,Air fares ,East and Central Africa ,Corporate Travel Provider ,202534-103 ,570.86,
DFID,DFID,07/11/2014,Project delivery costs – supplier services ,East and Central Africa ,Mennonite Economic Development Associates of Canada ,202481-104 ,"138,525.55",
DFID,DFID,10/11/2014,Project delivery costs – supplier services ,Asia  Caribbean and Overseas Territories ,PUBLIC ADMINISTRATION INTERN ,200952-103 ,"1,629.44",
DFID,DFID,05/11/2014,Project delivery costs – supplier services ,Policy Division ,Foreign & Commonwealth Office ,203146-101 ,"1,125.96",
DFID,DFID,17/11/2014,Aid Programme - Accountable Grant Payments ,East and Central Africa ,WaterAid Tanzania ,202852-103 ,"85,166.00",
DFID,DFID,07/11/2014,Project delivery costs – supplier services ,Policy Division ,Foreign & Commonwealth Office ,201724-124 ,528.53,
DFID,DFID,07/11/2014,Project delivery costs – supplier services ,Policy Division ,Foreign & Commonwealth Office ,201724-124 ,"1,584.67",
DFID,DFID,19/11/2014,Air fares ,East and Central Africa ,Corporate Travel Provider ,202827-106 ,937.67,
DFID,DFID,04/11/2014,Aid Programme - Accountable Grant Payments ,Policy Division ,WESTMINSTER FOUNDATION FOR DEMOCRACY ,202308-101 ,"53,000.00",
DFID,DFID,04/11/2014,Aid Programme - Accountable Grant Payments ,Policy Division ,WESTMINSTER FOUNDATION FOR DEMOCRACY ,202308-101 ,"559,434.00",
DFID,DFID,19/11/2014,Hotels - Accommodation only ,East and Central Africa ,Corporate Travel Provider ,101612-101 ,"1,388.64",
DFID,DFID,05/11/2014,Training - Travel & Subsistence ,Asia  Caribbean and Overseas Territories ,Foreign & Commonwealth Office ,100033-101 ,"1,395.24",
DFID,DFID,12/11/2014,Training - Course Fees ,Finance and Corporate Performance Division ,UNIVERSITY OF SOUTHAMPTON ,202836-101 ,"1,400.00",
DFID,DFID,08/11/2014,Hotels - Accommodation only ,International Finance Division ,Recipient name withheld ,100111-101 ,"1,406.76",
DFID,DFID,26/11/2014,Aid Programme - Core contributions ,Research and Evidence Division ,USDA-ARS ,203202-101 ,"400,000.00",
DFID,DFID,14/11/2014,Aid Programme - Voluntary contributions ,Middle East  Humanitarian & Security Division ,IBRD (HSBC)  C/O THE WORLD BANK ,203238-101 ,"1,000,000.00",
DFID,DFID,19/11/2014,Air fares ,East and Central Africa ,Bon Voyage Travel Centre Ltd(USD) ,203008-103 ,705.67,
DFID,DFID,10/11/2014,Aid Programme - Accountable Grant Payments ,Research and Evidence Division ,GALVmed ,203188-102 ,"302,986.00",
DFID,DFID,20/11/2014,Aid Programme - Accountable Grant Payments ,Research and Evidence Division ,AATF ,201501-102 ,"446,398.50",
DFID,DFID,17/11/2014,Telephone Usage & services ,Business Solutions Division Level ,VODAFONE LIMITED ,200002-117 ,"1,410.00",
DFID,DFID,18/11/2014,Storage & Distribution costs ,International Relations Division ,PICKFORDS LTD ,201711-104 ,"1,424.19",
DFID,DFID,19/11/2014,Air fares ,Regional Directorate ,Corporate Travel Provider ,101625-109 ,"1,425.00",
DFID,DFID,11/11/2014,Aid Programme - Joint programme contribution ,Asia  Caribbean and Overseas Territories ,Foreign & Commonwealth Office ,203478-101 ,769.67,
DFID,DFID,11/11/2014,Aid Programme - Joint programme contribution ,Asia  Caribbean and Overseas Territories ,Foreign & Commonwealth Office ,203478-101 ,"2,340.00",
DFID,DFID,18/11/2014,Project delivery costs – supplier services ,Policy Division ,Prestige Network Ltd ,100045-101 ,"1,437.60",
DFID,DFID,24/11/2014,Project delivery costs – supplier services ,Business Solutions Division Level ,Info-Assure LTD ,200002-187 ,"1,440.00",
DFID,DFID,05/11/2014,Vehicle Petrol & Oil ,East and Central Africa ,Foreign & Commonwealth Office ,100082-101 ,"1,444.90",
DFID,DFID,19/11/2014,Air fares ,Human Resources ,Corporate Travel Provider ,100266-108 ,"1,448.56",
DFID,DFID,05/11/2014,Encashment of Promissory Notes ,International Finance Division ,Asian Development Bank ,203547-101 ,"5,570,000.00",
DFID,DFID,04/11/2014,Aid Programme - Voluntary contributions ,Asia  Caribbean and Overseas Territories ,The World  Bank IBRD ,202833-106 ,"47,017.50",
DFID,DFID,05/11/2014,Aid Programme - Trust Funds contributions ,Policy Division ,IBRD (HSBC)  C/O THE WORLD BANK ,203034-103 ,"1,000,000.00",
DFID,DFID,17/11/2014,Project delivery costs – supplier services ,Middle East  Humanitarian & Security Division ,Crown Agents. ,203944-106 ,"1,450.84",
DFID,DFID,06/11/2014,Aid Programme - Trust Funds contributions ,Policy Division ,IBRD HSBC T ,202993-107 ,"534,142.00",
DFID,DFID,24/11/2014,Aid Programme - Accountable Grant Payments ,East and Central Africa ,NORWEGIAN PEOPLE'S AID(NPA) ,203738-101 ,"377,815.82",
DFID,DFID,20/11/2014,Aid Programme - Accountable Grant Payments ,West and Southern Africa ,NATIONAL DEMOCTRATIC INSTITUTE ,203567-103 ,"174,484.00",
DFID,DFID,17/11/2014,Aid Programme - Accountable Grant Payments ,West and Southern Africa ,Health Reform Foundation of Nigeria ,203654-101 ,"123,805.57",
DFID,DFID,17/11/2014,Aid Programme - Accountable Grant Payments ,West and Southern Africa ,Health Reform Foundation of Nigeria ,203654-101 ,"26,000.00",
DFID,DFID,26/11/2014,Aid Programme - Accountable Grant Payments ,Western Asia Division ,LUMS GBP ,202697-106 ,"501,862.78",
DFID,DFID,25/11/2014,Hotels - Accommodation only ,Western Asia Division ,Avari Lahore ,202697-109 ,880.11,
DFID,DFID,20/11/2014,Air fares ,Research and Evidence Division ,Corporate Travel Provider ,202392-102 ,"1,463.71",
DFID,DFID,11/11/2014,Aid Programme - Accountable Grant Payments ,Research and Evidence Division ,Research into Results Ltd ,203665-101 ,"91,386.74",
DFID,DFID,04/11/2014,Aid Programme - Voluntary contributions ,East and Central Africa ,UNICEF ,203766-103 ,"4,400,000.00",
DFID,DFID,27/11/2014,Project delivery costs – supplier services ,Human Resources ,SODEXHO PASS LTD ,100269-139 ,"1,465.90",
DFID,DFID,21/11/2014,Repairs  Maint  Alter - Property & Constrct. Services ,West and Southern Africa ,Pekolyn Tech. Services ,101622-105 ,"1,466.19",
DFID,DFID,10/11/2014,Secure Staff Accommodation ,International Relations Division ,Foreign & Commonwealth Office ,100086-101 ,"1,466.89",
DFID,DFID,19/11/2014,Air fares ,Western Asia Division ,Corporate Travel Provider ,101601-110 ,"1,471.80",
DFID,DFID,19/11/2014,Air fares ,Western Asia Division ,Corporate Travel Provider ,101601-110 ,"1,471.80",
DFID,DFID,28/11/2014,Books & Publications ,East and Central Africa ,Gulf Africa Limited ,101635-101 ,"1,481.54",
DFID,DFID,27/11/2014,Air fares ,Regional Directorate ,Foreign & Commonwealth Office ,204833-101 ,"1,487.59",
DFID,DFID,18/11/2014,Other passenger transport ,East and Central Africa ,VIVA SAFARIS ,202594-101 ,"1,490.81",
DFID,DFID,19/11/2014,Training - Course Fees ,International Finance Division ,Capita  Business Services ,100111-101 ,"1,494.00",
DFID,DFID,06/11/2014,Aid Programme - Accountable Grant Payments ,Policy Division ,Carnegie Endowment for International Peace ,203673-101 ,"68,182.00",
DFID,DFID,05/11/2014,Aid Programme - Accountable Grant Payments ,Middle East  Humanitarian & Security Division ,Igarape Institute ,203244-102 ,"33,372.44",
DFID,DFID,19/11/2014,Training Providers/Facilitation Services ,Policy Division ,Capita  Business Services ,202402-107 ,"1,494.00",
DFID,DFID,20/11/2014,Air fares ,Growth and Resilience Division ,Corporate Travel Provider ,202373-101 ,"1,494.40",
DFID,DFID,06/11/2014,Conferences  Seminars & Meeting/Event Resource ,East and Central Africa ,University of Cape Town ,101635-101 ,"1,495.99",
DFID,DFID,20/11/2014,Air fares ,Western Asia Division ,Corporate Travel Provider ,101601-110 ,"1,496.92",
DFID,DFID,20/11/2014,Air fares ,West and Southern Africa ,Corporate Travel Provider ,100144-101 ,"1,503.16",
DFID,DFID,24/11/2014,Vehicle Petrol & Oil ,West and Southern Africa ,British High Commission ,101629-101 ,"1,506.78",
DFID,DFID,20/11/2014,Contract & Agency Staff ,Finance and Corporate Performance Division ,Hays Specialist Recruitment Ltd ,100201-101 ,"1,507.68",
DFID,DFID,13/11/2014,Contract & Agency Staff ,Finance and Corporate Performance Division ,Hays Specialist Recruitment Ltd ,100201-101 ,"1,507.68",
DFID,DFID,10/11/2014,Contract & Agency Staff ,Finance and Corporate Performance Division ,Hays Specialist Recruitment Ltd ,100201-101 ,"1,507.74",
DFID,DFID,03/11/2014,Contract & Agency Staff ,Finance and Corporate Performance Division ,Hays Specialist Recruitment Ltd ,100201-101 ,"1,507.74",
DFID,DFID,13/11/2014,Contract & Agency Staff ,Finance and Corporate Performance Division ,Hays Specialist Recruitment Ltd ,100201-101 ,"1,507.74",
DFID,DFID,20/11/2014,Contract & Agency Staff ,Finance and Corporate Performance Division ,Hays Specialist Recruitment Ltd ,100201-101 ,"1,507.74",
DFID,DFID,28/11/2014,Contract & Agency Staff ,Finance and Corporate Performance Division ,Hays Specialist Recruitment Ltd ,100201-101 ,"1,507.74",
DFID,DFID,28/11/2014,Contract & Agency Staff ,Finance and Corporate Performance Division ,Hays Specialist Recruitment Ltd ,100201-101 ,"1,507.74",
DFID,DFID,25/11/2014,Contract & Agency Staff ,Finance and Corporate Performance Division ,Hays Specialist Recruitment Ltd ,100201-101 ,"1,507.74",
DFID,DFID,19/11/2014,Air fares ,Western Asia Division ,Corporate Travel Provider ,101601-110 ,"1,520.86",
DFID,DFID,07/11/2014,Air fares ,Middle East  Humanitarian & Security Division ,Foreign & Commonwealth Office ,201705-101 ,"1,527.23",
DFID,DFID,05/11/2014,Telephone Usage & services ,East and Central Africa ,VODACOM TANZANIA LTD ,101634-101 ,"1,532.24",
DFID,DFID,25/11/2014,Conferences  Seminars & Meeting/Event Resource ,Research and Evidence Division ,Recipient name withheld ,100039-101 ,"1,544.49",
DFID,DFID,06/11/2014,Telephone Usage & services ,Western Asia Division ,Supplier Name withheld ,101601-110 ,"1,564.87",
DFID,DFID,26/11/2014,Air fares ,West and Southern Africa ,Mukwa Travel and Tours ,101637-102 ,"1,570.03",
DFID,DFID,11/11/2014,Training - Course Fees ,Western Asia Division ,RedR UK ,101624-101 ,"1,572.00",
DFID,DFID,03/11/2014,Storage & Distribution costs ,East and Central Africa ,PICKFORDS LTD ,101625-107 ,"1,575.55",
DFID,DFID,05/11/2014,Repairs  Maint  Alter - Property & Constrct. Services ,West and Southern Africa ,Pekolyn Tech. Services ,101622-105 ,"1,579.67",
DFID,DFID,24/11/2014,Data Network - land lines ,Business Solutions Division Level ,BT BACS PAYMENTS ,200002-130 ,"1,582.43",
DFID,DFID,19/11/2014,Oil - Other Utilities ,Western Asia Division ,Supplier Name withheld ,100011-110 ,"1,591.86",
DFID,DFID,19/11/2014,Air fares ,Western Asia Division ,Corporate Travel Provider ,100011-110 ,"1,597.05",
DFID,DFID,04/11/2014,Hotels - Accommodation only ,West and Southern Africa ,The Country Lodge Complex ,101629-101 ,"1,601.65",
DFID,DFID,06/11/2014,Storage & Distribution costs ,Global Funds ,PICKFORDS LTD ,100098-101 ,"1,605.95",
DFID,DFID,07/11/2014,Conferences  Seminars & Meeting/Event Resource ,East and Central Africa ,Tufts University ,203928-101 ,628.25,
DFID,DFID,19/11/2014,Aid Programme - Accountable Grant Payments ,East and Central Africa ,TechnoServe  Incorporated ,202844-104 ,"24,141.00",
DFID,DFID,25/11/2014,Aid Programme - Humanitarian Material Relief Assistance and Services ,Western Asia Division ,HANDS  ,203967-105 ,"1,126,432.00",
DFID,DFID,28/11/2014,Aid Programme - Accountable Grant Payments ,West and Southern Africa ,Banja La Mtsogolo ,201095-101 ,"699,109.00",
DFID,DFID,20/11/2014,Air fares ,Western Asia Division ,Corporate Travel Provider ,101601-110 ,"1,620.26",
DFID,DFID,26/11/2014,Project delivery costs – supplier services ,East and Central Africa ,KPMG EAST AFRICA LTD ,200498-101 ,"66,665.30",
DFID,DFID,12/11/2014,Furniture & Fittings ,East and Central Africa ,Nakumatt Rwanda,101628-101 ,"1,623.16",
DFID,DFID,04/11/2014,Data Network - land lines ,Business Solutions Division Level ,VODAFONE LIMITED ,200002-187 ,"1,625.00",
DFID,DFID,18/11/2014,Storage & Distribution costs ,Asia  Caribbean and Overseas Territories ,PICKFORDS LTD ,201739-101 ,"1,634.60",
DFID,DFID,18/11/2014,Storage & Distribution costs ,West and Southern Africa ,PICKFORDS LTD ,101618-101 ,"1,634.61",
DFID,DFID,19/11/2014,Air fares ,Western Asia Division ,Corporate Travel Provider ,101601-110 ,"1,659.76",
DFID,DFID,19/11/2014,Air fares ,Western Asia Division ,Corporate Travel Provider ,101601-110 ,"1,659.76",
DFID,DFID,13/11/2014,Contract & Agency Staff ,Finance and Corporate Performance Division ,Search Consultancy Ltd ,100201-101 ,"1,663.20",
DFID,DFID,16/11/2014,Secure Staff Accommodation ,Western Asia Division ,Supplier Name withheld ,100011-110 ,"1,665.97",
DFID,DFID,19/11/2014,Air fares ,Regional Directorate ,Corporate Travel Provider ,101625-109 ,"1,668.46",
DFID,DFID,18/11/2014,Storage & Distribution costs ,Asia  Caribbean and Overseas Territories ,PICKFORDS LTD ,101603-101 ,"1,671.85",
DFID,DFID,20/11/2014,Air fares ,West and Southern Africa ,Corporate Travel Provider ,101610-101 ,"1,689.86",
DFID,DFID,10/11/2014,Furniture & Fittings ,East and Central Africa ,DIPLOMATIC MISSION SUPPLIES ,101628-101 ,"1,712.68",
DFID,DFID,28/11/2014,Furniture & Fittings ,East and Central Africa ,IPA-International Procurement Agency (BV) ,202594-101 ,"1,715.11",
DFID,DFID,18/11/2014,Mobile telephones & accessories ,West and Southern Africa ,Airtel (SL) Ltd ,101629-101 ,"1,733.84",
DFID,DFID,27/11/2014,Furniture & Fittings ,East and Central Africa ,IPA-International Procurement Agency (BV) ,202594-101 ,"1,735.45",
DFID,DFID,04/11/2014,Hotels - Accommodation only ,West and Southern Africa ,The Country Lodge Complex ,101629-101 ,"1,742.24",
DFID,DFID,13/11/2014,Contract & Agency Staff ,Finance and Corporate Performance Division ,Hays Specialist Recruitment Ltd ,100201-101 ,"1,746.78",
DFID,DFID,28/11/2014,Contract & Agency Staff ,Finance and Corporate Performance Division ,Hays Specialist Recruitment Ltd ,100201-101 ,"1,746.78",
DFID,DFID,06/11/2014,Contract & Agency Staff ,Finance and Corporate Performance Division ,Hays Specialist Recruitment Ltd ,100201-101 ,"1,746.78",
DFID,DFID,20/11/2014,Air fares ,West and Southern Africa ,Corporate Travel Provider ,101629-101 ,"1,753.91",
DFID,DFID,13/11/2014,Facilities Management payments ,East and Central Africa ,Joshi Electrical & General Services ,101635-101 ,"1,758.14",
DFID,DFID,19/11/2014,Air fares ,West and Southern Africa ,Corporate Travel Provider ,101629-101 ,"1,773.78",
DFID,DFID,05/11/2014,Project delivery costs – supplier services ,West and Southern Africa ,Foreign & Commonwealth Office ,101622-106 ,"1,774.69",
DFID,DFID,03/11/2014,Hostile Environment Training ,Middle East  Humanitarian & Security Division ,Crown Agents. ,202410-101 ,"1,812.00",
DFID,DFID,19/11/2014,Hotels - Accommodation only ,West and Southern Africa ,Corporate Travel Provider ,101629-101 ,"1,816.12",
DFID,DFID,05/11/2014,Project delivery costs – supplier services ,West and Southern Africa ,Foreign & Commonwealth Office ,101622-106 ,"1,821.37",
DFID,DFID,13/11/2014,Secure Staff Accommodation ,International Relations Division ,Foreign & Commonwealth Office ,100262-101 ,"1,824.59",
DFID,DFID,19/11/2014,Oil - Other Utilities ,East and Central Africa ,British High Commission(Tsh) ,101634-101 ,"1,836.53",
DFID,DFID,14/11/2014,Project delivery costs – supplier services ,Policy Division ,Capita  Business Services ,100277-101 ,"1,848.58",
DFID,DFID,19/11/2014,Facilities Management payments ,East and Central Africa ,JMC Umoja House ,100230-101 ,"1,850.90",
DFID,DFID,26/11/2014,Vehicle Repairs & Maintenance ,West and Southern Africa ,Marsha Allah Aishaf Enterprise ,101613-101 ,"1,862.89",
DFID,DFID,12/11/2014,Training - Course Fees ,Business Solutions Division Level ,Elite Training & Consultancy ,200001-101 ,"1,875.00",
DFID,DFID,19/11/2014,Air fares ,Human Resources ,Corporate Travel Provider ,100268-101 ,"1,902.06",
DFID,DFID,19/11/2014,Air fares ,Regional Directorate ,Corporate Travel Provider ,101625-109 ,"1,911.75",
DFID,DFID,19/11/2014,Project delivery costs – supplier services ,West and Southern Africa ,MARK MCGIVERN ,100096-101 ,"1,925.00",
DFID,DFID,04/11/2014,Hotels - Accommodation only ,West and Southern Africa ,Recipient name withheld ,101629-101 ,"1,936.00",
DFID,DFID,11/11/2014,Training - Course Fees ,Western Asia Division ,Nohman Ishtiaq ,101624-101 ,"1,942.31",
DFID,DFID,03/11/2014,Storage & Distribution costs ,East and Central Africa ,PICKFORDS LTD ,101612-101 ,"1,959.50",
DFID,DFID,28/11/2014,other information and communication technologies ,East and Central Africa ,RCS - Radio & Satellite Communication ,202594-101 ,"1,967.06",
DFID,DFID,25/11/2014,Hotels - Accommodation only ,West and Southern Africa ,Courtyard Hotel ,101631-101 ,"1,995.81",
DFID,DFID,13/11/2014,Contract & Agency Staff ,Research and Evidence Division ,Hays Specialist Recruitment Ltd ,100039-101 ,"2,006.88",
DFID,DFID,19/11/2014,Air fares ,Top Management Group ,Corporate Travel Provider ,100232-104 ,"2,025.16",
DFID,DFID,19/11/2014,Oil - Other Utilities ,West and Southern Africa ,NP (SL) Ltd ,100214-101 ,"2,028.93",
DFID,DFID,12/11/2014,Furniture & Fittings ,West and Southern Africa ,Dalmann - Hardwood Furniture Mozambi ,100149-101 ,"1,819.17",
DFID,DFID,07/11/2014,SAIC Salaries - Overtime,Middle East  Humanitarian & Security Division ,Foreign & Commonwealth Office ,201705-101 ,"2,029.16",
DFID,DFID,26/11/2014,Conferences  Seminars & Meeting/Event Resource ,Finance and Corporate Performance Division ,Calder Conferences ,204662-101 ,"2,030.00",
DFID,DFID,20/11/2014,Air fares ,Research and Evidence Division ,Corporate Travel Provider ,100039-108 ,"2,045.86",
DFID,DFID,20/11/2014,Air fares ,Group Operations ,Corporate Travel Provider ,204284-102 ,"2,063.26",
DFID,DFID,17/11/2014,Relocation costs ,West and Southern Africa ,PICKFORDS LTD ,101638-101 ,"2,090.79",
DFID,DFID,06/11/2014,Hotels - Accommodation only ,West and Southern Africa ,SilverDoor Limited ,101629-101 ,"2,100.00",
DFID,DFID,21/11/2014,Contract & Agency Staff ,Research and Evidence Division ,Hays Specialist Recruitment Ltd ,100039-101 ,"2,115.36",
DFID,DFID,12/11/2014,Vehicle Petrol & Oil ,West and Southern Africa ,British Embassy Kinshasa (DRC) ,101610-101 ,"2,117.61",
DFID,DFID,20/11/2014,Air fares ,Western Asia Division ,Corporate Travel Provider ,101601-110 ,"2,138.94",
DFID,DFID,17/11/2014,Data Network - land lines ,Business Solutions Division Level ,VODAFONE LIMITED ,200002-185 ,"2,147.63",
DFID,DFID,17/11/2014,Data Network - land lines ,Business Solutions Division Level ,VODAFONE LIMITED ,203329-103 ,"2,147.63",
DFID,DFID,27/11/2014,Contract & Agency Staff ,Research and Evidence Division ,Hays Specialist Recruitment Ltd ,100039-101 ,"2,169.60",
DFID,DFID,14/11/2014,Medical/Health Services ,West and Southern Africa ,Emose ,100148-101 ,"2,182.48",
DFID,DFID,19/11/2014,Repairs  Maint  Alter - Property & Constrct. Services ,West and Southern Africa ,Gylam Nigeria Limited ,101622-105 ,"2,201.79",
DFID,DFID,05/11/2014,Data Network - land lines ,Business Solutions Division Level ,VODAFONE LIMITED ,200002-185 ,"2,219.22",
DFID,DFID,11/11/2014,Hardware - networking equipment ,West and Southern Africa ,Tiwai Memory Masters ,100215-101 ,"7,291.35",
DFID,DFID,05/11/2014,Data Network - land lines ,Business Solutions Division Level ,VODAFONE LIMITED ,203329-103 ,"2,219.22",
DFID,DFID,10/11/2014,Contract & Agency Staff ,Research and Evidence Division ,Hays Specialist Recruitment Ltd ,100039-101 ,"2,223.84",
DFID,DFID,05/11/2014,Hotels - Accommodation only ,Research and Evidence Division ,Recipient name withheld ,203874-101 ,"2,238.00",
DFID,DFID,05/11/2014,Contract & Agency Staff ,Business Solutions Division Level ,ALLEGIS GROUP LIMITED ,200001-101 ,"2,250.00",
DFID,DFID,20/11/2014,Training - Travel & Subsistence ,Asia  Caribbean and Overseas Territories ,Jaya Travels & Tours Ltd ,101621-108 ,"2,263.61",
DFID,DFID,21/11/2014,Secure Staff Accommodation ,Asia  Caribbean and Overseas Territories ,Supplier Name withheld ,101621-103 ,"2,286.15",
DFID,DFID,26/11/2014,other information and communication technologies ,West and Southern Africa ,Gestetner Limited ,101618-101 ,"2,314.85",
DFID,DFID,11/11/2014,FCO shared service charges ,West and Southern Africa ,Ursa Security International ,101618-101 ,"2,351.26",
DFID,DFID,25/11/2014,Facilities Management payments ,East and Central Africa ,General Technical Services Ltd,101628-101 ,"2,364.50",
DFID,DFID,19/11/2014,Air fares ,Top Management Group ,Corporate Travel Provider ,100232-104 ,"2,370.96",
DFID,DFID,19/11/2014,Air fares ,Top Management Group ,Corporate Travel Provider ,100232-104 ,"2,370.96",
DFID,DFID,20/11/2014,Repairs  Maint  Alter - Property & Constrct. Services ,West and Southern Africa ,Fracham Company ,101622-105 ,"2,386.56",
DFID,DFID,20/11/2014,Air fares ,Western Asia Division ,Corporate Travel Provider ,101601-110 ,"2,412.33",
DFID,DFID,27/11/2014,Hotels - Accommodation only ,West and Southern Africa ,Supplier Name withheld ,104190-101 ,967.22,
DFID,DFID,05/11/2014,Project delivery costs – supplier services ,West and Southern Africa ,Foreign & Commonwealth Office ,104223-101 ,"7,285.47",
DFID,DFID,05/11/2014,Project delivery costs – supplier services ,West and Southern Africa ,Foreign & Commonwealth Office ,104223-101 ,"7,285.47",
DFID,DFID,05/11/2014,Project delivery costs – supplier services ,West and Southern Africa ,Foreign & Commonwealth Office ,104223-101 ,"7,285.47",
DFID,DFID,05/11/2014,Project delivery costs – supplier services ,West and Southern Africa ,Foreign & Commonwealth Office ,104223-101 ,"3,768.41",
DFID,DFID,05/11/2014,Project delivery costs – supplier services ,West and Southern Africa ,Foreign & Commonwealth Office ,104223-101 ,"7,285.47",
DFID,DFID,05/11/2014,Project delivery costs – supplier services ,West and Southern Africa ,Foreign & Commonwealth Office ,104223-101 ,"7,285.47",
DFID,DFID,05/11/2014,Project delivery costs – supplier services ,West and Southern Africa ,Foreign & Commonwealth Office ,104223-101 ,"7,285.47",
DFID,DFID,05/11/2014,Project delivery costs – supplier services ,West and Southern Africa ,Foreign & Commonwealth Office ,104223-101 ,"7,285.47",
DFID,DFID,05/11/2014,Project delivery costs – supplier services ,West and Southern Africa ,Foreign & Commonwealth Office ,104223-101 ,"7,097.91",
DFID,DFID,05/11/2014,Project delivery costs – supplier services ,West and Southern Africa ,Foreign & Commonwealth Office ,104223-101 ,"7,285.47",
DFID,DFID,05/11/2014,Project delivery costs – supplier services ,West and Southern Africa ,Foreign & Commonwealth Office ,104223-101 ,"7,097.91",
DFID,DFID,05/11/2014,Project delivery costs – supplier services ,West and Southern Africa ,Foreign & Commonwealth Office ,104223-101 ,"7,285.47",
DFID,DFID,05/11/2014,Project delivery costs – supplier services ,West and Southern Africa ,Foreign & Commonwealth Office ,104223-101 ,"7,285.47",
DFID,DFID,05/11/2014,Project delivery costs – supplier services ,West and Southern Africa ,Foreign & Commonwealth Office ,104223-101 ,"7,285.47",
DFID,DFID,05/11/2014,Project delivery costs – supplier services ,West and Southern Africa ,Foreign & Commonwealth Office ,104223-101 ,"7,285.47",
DFID,DFID,05/11/2014,Project delivery costs – supplier services ,West and Southern Africa ,Foreign & Commonwealth Office ,104223-101 ,"7,285.47",
DFID,DFID,05/11/2014,Project delivery costs – supplier services ,West and Southern Africa ,Foreign & Commonwealth Office ,104223-101 ,"7,285.47",
DFID,DFID,05/11/2014,Project delivery costs – supplier services ,West and Southern Africa ,Foreign & Commonwealth Office ,104223-101 ,"7,285.47",
DFID,DFID,05/11/2014,Project delivery costs – supplier services ,West and Southern Africa ,Foreign & Commonwealth Office ,104223-101 ,"7,097.91",
DFID,DFID,05/11/2014,Project delivery costs – supplier services ,West and Southern Africa ,Foreign & Commonwealth Office ,104223-101 ,"7,285.47",
DFID,DFID,05/11/2014,Project delivery costs – supplier services ,West and Southern Africa ,Foreign & Commonwealth Office ,104223-101 ,"7,285.47",
DFID,DFID,05/11/2014,Project delivery costs – supplier services ,West and Southern Africa ,Foreign & Commonwealth Office ,104223-101 ,"7,285.47",
DFID,DFID,05/11/2014,Project delivery costs – supplier services ,West and Southern Africa ,Foreign & Commonwealth Office ,104223-101 ,"7,285.48",
DFID,DFID,05/11/2014,Project delivery costs – supplier services ,West and Southern Africa ,Foreign & Commonwealth Office ,104223-101 ,"7,285.45",
DFID,DFID,05/11/2014,Project delivery costs – supplier services ,West and Southern Africa ,Foreign & Commonwealth Office ,104223-101 ,"7,285.47",
DFID,DFID,05/11/2014,Project delivery costs – supplier services ,West and Southern Africa ,Foreign & Commonwealth Office ,104223-101 ,"7,285.47",
DFID,DFID,05/11/2014,Project delivery costs – supplier services ,West and Southern Africa ,Foreign & Commonwealth Office ,104223-101 ,"2,939.61",
DFID,DFID,05/11/2014,Project delivery costs – supplier services ,West and Southern Africa ,Foreign & Commonwealth Office ,104223-101 ,"7,285.47",
DFID,DFID,05/11/2014,Project delivery costs – supplier services ,West and Southern Africa ,Foreign & Commonwealth Office ,104223-101 ,"7,097.91",
DFID,DFID,05/11/2014,Project delivery costs – supplier services ,West and Southern Africa ,Foreign & Commonwealth Office ,104223-101 ,"7,285.47",
DFID,DFID,05/11/2014,Project delivery costs – supplier services ,West and Southern Africa ,Foreign & Commonwealth Office ,104223-101 ,"3,276.79",
DFID,DFID,05/11/2014,Project delivery costs – supplier services ,West and Southern Africa ,Foreign & Commonwealth Office ,104223-101 ,"7,285.47",
DFID,DFID,05/11/2014,Project delivery costs – supplier services ,West and Southern Africa ,Foreign & Commonwealth Office ,104223-101 ,"7,285.47",
DFID,DFID,05/11/2014,Project delivery costs – supplier services ,West and Southern Africa ,Foreign & Commonwealth Office ,104223-101 ,"7,285.47",
DFID,DFID,05/11/2014,Project delivery costs – supplier services ,West and Southern Africa ,Foreign & Commonwealth Office ,104223-101 ,"7,285.47",
DFID,DFID,05/11/2014,Project delivery costs – supplier services ,West and Southern Africa ,Foreign & Commonwealth Office ,104223-101 ,"7,285.47",
DFID,DFID,05/11/2014,Project delivery costs – supplier services ,West and Southern Africa ,Foreign & Commonwealth Office ,104223-101 ,"3,936.27",
DFID,DFID,05/11/2014,Project delivery costs – supplier services ,West and Southern Africa ,Foreign & Commonwealth Office ,104223-101 ,"3,169.84",
DFID,DFID,05/11/2014,Project delivery costs – supplier services ,West and Southern Africa ,Foreign & Commonwealth Office ,104223-101 ,"7,285.47",
DFID,DFID,05/11/2014,Project delivery costs – supplier services ,West and Southern Africa ,Foreign & Commonwealth Office ,104223-101 ,"7,285.47",
DFID,DFID,05/11/2014,Project delivery costs – supplier services ,West and Southern Africa ,Foreign & Commonwealth Office ,104223-101 ,"7,285.47",
DFID,DFID,05/11/2014,Project delivery costs – supplier services ,West and Southern Africa ,Foreign & Commonwealth Office ,104223-101 ,"7,285.47",
DFID,DFID,05/11/2014,Project delivery costs – supplier services ,West and Southern Africa ,Foreign & Commonwealth Office ,104223-101 ,"1,544.63",
DFID,DFID,05/11/2014,Project delivery costs – supplier services ,West and Southern Africa ,Foreign & Commonwealth Office ,104223-101 ,"7,285.47",
DFID,DFID,05/11/2014,Project delivery costs – supplier services ,West and Southern Africa ,Foreign & Commonwealth Office ,104223-101 ,"7,285.47",
DFID,DFID,05/11/2014,Project delivery costs – supplier services ,West and Southern Africa ,Foreign & Commonwealth Office ,104223-101 ,"7,285.47",
DFID,DFID,05/11/2014,Project delivery costs – supplier services ,West and Southern Africa ,Foreign & Commonwealth Office ,104223-101 ,"7,285.47",
DFID,DFID,05/11/2014,Project delivery costs – supplier services ,West and Southern Africa ,Foreign & Commonwealth Office ,104223-101 ,"7,285.47",
DFID,DFID,05/11/2014,Project delivery costs – supplier services ,West and Southern Africa ,Foreign & Commonwealth Office ,104223-101 ,"7,285.47",
DFID,DFID,05/11/2014,Project delivery costs – supplier services ,West and Southern Africa ,Foreign & Commonwealth Office ,104223-101 ,"7,285.47",
DFID,DFID,05/11/2014,Project delivery costs – supplier services ,West and Southern Africa ,Foreign & Commonwealth Office ,104223-101 ,"7,285.47",
DFID,DFID,05/11/2014,Project delivery costs – supplier services ,West and Southern Africa ,Foreign & Commonwealth Office ,104223-101 ,"7,285.47",
DFID,DFID,25/11/2014,other information and communication technologies ,West and Southern Africa ,AH Networks ,101618-101 ,"2,435.76",
DFID,DFID,25/11/2014,Medical/Health Services ,West and Southern Africa ,FLIMAS ,101638-101 ,"2,470.47",
DFID,DFID,19/11/2014,Electricity ,Asia  Caribbean and Overseas Territories ,Dhaka Electric Supply Company Ltd ,101603-101 ,"2,482.76",
DFID,DFID,26/11/2014,Project delivery costs – supplier services ,Business Solutions Division Level ,Unit 4 ,200002-107 ,"2,500.00",
DFID,DFID,17/11/2014,Air fares ,West and Southern Africa ,Supplier Name withheld ,101622-105 ,"2,514.68",
DFID,DFID,28/11/2014,other information and communication technologies ,Western Asia Division ,Supplier Name withheld ,100011-110 ,"2,533.59",
DFID,DFID,19/11/2014,Air fares ,Top Management Group ,Corporate Travel Provider ,100232-108 ,"2,537.40",
DFID,DFID,14/11/2014,Relocation costs ,Policy Division ,PICKFORDS LTD ,202419-101 ,"2,552.80",
DFID,DFID,27/11/2014,Repairs  Maintenance and Alterations – Other Building Costs ,Group Operations ,MITIE Technical Facilities Management Ltd ,100106-101 ,"2,567.40",
DFID,DFID,05/11/2014,Facilities Management payments ,East and Central Africa ,THERMOCOOL UGANDA LIMITED ,101635-101 ,"2,629.00",
DFID,DFID,25/11/2014,Cleaning Costs ,West and Southern Africa ,Sparklean Services Nig Ltd ,101622-105 ,"2,631.44",
DFID,DFID,03/11/2014,Storage & Distribution costs ,East and Central Africa ,PICKFORDS LTD ,101628-101 ,"2,661.28",
DFID,DFID,25/11/2014,Computer hardware maintenance ,West and Southern Africa ,Osmat Network Solutions Ventures ,101622-107 ,"2,693.38",
DFID,DFID,05/11/2014,Air fares ,Asia  Caribbean and Overseas Territories ,Foreign & Commonwealth Office ,101605-101 ,"2,723.89",
DFID,DFID,26/11/2014,Training - Course Fees ,Human Resources ,Capita  Business Services ,100269-158 ,"2,743.90",
DFID,DFID,05/11/2014,Printer Consumables ,East and Central Africa ,Foreign & Commonwealth Office ,101616-101 ,"2,749.82",
DFID,DFID,11/11/2014,Recruitment costs ,Research and Evidence Division ,OFFICE FOR NATIONAL STATISTICS ,100039-114 ,"2,788.80",
DFID,DFID,05/11/2014,Storage & Distribution costs ,Western Asia Division ,PICKFORDS LTD ,101624-101 ,"2,788.88",
DFID,DFID,05/11/2014,Storage & Distribution costs ,West and Southern Africa ,PICKFORDS LTD ,101620-101 ,"2,788.89",
DFID,DFID,21/11/2014,Training - Course Fees ,Human Resources ,Capita  Business Services ,100269-155 ,"2,809.35",
DFID,DFID,13/11/2014,Secure Staff Accommodation ,International Relations Division ,Foreign & Commonwealth Office ,100236-101 ,"2,812.19",
DFID,DFID,20/11/2014,Storage & Distribution costs ,Western Asia Division ,Supplier Name withheld ,101601-110 ,"2,833.59",
DFID,DFID,19/11/2014,Air fares ,Top Management Group ,Corporate Travel Provider ,100232-104 ,"2,836.86",
DFID,DFID,11/11/2014,Project delivery costs – supplier services ,West and Southern Africa ,CARD Sierra Leone ,101629-101 ,"2,895.05",
DFID,DFID,21/11/2014,Training - Course Fees ,Human Resources ,Capita  Business Services ,100269-155 ,"2,895.81",
DFID,DFID,12/11/2014,Facilities Management payments ,East and Central Africa ,General Technical Services Ltd,101628-101 ,"2,929.36",
DFID,DFID,25/11/2014,"Repairs, Maint, Alter - Property & Constrct. Services ",East and Central Africa ,Foreign & Commonwealth Office ,101628-101 ,"2,929.36",
DFID,DFID,19/11/2014,Air fares ,Top Management Group ,Corporate Travel Provider ,100232-104 ,"2,929.66",
DFID,DFID,19/11/2014,Air fares ,Top Management Group ,Corporate Travel Provider ,100232-104 ,"2,941.37",
DFID,DFID,10/11/2014,Air fares ,Asia  Caribbean and Overseas Territories ,Saimon Overseas Ltd ,101603-102 ,"2,972.00",
DFID,DFID,06/11/2014,Generators & spares ,East and Central Africa ,CHARLES KENDALL & PARTNERS LIMITED (PROCUREMENT) ,101628-101 ,"3,034.50",
DFID,DFID,19/11/2014,Oil - Other Utilities ,West and Southern Africa ,NP (SL) Ltd ,101629-101 ,"3,043.40",
DFID,DFID,06/11/2014,Project delivery costs – supplier services ,Asia  Caribbean and Overseas Territories ,OPTIONS CONSULTANCY SERVICES LIMITED ,113963-101 ,"22,298.12",
DFID,DFID,18/11/2014,Research & Development costs ,Research and Evidence Division ,Partnership for African Social & Governance Research Inc. ,113957-101 ,"738,440.00",
DFID,DFID,24/11/2014,Repairs  Maint  Alter - Property & Constrct. Services ,East and Central Africa ,DMS AFRICA ,202594-101 ,"3,048.40",
DFID,DFID,27/11/2014,Secure Staff Accommodation ,West and Southern Africa ,Supplier Name withheld ,101629-101 ,"3,081.69",
DFID,DFID,05/11/2014,Project delivery costs – supplier services ,West and Southern Africa ,Foreign & Commonwealth Office ,101622-106 ,"3,083.81",
DFID,DFID,05/11/2014,Project delivery costs – supplier services ,West and Southern Africa ,Foreign & Commonwealth Office ,101622-106 ,"3,083.81",
DFID,DFID,05/11/2014,Project delivery costs – supplier services ,West and Southern Africa ,Foreign & Commonwealth Office ,101622-106 ,"3,083.81",
DFID,DFID,05/11/2014,Project delivery costs – supplier services ,West and Southern Africa ,Foreign & Commonwealth Office ,101622-106 ,"3,083.81",
DFID,DFID,18/11/2014,Subscriptions ,Research and Evidence Division ,AAAS/SCIENCE ,202348-105 ,"3,091.38",
DFID,DFID,05/11/2014,Project delivery costs – supplier services ,West and Southern Africa ,Foreign & Commonwealth Office ,101622-106 ,"3,122.79",
DFID,DFID,19/11/2014,Air fares ,Top Management Group ,Corporate Travel Provider ,100232-104 ,"3,139.12",
DFID,DFID,19/11/2014,Air fares ,Top Management Group ,Corporate Travel Provider ,100232-104 ,"3,139.12",
DFID,DFID,10/11/2014,Facilities Management payments ,West and Southern Africa ,S R Nicolaou ,101637-101 ,"3,165.15",
DFID,DFID,14/11/2014,Medical/Health Services ,West and Southern Africa ,Emose ,101620-101 ,"3,193.05",
DFID,DFID,10/11/2014,Project delivery costs – supplier services ,Research and Evidence Division ,PRICEWATERHOUSECOOPERS ,200822-101 ,"280,793.22",
DFID,DFID,10/11/2014,Project delivery costs – supplier services ,Research and Evidence Division ,PRICEWATERHOUSECOOPERS ,200822-101 ,"109,383.95",
DFID,DFID,10/11/2014,Project delivery costs – supplier services ,Research and Evidence Division ,PRICEWATERHOUSECOOPERS ,200822-101 ,"8,617.82",
DFID,DFID,05/11/2014,Aid Programme - Poverty Reduction Budget Support ,West and Southern Africa ,Ministry of Finance and National Planning ,201564-101 ,"6,500,000.00",
DFID,DFID,20/11/2014,Aid Programme - Accountable Grant Payments ,Policy Division ,ICAR (UK) ,200458-102 ,"250,000.00",
DFID,DFID,07/11/2014,Aid Programme - Voluntary contributions ,Middle East  Humanitarian & Security Division ,ISLAMIC DEVELOPMENT BANK ,200995-101 ,"300,000.00",
DFID,DFID,10/11/2014,Aid Programme - Accountable Grant Payments ,Policy Division ,Access to Medicine Foundation ,201055-101 ,"125,000.00",
DFID,DFID,07/11/2014,Project delivery costs – supplier services ,Human Resources ,HM REVENUE AND CUSTOMS Acc No 12535645 ,100269-131 ,"3,231.36",
DFID,DFID,05/11/2014,Project delivery costs – supplier services ,West and Southern Africa ,Foreign & Commonwealth Office ,114206-105 ,"7,285.47",
DFID,DFID,05/11/2014,Project delivery costs – supplier services ,West and Southern Africa ,Foreign & Commonwealth Office ,114206-105 ,"7,285.47",
DFID,DFID,05/11/2014,Project delivery costs – supplier services ,West and Southern Africa ,Foreign & Commonwealth Office ,114206-105 ,"7,285.47",
DFID,DFID,05/11/2014,Project delivery costs – supplier services ,West and Southern Africa ,Foreign & Commonwealth Office ,114206-105 ,"5,833.80",
DFID,DFID,05/11/2014,Project delivery costs – supplier services ,West and Southern Africa ,Foreign & Commonwealth Office ,114206-105 ,"8,531.54",
DFID,DFID,12/11/2014,Data Network - land lines ,Business Solutions Division Level ,VERIZON UK LIMITED ,200002-126 ,"3,317.88",
DFID,DFID,14/11/2014,Air fares ,East and Central Africa ,BCD Travel (USD) ,101630-101 ,"3,335.95",
DFID,DFID,19/11/2014,Air fares ,Top Management Group ,Corporate Travel Provider ,100232-108 ,"3,374.96",
DFID,DFID,12/11/2014,Computer Software Licenses ,Business Solutions Division Level ,MTI Technology Ltd ,200002-116 ,"3,394.39",
DFID,DFID,05/11/2014,Project delivery costs – supplier services ,Asia  Caribbean and Overseas Territories ,Foreign & Commonwealth Office ,101636-101 ,"3,441.59",
DFID,DFID,20/11/2014,Air fares ,Top Management Group ,Corporate Travel Provider ,100232-102 ,"3,447.30",
DFID,DFID,20/11/2014,Air fares ,Top Management Group ,Corporate Travel Provider ,100232-102 ,"3,455.50",
DFID,DFID,20/11/2014,Air fares ,Top Management Group ,Corporate Travel Provider ,100232-102 ,"3,455.50",
DFID,DFID,20/11/2014,Air fares ,Top Management Group ,Corporate Travel Provider ,100232-102 ,"3,455.50",
DFID,DFID,20/11/2014,Air fares ,Top Management Group ,Corporate Travel Provider ,100232-102 ,"3,455.50",
DFID,DFID,25/11/2014,Facilities Management payments ,East and Central Africa ,General Technical Services Ltd,101628-101 ,"3,456.87",
DFID,DFID,12/11/2014,"Repairs, Maint, Alter - Property & Constrct. Services ",East and Central Africa ,Foreign & Commonwealth Office ,101628-101 ,"3,456.87",
DFID,DFID,17/11/2014,Hotels - Accommodation only ,Research and Evidence Division ,Six Seasons Hotel Ltd ,202333-104 ,"3,476.52",
DFID,DFID,13/11/2014,Oil - Other Utilities ,West and Southern Africa ,Conoil plc ,100152-110 ,"3,492.67",
DFID,DFID,05/11/2014,Secure Staff Accommodation ,Asia  Caribbean and Overseas Territories ,Foreign & Commonwealth Office ,101636-101 ,"3,522.40",
DFID,DFID,14/11/2014,Hotels - Accommodation only ,East and Central Africa ,BCD Travel (USD) ,101616-101 ,"3,533.78",
DFID,DFID,19/11/2014,Training - Course Fees ,Internal Audit ,INSTITUTE OF INTERNAL AUDITORS-UK ,100121-101 ,"3,580.00",
DFID,DFID,20/11/2014,Training - Course Fees ,Internal Audit ,INSTITUTE OF INTERNAL AUDITORS-UK ,100121-101 ,"3,580.00",
DFID,DFID,18/11/2014,Training - Course Fees ,Internal Audit ,INSTITUTE OF INTERNAL AUDITORS-UK ,100121-101 ,"3,580.00",
DFID,DFID,11/11/2014,Project delivery costs – supplier services ,Business Solutions Division Level ,Cabinet Office RM Shared Services ,200002-196 ,"3,592.80",
DFID,DFID,07/11/2014,Bank Charges/Services ,Finance and Corporate Performance Division ,Crown Agents. ,100008-101 ,"3,750.00",
DFID,DFID,24/11/2014,Subscriptions ,Research and Evidence Division ,BMJ PUBLISHING GROUP LTD ,202348-105 ,"3,759.12",
DFID,DFID,24/11/2014,Subscriptions ,Research and Evidence Division ,Asempa Limited ,202348-105 ,"3,768.00",
DFID,DFID,07/11/2014,Air fares ,East and Central Africa ,BCD Travel (USD) ,101616-101 ,"3,782.27",
DFID,DFID,14/11/2014,Air fares ,East and Central Africa ,BCD Travel (USD) ,101616-101 ,"3,784.92",
DFID,DFID,25/11/2014,Subscriptions ,Research and Evidence Division ,OXFORD UNIVERSITY PRESS (JOURNALS) ,202348-105 ,"3,836.64",
DFID,DFID,05/11/2014,Project delivery costs – supplier services ,Asia  Caribbean and Overseas Territories ,Foreign & Commonwealth Office ,101636-101 ,"3,850.00",
DFID,DFID,27/11/2014,Secure Staff Accommodation ,Middle East  Humanitarian & Security Division ,Foreign & Commonwealth Office ,202410-101 ,"3,898.32",
DFID,DFID,25/11/2014,Data Network -Satellite ,Business Solutions Division Level ,Level 3 ,200002-117 ,"3,972.79",
DFID,DFID,17/11/2014,Contract & Agency Staff ,Group Operations ,Michael Page Int. Recruitment Ltd ,100270-106 ,"4,011.32",
DFID,DFID,17/11/2014,Storage & Distribution costs ,Western Asia Division ,PICKFORDS LTD ,101624-101 ,"4,028.42",
DFID,DFID,05/11/2014,Hotels - Accommodation only ,Western Asia Division ,Supplier Name withheld ,101601-110 ,"4,047.43",
DFID,DFID,24/11/2014,Training - Course Fees ,Internal Audit ,INSTITUTE OF INTERNAL AUDITORS-UK ,100121-101 ,"4,115.00",
DFID,DFID,24/11/2014,Training - Course Fees ,Internal Audit ,INSTITUTE OF INTERNAL AUDITORS-UK ,100121-101 ,"4,115.00",
DFID,DFID,20/11/2014,Repairs  Maint  Alter - Removal & waste disposal services ,Group Operations ,BYWATERS ,203717-101 ,"4,126.20",
DFID,DFID,19/11/2014,Air fares ,Middle East  Humanitarian & Security Division ,Corporate Travel Provider ,203944-106 ,"4,149.38",
DFID,DFID,19/11/2014,Air fares ,Middle East  Humanitarian & Security Division ,Corporate Travel Provider ,203944-106 ,"4,149.38",
DFID,DFID,19/11/2014,Air fares ,West and Southern Africa ,Corporate Travel Provider ,101629-101 ,"4,150.08",
DFID,DFID,19/11/2014,Air fares ,West and Southern Africa ,Corporate Travel Provider ,100214-101 ,"4,150.08",
DFID,DFID,25/11/2014,Hotels - Accommodation only ,Western Asia Division ,Avari Lahore ,101624-101 ,"4,176.02",
DFID,DFID,12/11/2014,Contract & Agency Staff ,Finance and Corporate Performance Division ,HUDSON GLOBAL RESOURCES LTD ,100201-101 ,"4,224.24",
DFID,DFID,19/11/2014,Air fares ,Top Management Group ,Corporate Travel Provider ,100232-108 ,"4,226.66",
DFID,DFID,06/11/2014,Project delivery costs – supplier services ,East and Central Africa ,Nigel Milverton ,204882-102 ,"15,221.71",
DFID,DFID,17/11/2014,Project delivery costs – supplier services ,East and Central Africa ,Eugene Gatari ,204793-101 ,"1,280.80",
DFID,DFID,17/11/2014,Project delivery costs – supplier services ,Regional Directorate ,LinCon Construction and Logistics ,204890-101 ,"343,583.23",
DFID,DFID,21/11/2014,Project delivery costs – supplier services ,Regional Directorate ,LinCon Construction and Logistics ,204890-101 ,"194,489.75",
DFID,DFID,18/11/2014,Project delivery costs – supplier services ,West and Southern Africa ,TERRASTONE CONSTRUCTION LTD ,201235-103 ,"125,598.06",
DFID,DFID,20/11/2014,Project delivery costs – supplier services ,West and Southern Africa ,TERRASTONE CONSTRUCTION LTD ,201235-103 ,"265,299.82",
DFID,DFID,18/11/2014,Project delivery costs – supplier services ,West and Southern Africa ,TERRASTONE CONSTRUCTION LTD ,201235-103 ,"186,963.54",
DFID,DFID,18/11/2014,Project delivery costs – supplier services ,West and Southern Africa ,TERRASTONE CONSTRUCTION LTD ,201235-103 ,"32,626.58",
DFID,DFID,24/11/2014,Project delivery costs – supplier services ,West and Southern Africa ,Design Studio Architects ,201235-103 ,"66,242.12",
DFID,DFID,24/11/2014,Project delivery costs – supplier services ,Regional Directorate ,Westcare Enterprises ,204896-101 ,"6,558.60",
DFID,DFID,04/11/2014,Project delivery costs – supplier services ,Regional Directorate ,Westcare Enterprises ,204896-101 ,"4,749.33",
DFID,DFID,28/11/2014,Aid Programme - Trust Funds contributions ,Asia  Caribbean and Overseas Territories ,Asian Development Bank-Yolanda TF ,204880-101 ,"5,000,000.00",
DFID,DFID,03/11/2014,Conferences  Seminars & Meeting/Event Resource ,West and Southern Africa ,Standard Chartered Bank Nig Ltd ,204438-101 ,"5,576.02",
DFID,DFID,12/11/2014,Project delivery costs – supplier services ,Business Solutions Division Level ,CGI IT UK Limited ,200002-103 ,"4,260.00",
DFID,DFID,04/11/2014,Aid Programme - Accountable Grant Payments ,Policy Division ,Vital Voices Global Partnership ,202882-103 ,"63,592.17",
DFID,DFID,12/11/2014,Aid Programme - Accountable Grant Payments ,Western Asia Division ,Supplier Name withheld ,203496-101 ,"381,125.91",
DFID,DFID,05/11/2014,Aid Programme - Core contributions ,Research and Evidence Division ,ICIMOD1 ,202748-101 ,"556,635.00",
DFID,DFID,19/11/2014,Aid Programme - Trust Funds contributions ,East and Central Africa ,African Legal Support Facility ,203974-101 ,"144,000.00",
DFID,DFID,14/11/2014,Air fares ,East and Central Africa ,BCD Travel (USD) ,101630-101 ,"4,335.10",
DFID,DFID,25/11/2014,Project delivery costs – supplier services ,Middle East  Humanitarian & Security Division ,SixtyOne Whitehall ,203939-103 ,"1,992.00",
DFID,DFID,21/11/2014,Secure Staff Accommodation ,East and Central Africa ,Supplier Name withheld ,202594-101 ,"4,342.58",
DFID,DFID,25/11/2014,Conferences  Seminars & Meeting/Event Resource ,Policy Division ,G4S Integrated services (UK) Ltd ,204826-101 ,788.64,
DFID,DFID,05/11/2014,Project delivery costs – supplier services ,West and Southern Africa ,Foreign & Commonwealth Office ,101622-105 ,"4,348.70",
DFID,DFID,18/11/2014,Contract & Agency Staff ,East and Central Africa ,MORSON INTERNATIONAL ,100083-102 ,"6,256.73",
DFID,DFID,05/11/2014,Contract & Agency Staff ,East and Central Africa ,MORSON INTERNATIONAL ,100083-102 ,"6,256.73",
DFID,DFID,13/11/2014,Project delivery costs – supplier services ,East and Central Africa ,JH Media ,202913-101 ,609.06,
DFID,DFID,27/11/2014,Aid Programme - Joint programme contribution ,East and Central Africa ,International Bank for Reconstruction and Development ,204021-101 ,"250,000.00",
DFID,DFID,27/11/2014,Aid Programme - Joint programme contribution ,East and Central Africa ,International Bank for Reconstruction and Development ,204021-101 ,"250,000.00",
DFID,DFID,25/11/2014,Project delivery costs – supplier services ,Western Asia Division ,International Bank for Reconstruction and Development ,202697-110 ,"75,000.00",
DFID,DFID,17/11/2014,Project delivery costs – supplier services ,East and Central Africa ,BMB Mott MacDonald-PO6116 ,202946-108 ,"47,772.79",
DFID,DFID,17/11/2014,Project delivery costs – supplier services ,East and Central Africa ,BMB Mott MacDonald-PO6116 ,202946-105 ,"168,127.50",
DFID,DFID,06/11/2014,Aid Programme - Accountable Grant Payments ,East and Central Africa ,Amhara Women's Association Girl Hub Project ,202913-105 ,"17,705.00",
DFID,DFID,24/11/2014,Aid Programme - Voluntary contributions ,East and Central Africa ,(USD)UNDP Tanzania ,202534-105 ,"63,950.00",
DFID,DFID,11/11/2014,Aid Programme - Accountable Grant Payments ,East and Central Africa ,Nonviolent Peaceforce ,203589-102 ,"1,287.00",
DFID,DFID,24/11/2014,Aid Programme - Accountable Grant Payments ,East and Central Africa ,SAGCOT CENTRE LIMITED ,202844-108 ,"63,958.54",
DFID,DFID,25/11/2014,Aid Programme - Accountable Grant Payments ,West and Southern Africa ,Africa Centre for Energy ,204330-104 ,"33,847.14",
DFID,DFID,17/11/2014,Project delivery costs – supplier services ,East and Central Africa ,Axiom monitoring and evaluation ltd ,201294-106 ,"13,834.80",
DFID,DFID,06/11/2014,Project delivery costs – supplier services ,Business Solutions Division Level ,In-Form Consult Ltd ,200005-116 ,"9,120.00",
DFID,DFID,25/11/2014,Project delivery costs – supplier services ,West and Southern Africa ,Theresa P Jones ,200452-103 ,"5,376.00",
DFID,DFID,11/11/2014,Oil - Other Utilities ,West and Southern Africa ,Bilad Investment Limited ,101622-103 ,"4,381.49",
DFID,DFID,19/11/2014,Air fares ,Top Management Group ,Corporate Travel Provider ,100232-104 ,"4,402.96",
DFID,DFID,25/11/2014,other information and communication technologies ,West and Southern Africa ,Compufix Services ,101618-101 ,"4,528.13",
DFID,DFID,26/11/2014,Aid Programme - Voluntary contributions ,Asia  Caribbean and Overseas Territories ,MSB Swedish Civil Contingencies Agency ,203222-104 ,"29,000.00",
DFID,DFID,26/11/2014,Aid Programme - Voluntary contributions ,Asia  Caribbean and Overseas Territories ,MSB Swedish Civil Contingencies Agency ,203222-104 ,"96,000.00",
DFID,DFID,06/11/2014,Project delivery costs – supplier services ,East and Central Africa ,Sion Haworth ,200221-105 ,"11,050.00",
DFID,DFID,18/11/2014,Project delivery costs – supplier services ,East and Central Africa ,Pippa Coutts Research and Development ,202989-105 ,"7,099.73",
DFID,DFID,17/11/2014,Repairs  Maint  Alter - Property & Constrct. Services ,Asia  Caribbean and Overseas Territories ,UNITED FLOORING ,100114-104 ,"1,651.37",
DFID,DFID,25/11/2014,Project delivery costs – supplier services ,East and Central Africa ,Sandra Erickson ,113303-115 ,"6,000.00",
DFID,DFID,25/11/2014,Research & Development costs ,Research and Evidence Division ,Natural Environment Research Council ,112082-101 ,"1,685,134.75",
DFID,DFID,20/11/2014,Aid Programme - Accountable Grant Payments ,Research and Evidence Division ,BRITISH GEOLOGICAL SURVEY ,202125-108 ,"72,902.47",
DFID,DFID,04/11/2014,Aid Programme - Accountable Grant Payments ,West and Southern Africa ,CAMFED ,202493-101 ,"1,976,210.00",
DFID,DFID,21/11/2014,Aid Programme - Accountable Grant Payments ,West and Southern Africa ,CAMFED ,202623-111 ,"711,773.00",
DFID,DFID,04/11/2014,Relocation costs ,East and Central Africa ,PICKFORDS LTD ,101628-101 ,"4,624.51",
DFID,DFID,18/11/2014,Project delivery costs – supplier services ,Research and Evidence Division ,CAB INTERNATIONAL ,112152-102 ,"40,947.20",
DFID,DFID,27/11/2014,Project delivery costs – supplier services ,Growth and Resilience Division ,CAMBRIDGE ECONOMIC POLICY ASSOCIATES ,202650-102 ,"107,803.20",
DFID,DFID,28/11/2014,Project delivery costs – supplier services ,West and Southern Africa ,CHARLES KENDALL & PARTNERS LIMITED (PROCUREMENT) ,202524-101 ,"4,483.04",
DFID,DFID,27/11/2014,Project delivery costs – supplier services ,West and Southern Africa ,CHARLES KENDALL & PARTNERS LIMITED (PROCUREMENT) ,202524-101 ,"73,511.78",
DFID,DFID,10/11/2014,Secure Staff Accommodation ,West and Southern Africa ,Supplier Name withheld ,101637-101 ,"4,753.69",
DFID,DFID,04/11/2014,Data Network - land lines ,Business Solutions Division Level ,(Vodafone)Cable & Wireless Global Networks Ltd ,200002-185 ,"4,767.00",
DFID,DFID,18/11/2014,DFID Purchased Relief Supplies ,East and Central Africa ,CHARLES KENDALL & PARTNERS LIMITED (PROCUREMENT) ,202513-101 ,"32,519.02",
DFID,DFID,21/11/2014,DFID Purchased Relief Supplies ,West and Southern Africa ,CHARLES KENDALL & PARTNERS LIMITED (PROCUREMENT) ,202214-106 ,"12,288.25",
DFID,DFID,21/11/2014,DFID Purchased Relief Supplies ,West and Southern Africa ,CHARLES KENDALL & PARTNERS LIMITED (PROCUREMENT) ,202214-106 ,"25,353.14",
DFID,DFID,21/11/2014,DFID Purchased Relief Supplies ,West and Southern Africa ,CHARLES KENDALL & PARTNERS LIMITED (PROCUREMENT) ,202214-106 ,"15,294.59",
DFID,DFID,21/11/2014,DFID Purchased Relief Supplies ,West and Southern Africa ,CHARLES KENDALL & PARTNERS LIMITED (PROCUREMENT) ,202214-106 ,"21,283.11",
DFID,DFID,18/11/2014,Vehicle Purchase Costs ,West and Southern Africa ,CHARLES KENDALL & PARTNERS LIMITED (PROCUREMENT) ,100149-101 ,"47,060.13",
DFID,DFID,21/11/2014,DFID Purchased Relief Supplies ,West and Southern Africa ,CHARLES KENDALL & PARTNERS LIMITED (PROCUREMENT) ,202214-106 ,"25,353.14",
DFID,DFID,26/11/2014,DFID Purchased Relief Supplies ,West and Southern Africa ,CHARLES KENDALL & PARTNERS LIMITED (PROCUREMENT) ,202214-106 ,"91,249.64",
DFID,DFID,03/11/2014,DFID Purchased Relief Supplies ,West and Southern Africa ,CHARLES KENDALL & PARTNERS LIMITED (PROCUREMENT) ,202214-106 ,"144,341.47",
DFID,DFID,21/11/2014,DFID Purchased Relief Supplies ,West and Southern Africa ,CHARLES KENDALL & PARTNERS LIMITED (PROCUREMENT) ,202214-106 ,"23,641.54",
DFID,DFID,21/11/2014,DFID Purchased Relief Supplies ,West and Southern Africa ,CHARLES KENDALL & PARTNERS LIMITED (PROCUREMENT) ,202214-106 ,"48,288.87",
DFID,DFID,26/11/2014,DFID Purchased Relief Supplies ,West and Southern Africa ,CHARLES KENDALL & PARTNERS LIMITED (PROCUREMENT) ,202214-106 ,"35,745.54",
DFID,DFID,18/11/2014,Project delivery costs – supplier services ,Policy Division ,GBRW LIMITED ,201733-107 ,"3,148.13",
DFID,DFID,17/11/2014,Hostile Environment Training ,Middle East  Humanitarian & Security Division ,GroundTruth Consulting ,203940-102 ,"44,130.00",
DFID,DFID,05/11/2014,Hostile Environment Training ,Middle East  Humanitarian & Security Division ,GroundTruth Consulting ,203940-102 ,"44,130.00",
DFID,DFID,27/11/2014,Hostile Environment Training ,Middle East  Humanitarian & Security Division ,GroundTruth Consulting ,203940-102 ,"23,989.30",
DFID,DFID,28/11/2014,Project delivery costs – supplier services ,Asia  Caribbean and Overseas Territories ,ICF Consulting Services Ltd ,203484-101 ,"10,273.00",
DFID,DFID,28/11/2014,Project delivery costs – supplier services ,Asia  Caribbean and Overseas Territories ,ICF Consulting Services Ltd ,203484-101 ,"119,957.00",
DFID,DFID,04/11/2014,Project delivery costs – supplier services ,Asia  Caribbean and Overseas Territories ,ICF Consulting Services Ltd ,203484-101 ,"32,667.00",
DFID,DFID,19/11/2014,Project delivery costs – supplier services ,West and Southern Africa ,HTSPE LTD ,204087-101 ,"2,906.25",
DFID,DFID,28/11/2014,Project delivery costs – supplier services ,Policy Division ,HTSPE LTD ,202921-101 ,"24,418.22",
DFID,DFID,24/11/2014,Project delivery costs – supplier services ,West and Southern Africa ,HTSPE LTD ,202554-102 ,"17,355.40",
DFID,DFID,24/11/2014,Project delivery costs – supplier services ,West and Southern Africa ,HTSPE LTD ,202554-102 ,"45,009.40",
DFID,DFID,04/11/2014,Project delivery costs – supplier services ,East and Central Africa ,HTSPE LTD ,204258-101 ,"49,133.72",
DFID,DFID,12/11/2014,Project delivery costs – supplier services ,West and Southern Africa ,HTSPE LTD ,202345-103 ,"6,789.07",
DFID,DFID,05/11/2014,Project delivery costs – supplier services ,Western Asia Division ,HTSPE LTD ,204358-101 ,"8,337.00",
DFID,DFID,25/11/2014,Project delivery costs – supplier services ,Research and Evidence Division ,HTSPE LTD ,203193-101 ,"28,783.68",
DFID,DFID,20/11/2014,Project delivery costs – supplier services ,East and Central Africa ,HTSPE LTD ,203574-106 ,"135,846.02",
DFID,DFID,20/11/2014,Project delivery costs – supplier services ,East and Central Africa ,HTSPE LTD ,203574-109 ,"100,006.00",
DFID,DFID,20/11/2014,Project delivery costs – supplier services ,East and Central Africa ,HTSPE LTD ,204258-101 ,"76,298.29",
DFID,DFID,25/11/2014,Project delivery costs – supplier services ,Policy Division ,HTSPE LTD ,202948-113 ,"24,687.00",
DFID,DFID,25/11/2014,Project delivery costs – supplier services ,West and Southern Africa ,HTSPE LTD ,202554-102 ,569.01,
DFID,DFID,24/11/2014,Project delivery costs – supplier services ,West and Southern Africa ,HTSPE LTD ,202554-102 ,"275,053.02",
DFID,DFID,25/11/2014,Project delivery costs – supplier services ,West and Southern Africa ,HTSPE LTD ,200681-101 ,"361,185.15",
DFID,DFID,17/11/2014,Project delivery costs – supplier services ,Growth and Resilience Division ,HTSPE LTD ,202650-101 ,"22,400.00",
DFID,DFID,18/11/2014,Project delivery costs – supplier services ,West and Southern Africa ,HTSPE LTD ,104189-101 ,"702,174.50",
DFID,DFID,27/11/2014,Project delivery costs – supplier services ,West and Southern Africa ,HTSPE LTD ,203164-103 ,"87,168.95",
DFID,DFID,20/11/2014,Aid Programme - Accountable Grant Payments ,Research and Evidence Division ,INASP ,203962-101 ,"349,849.00",
DFID,DFID,10/11/2014,Project delivery costs – supplier services ,East and Central Africa ,IRWIN GRAYSON ASSOCIATES ,204010-102 ,650.00,
DFID,DFID,05/11/2014,Aid Programme - Other Financial Aid to Government ,East and Central Africa ,MET OFFICE ,202534-107 ,"186,963.00",
DFID,DFID,04/11/2014,Data Network - land lines ,Business Solutions Division Level ,(Vodafone)Cable & Wireless Global Networks Ltd ,203329-103 ,"4,767.00",
DFID,DFID,27/11/2014,Research & Development costs ,Research and Evidence Division ,ODI ,204776-101 ,"14,972.50",
DFID,DFID,21/11/2014,Research & Development costs ,Research and Evidence Division ,ODI ,204329-102 ,"1,734.73",
DFID,DFID,21/11/2014,Aid Programme - Accountable Grant Payments ,East and Central Africa ,ODI ,202552-102 ,"274,528.00",
DFID,DFID,03/11/2014,Project delivery costs – supplier services ,East and Central Africa ,OXFORD POLICY MANAGEMENT ,203016-102 ,"37,559.47",
DFID,DFID,28/11/2014,Project delivery costs – supplier services ,Asia  Caribbean and Overseas Territories ,OXFORD POLICY MANAGEMENT ,203180-102 ,"232,026.89",
DFID,DFID,28/11/2014,Project delivery costs – supplier services ,Asia  Caribbean and Overseas Territories ,OXFORD POLICY MANAGEMENT ,203180-102 ,"142,785.78",
DFID,DFID,27/11/2014,Project delivery costs – supplier services ,West and Southern Africa ,OXFORD POLICY MANAGEMENT ,202643-103 ,"105,634.49",
DFID,DFID,28/11/2014,Project delivery costs – supplier services ,West and Southern Africa ,OXFORD POLICY MANAGEMENT ,204901-103 ,"1,735,400.00",
DFID,DFID,24/11/2014,Project delivery costs – supplier services ,Research and Evidence Division ,OXFORD POLICY MANAGEMENT ,202769-103 ,"27,533.26",
DFID,DFID,20/11/2014,Project delivery costs – supplier services ,Western Asia Division ,OXFORD POLICY MANAGEMENT ,202367-103 ,"280,621.79",
DFID,DFID,27/11/2014,Project delivery costs – supplier services ,West and Southern Africa ,OXFORD POLICY MANAGEMENT ,203811-106 ,"4,985.08",
DFID,DFID,18/11/2014,Project delivery costs – supplier services ,Asia  Caribbean and Overseas Territories ,OXFORD POLICY MANAGEMENT ,202123-105 ,"17,731.32",
DFID,DFID,18/11/2014,Project delivery costs – supplier services ,Asia  Caribbean and Overseas Territories ,OXFORD POLICY MANAGEMENT ,203123-101 ,"146,690.60",
DFID,DFID,10/11/2014,Project delivery costs – supplier services ,Research and Evidence Division ,OXFORD POLICY MANAGEMENT ,203704-108 ,"10,404.47",
DFID,DFID,28/11/2014,Project delivery costs – supplier services ,Research and Evidence Division ,OXFORD POLICY MANAGEMENT ,203705-111 ,"1,277.16",
DFID,DFID,10/11/2014,Project delivery costs – supplier services ,Research and Evidence Division ,OXFORD POLICY MANAGEMENT ,203705-111 ,"17,547.54",
DFID,DFID,04/11/2014,Project delivery costs – supplier services ,East and Central Africa ,OXFORD POLICY MANAGEMENT ,202994-104 ,"7,532.10",
DFID,DFID,19/11/2014,Project delivery costs – supplier services ,West and Southern Africa ,OXFORD POLICY MANAGEMENT ,202732-105 ,"52,862.99",
DFID,DFID,17/11/2014,Project delivery costs – supplier services ,West and Southern Africa ,OXFORD POLICY MANAGEMENT ,202214-108 ,"13,537.00",
DFID,DFID,12/11/2014,Project delivery costs – supplier services ,West and Southern Africa ,OXFORD POLICY MANAGEMENT ,202640-106 ,"9,605.34",
DFID,DFID,04/11/2014,Project delivery costs – supplier services ,Research and Evidence Division ,OXFORD POLICY MANAGEMENT ,203193-101 ,"20,812.00",
DFID,DFID,28/11/2014,Project delivery costs – supplier services ,Research and Evidence Division ,OXFORD POLICY MANAGEMENT ,203193-101 ,"20,812.00",
DFID,DFID,04/11/2014,Project delivery costs – supplier services ,Research and Evidence Division ,OXFORD POLICY MANAGEMENT ,203193-101 ,"20,812.00",
DFID,DFID,03/11/2014,Project delivery costs – supplier services ,West and Southern Africa ,OXFORD POLICY MANAGEMENT ,203536-103 ,"13,985.46",
DFID,DFID,10/11/2014,Project delivery costs – supplier services ,Research and Evidence Division ,OXFORD POLICY MANAGEMENT ,203706-107 ,"17,547.54",
DFID,DFID,28/11/2014,Project delivery costs – supplier services ,Western Asia Division ,OXFORD POLICY MANAGEMENT ,202413-102 ,"22,430.00",
DFID,DFID,19/11/2014,Project delivery costs – supplier services ,Asia  Caribbean and Overseas Territories ,OXFORD POLICY MANAGEMENT ,203186-105 ,"53,174.19",
DFID,DFID,17/11/2014,Project delivery costs – supplier services ,West and Southern Africa ,OXFORD POLICY MANAGEMENT ,202640-106 ,"26,275.50",
DFID,DFID,27/11/2014,Project delivery costs – supplier services ,West and Southern Africa ,OXFORD POLICY MANAGEMENT ,202978-101 ,"3,264.84",
DFID,DFID,27/11/2014,Project delivery costs – supplier services ,West and Southern Africa ,OXFORD POLICY MANAGEMENT ,202978-101 ,"91,030.00",
DFID,DFID,12/11/2014,Project delivery costs – supplier services ,West and Southern Africa ,OXFORD POLICY MANAGEMENT ,202637-103 ,"9,605.34",
